Department Family,Entity,Date,Expense Type,Expense area,Supplier,Transaction Number,Amount,VAT registration Number
Department of Health,Salisbury NHS Foundation Trust,09/08/2019,HEALTHCARE - NHS TRUSTS,Corporate - Commercial & Commissioned Services,WILCODOC LIMITED,INV-0299,70320.88,
Department of Health,Salisbury NHS Foundation Trust,30/08/2019,RATES,Facilities,WILTSHIRE COUNCIL,AUG 19 NNDR,138312,
Department of Health,Salisbury NHS Foundation Trust,09/08/2019,LAB EQUIP-LABORATORY APPARATUS,Clinical Support,BECKMAN COULTER,1443015,60554.75,
Department of Health,Salisbury NHS Foundation Trust,09/08/2019,LAB EQUIP-LABORATORY APPARATUS,Clinical Support,BECKMAN COULTER,1443015,3193.09,
Department of Health,Salisbury NHS Foundation Trust,16/08/2019,PELICAN,Facilities,PELICAN PROCUREMENT SERVICES LTD,JUL-2019-NHS(2014),83295.98,
Department of Health,Salisbury NHS Foundation Trust,16/08/2019,PELICAN,Facilities,PELICAN PROCUREMENT SERVICES LTD,JUL-2019-NHS(2014),2456.63,
Department of Health,Salisbury NHS Foundation Trust,02/08/2019,DRUGS,Clinical Support,LLOYDSPHARMACY CLINICAL HOMECARE,SINV3595447,32565.74,
Department of Health,Salisbury NHS Foundation Trust,23/08/2019,LAB REAGENTS-BUFFERS COMPUND SOLNS,Clinical Support,ILLUMINA CAMBRIDGE LTD,7020628372,3853.8,
Department of Health,Salisbury NHS Foundation Trust,23/08/2019,LAB REAGENTS-BUFFERS COMPUND SOLNS,Clinical Support,ILLUMINA CAMBRIDGE LTD,7020628372,2187,
Department of Health,Salisbury NHS Foundation Trust,23/08/2019,LAB REAGENTS-BUFFERS COMPUND SOLNS,Clinical Support,ILLUMINA CAMBRIDGE LTD,7020628372,19269,
Department of Health,Salisbury NHS Foundation Trust,23/08/2019,LAB REAGENTS-BUFFERS COMPUND SOLNS,Clinical Support,ILLUMINA CAMBRIDGE LTD,7020628372,437.4,
Department of Health,Salisbury NHS Foundation Trust,23/08/2019,LAB REAGENTS-BUFFERS COMPUND SOLNS,Clinical Support,ILLUMINA CAMBRIDGE LTD,7020628371,9026.28,
Department of Health,Salisbury NHS Foundation Trust,23/08/2019,LAB REAGENTS-BUFFERS COMPUND SOLNS,Clinical Support,ILLUMINA CAMBRIDGE LTD,7020628371,4631.9,
Department of Health,Salisbury NHS Foundation Trust,23/08/2019,LAB REAGENTS-BUFFERS COMPUND SOLNS,Clinical Support,ILLUMINA CAMBRIDGE LTD,7020628371,7461,
Department of Health,Salisbury NHS Foundation Trust,23/08/2019,LAB REAGENTS-BUFFERS COMPUND SOLNS,Clinical Support,ILLUMINA CAMBRIDGE LTD,7020628371,1805.26,
Department of Health,Salisbury NHS Foundation Trust,23/08/2019,LAB REAGENTS-BUFFERS COMPUND SOLNS,Clinical Support,ILLUMINA CAMBRIDGE LTD,7020628371,926.38,
Department of Health,Salisbury NHS Foundation Trust,23/08/2019,LAB REAGENTS-BUFFERS COMPUND SOLNS,Clinical Support,ILLUMINA CAMBRIDGE LTD,7020628371,1492.2,
Department of Health,Salisbury NHS Foundation Trust,16/08/2019,DRUGS,Clinical Support,LLOYDSPHARMACY CLINICAL HOMECARE,SINV3618576,32325.74,
Department of Health,Salisbury NHS Foundation Trust,30/08/2019,CONTRACTED WASTE SERVICES,Facilities,SRCL LIMITED,1372253,13638.23,
Department of Health,Salisbury NHS Foundation Trust,30/08/2019,CONTRACTED WASTE SERVICES,Facilities,SRCL LIMITED,1372253,10282.58,
Department of Health,Salisbury NHS Foundation Trust,09/08/2019,DI & RADIO-RADIOLOGY EQUIPMENT,Clinical Support,NHS SUPPLY CHAIN,2010003265,49980,
Department of Health,Salisbury NHS Foundation Trust,30/08/2019,DRUGS,Clinical Support,JANSSEN-CILAG LTD,930547898,29089.38,
Department of Health,Salisbury NHS Foundation Trust,30/08/2019,DRUGS,Clinical Support,JANSSEN-CILAG LTD,930547898,5817.88,
Department of Health,Salisbury NHS Foundation Trust,30/08/2019,MEDSURGCONS-SUTURES,Surgery,NHS LOGISTICS,1010102096,120.28,
Department of Health,Salisbury NHS Foundation Trust,30/08/2019,MEDSURGCONS-SUTURES,Surgery,NHS LOGISTICS,1010102096,61.42,
Department of Health,Salisbury NHS Foundation Trust,30/08/2019,ADULTS HEARING AIDS,Surgery,NHS LOGISTICS,1010102096,170,
Department of Health,Salisbury NHS Foundation Trust,30/08/2019,MEDSURGCONS-SUTURES,Surgery,NHS LOGISTICS,1010102096,64.01,
Department of Health,Salisbury NHS Foundation Trust,30/08/2019,ADULTS HEARING AIDS,Surgery,NHS LOGISTICS,1010102096,60,
Department of Health,Salisbury NHS Foundation Trust,30/08/2019,ADULTS HEARING AIDS,Surgery,NHS LOGISTICS,1010102096,60,
Department of Health,Salisbury NHS Foundation Trust,30/08/2019,DRESSINGS - PRE STERILE,Musculo-Skeletal,NHS LOGISTICS,1010102096,127.42,
Department of Health,Salisbury NHS Foundation Trust,30/08/2019,MEDSURGCONS-SUTURES,Surgery,NHS LOGISTICS,1010102096,64.01,
Department of Health,Salisbury NHS Foundation Trust,30/08/2019,PAPER GENERAL STATIONERY SUNDRIES,Corporate - Finance & Procurement,NHS LOGISTICS,1010102096,26.6,
Department of Health,Salisbury NHS Foundation Trust,30/08/2019,SURGICAL INSTRUMENTS - GENERAL,Surgery,NHS LOGISTICS,1010102096,80.5,
Department of Health,Salisbury NHS Foundation Trust,30/08/2019,M & S EQUIPELECTEQUIPINST - OTHER,Clinical Support,NHS LOGISTICS,1010102096,145,
Department of Health,Salisbury NHS Foundation Trust,30/08/2019,MED PROSTH - PACEMAKERS,Medicine,NHS LOGISTICS,1010102096,19800,
Department of Health,Salisbury NHS Foundation Trust,30/08/2019,HEALTHCARE - WEAR,Surgery,NHS LOGISTICS,1010102096,116.95,
Department of Health,Salisbury NHS Foundation Trust,30/08/2019,M & S EQUIPELECTEQUIPINST - OTHER,Surgery,NHS LOGISTICS,1010102096,110,
Department of Health,Salisbury NHS Foundation Trust,30/08/2019,PAPER GENERAL STATIONERY SUNDRIES,Facilities,NHS LOGISTICS,1010102096,37.15,
Department of Health,Salisbury NHS Foundation Trust,30/08/2019,LAB EQUIP-LABORATORY APPARATUS,Clinical Support,NHS LOGISTICS,1010102096,36.97,
Department of Health,Salisbury NHS Foundation Trust,30/08/2019,MEDSURGCONS-SUTURES,Surgery,NHS LOGISTICS,1010102096,147.14,
Department of Health,Salisbury NHS Foundation Trust,30/08/2019,MEDSURGCONS-SUTURES,Surgery,NHS LOGISTICS,1010102096,75.73,
Department of Health,Salisbury NHS Foundation Trust,30/08/2019,MEDSURGCONS-SUTURES,Surgery,NHS LOGISTICS,1010102096,77.12,
Department of Health,Salisbury NHS Foundation Trust,30/08/2019,DRESSINGS - PRE STERILE,Musculo-Skeletal,NHS LOGISTICS,1010102096,2.79,
Department of Health,Salisbury NHS Foundation Trust,30/08/2019,DRESSINGS - PRE STERILE,Musculo-Skeletal,NHS LOGISTICS,1010102096,47.79,
Department of Health,Salisbury NHS Foundation Trust,30/08/2019,PAPER GENERAL STATIONERY SUNDRIES,Surgery,NHS LOGISTICS,1010102096,7.43,
Department of Health,Salisbury NHS Foundation Trust,30/08/2019,MEDSURGCONS-OTHER,Corporate - Medical,NHS LOGISTICS,1010102096,45,
Department of Health,Salisbury NHS Foundation Trust,30/08/2019,SERVICES FROM NHS BODIES,Clinical Support,NHS LOGISTICS,1010102096,23.02,
Department of Health,Salisbury NHS Foundation Trust,30/08/2019,SURGICAL INSTRUMENTS - GENERAL,Surgery,NHS LOGISTICS,1010102096,69,
Department of Health,Salisbury NHS Foundation Trust,30/08/2019,MEDSURGCONS-OTHER,Clinical Support,NHS LOGISTICS,1010102096,35.8,
Department of Health,Salisbury NHS Foundation Trust,30/08/2019,ADULTS HEARING AIDS,Surgery,NHS LOGISTICS,1010102096,80.5,
Department of Health,Salisbury NHS Foundation Trust,30/08/2019,ADULTS HEARING AIDS,Surgery,NHS LOGISTICS,1010102096,42.5,
Department of Health,Salisbury NHS Foundation Trust,30/08/2019,ADULTS HEARING AIDS,Surgery,NHS LOGISTICS,1010102096,318,
Department of Health,Salisbury NHS Foundation Trust,30/08/2019,MEDSURGCONS-OTHER,Clinical Support,NHS LOGISTICS,1010102096,29.4,
Department of Health,Salisbury NHS Foundation Trust,30/08/2019,DRESSINGS  -  PROCEDURE PACKS,Clinical Support,NHS LOGISTICS,1010102096,89.13,
Department of Health,Salisbury NHS Foundation Trust,30/08/2019,M & S EQUIPELECTEQUIPINST - OTHER,Clinical Support,NHS LOGISTICS,1010102096,28,
Department of Health,Salisbury NHS Foundation Trust,30/08/2019,MEDSURGCONS-SUTURES,Clinical Support,NHS LOGISTICS,1010102096,30.51,
Department of Health,Salisbury NHS Foundation Trust,30/08/2019,ADULTS HEARING AIDS,Surgery,NHS LOGISTICS,1010102096,4732,
Department of Health,Salisbury NHS Foundation Trust,30/08/2019,ADULTS HEARING AIDS,Surgery,NHS LOGISTICS,1010102096,97.39,
Department of Health,Salisbury NHS Foundation Trust,30/08/2019,M & S EQUIPELECTEQUIPINST - OTHER,Clinical Support,NHS LOGISTICS,1010102096,629.43,
Department of Health,Salisbury NHS Foundation Trust,30/08/2019,MEDSURGCONS-OTHER,Clinical Support,NHS LOGISTICS,1010102096,360,
Department of Health,Salisbury NHS Foundation Trust,30/08/2019,M & S EQUIPELECTEQUIPINST - OTHER,Musculo-Skeletal,NHS LOGISTICS,1010102096,36.79,
Department of Health,Salisbury NHS Foundation Trust,30/08/2019,ADULTS HEARING AIDS,Surgery,NHS LOGISTICS,1010102096,1700,
Department of Health,Salisbury NHS Foundation Trust,30/08/2019,ADULTS HEARING AIDS,Surgery,NHS LOGISTICS,1010102096,35,
Department of Health,Salisbury NHS Foundation Trust,30/08/2019,ADULTS HEARING AIDS,Surgery,NHS LOGISTICS,1010102096,72,
Department of Health,Salisbury NHS Foundation Trust,30/08/2019,ADULTS HEARING AIDS,Surgery,NHS LOGISTICS,1010102096,72,
Department of Health,Salisbury NHS Foundation Trust,30/08/2019,ADULTS HEARING AIDS,Surgery,NHS LOGISTICS,1010102096,72,
Department of Health,Salisbury NHS Foundation Trust,30/08/2019,ADULTS HEARING AIDS,Surgery,NHS LOGISTICS,1010102096,72,
Department of Health,Salisbury NHS Foundation Trust,30/08/2019,ELECTRICAL EQUIPMENT,Clinical Support,NHS LOGISTICS,1010102096,49,
Department of Health,Salisbury NHS Foundation Trust,30/08/2019,LAB EQUIP-LABORATORY APPARATUS,Clinical Support,NHS LOGISTICS,1010102096,27.6,
Department of Health,Salisbury NHS Foundation Trust,30/08/2019,MEDSURGCONS-OTHER,Clinical Support,NHS LOGISTICS,1010102096,32,
Department of Health,Salisbury NHS Foundation Trust,30/08/2019,TISSUES HAND TOWELS & TOILET PAPER,Clinical Support,NHS LOGISTICS,1010102096,31.59,
Department of Health,Salisbury NHS Foundation Trust,30/08/2019,DRESSINGS - PRE STERILE,Clinical Support,NHS LOGISTICS,1010102096,0.74,
Department of Health,Salisbury NHS Foundation Trust,30/08/2019,OTHER MEDICAL SUPPLIES,Clinical Support,NHS LOGISTICS,1010102096,6.68,
Department of Health,Salisbury NHS Foundation Trust,30/08/2019,SURGICAL INSTRUMENTS - DISPOSABLE,Clinical Support,NHS LOGISTICS,1010102096,2.25,
Department of Health,Salisbury NHS Foundation Trust,30/08/2019,DRESSINGS - PRE STERILE,Clinical Support,NHS LOGISTICS,1010102096,1.44,
Department of Health,Salisbury NHS Foundation Trust,30/08/2019,NON DISPOSABLE BED LINEN,Clinical Support,NHS LOGISTICS,1010102096,5.64,
Department of Health,Salisbury NHS Foundation Trust,30/08/2019,DISPOSABLE THEATRE DRAPES WIPES,Clinical Support,NHS LOGISTICS,1010102096,5.44,
Department of Health,Salisbury NHS Foundation Trust,30/08/2019,M & S EQUIPELECTEQUIPINST - OTHER,Clinical Support,NHS LOGISTICS,1010102096,145,
Department of Health,Salisbury NHS Foundation Trust,30/08/2019,OTHER MEDICAL SUPPLIES,Medicine,NHS LOGISTICS,1010102096,23,
Department of Health,Salisbury NHS Foundation Trust,30/08/2019,DRESSINGS - PRE STERILE,Medicine,NHS LOGISTICS,1010102096,3.82,
Department of Health,Salisbury NHS Foundation Trust,30/08/2019,M & S EQUIPELECTEQUIPINST - OTHER,Medicine,NHS LOGISTICS,1010102096,6.76,
Department of Health,Salisbury NHS Foundation Trust,30/08/2019,DISPOSABLE THEATRE DRAPES WIPES,Medicine,NHS LOGISTICS,1010102096,1.73,
Department of Health,Salisbury NHS Foundation Trust,30/08/2019,TOILETRIES PERSONAL HYGIENE PRODUCT,Medicine,NHS LOGISTICS,1010102096,6.7,
Department of Health,Salisbury NHS Foundation Trust,30/08/2019,TISSUES HAND TOWELS & TOILET PAPER,Medicine,NHS LOGISTICS,1010102096,3.66,
Department of Health,Salisbury NHS Foundation Trust,30/08/2019,PATIENTS INCONTINENCE,Medicine,NHS LOGISTICS,1010102096,9.44,
Department of Health,Salisbury NHS Foundation Trust,30/08/2019,MEDSURGCONS-OTHER,Medicine,NHS LOGISTICS,1010102096,26.65,
Department of Health,Salisbury NHS Foundation Trust,30/08/2019,MEDSURGCONS-OTHER,Medicine,NHS LOGISTICS,1010102096,3.38,
Department of Health,Salisbury NHS Foundation Trust,30/08/2019,MEDSURGCONS-OTHER,Medicine,NHS LOGISTICS,1010102096,2.39,
Department of Health,Salisbury NHS Foundation Trust,30/08/2019,DRESSINGS - PRE STERILE,Medicine,NHS LOGISTICS,1010102096,2.22,
Department of Health,Salisbury NHS Foundation Trust,30/08/2019,MEDSURGCONS-OTHER,Medicine,NHS LOGISTICS,1010102096,5,
Department of Health,Salisbury NHS Foundation Trust,30/08/2019,MEDSURGCONS-OTHER,Medicine,NHS LOGISTICS,1010102096,7.65,
Department of Health,Salisbury NHS Foundation Trust,30/08/2019,OTHER MEDICAL SUPPLIES,Medicine,NHS LOGISTICS,1010102096,7.12,
Department of Health,Salisbury NHS Foundation Trust,30/08/2019,OTHER MEDICAL SUPPLIES,Medicine,NHS LOGISTICS,1010102096,1.34,
Department of Health,Salisbury NHS Foundation Trust,30/08/2019,SURGICAL INSTRUMENTS - DISPOSABLE,Medicine,NHS LOGISTICS,1010102096,2.25,
Department of Health,Salisbury NHS Foundation Trust,30/08/2019,PATIENTS INCONTINENCE,Medicine,NHS LOGISTICS,1010102096,33.72,
Department of Health,Salisbury NHS Foundation Trust,30/08/2019,PATIENTS INCONTINENCE,Medicine,NHS LOGISTICS,1010102096,2.25,
Department of Health,Salisbury NHS Foundation Trust,30/08/2019,PATIENT APPLIANCES,Medicine,NHS LOGISTICS,1010102096,2.75,
Department of Health,Salisbury NHS Foundation Trust,30/08/2019,DRESSINGS - PRE STERILE,Medicine,NHS LOGISTICS,1010102096,2.04,
Department of Health,Salisbury NHS Foundation Trust,30/08/2019,MEDSURGCONS-OTHER,Medicine,NHS LOGISTICS,1010102096,3.53,
Department of Health,Salisbury NHS Foundation Trust,30/08/2019,TISSUES HAND TOWELS & TOILET PAPER,Medicine,NHS LOGISTICS,1010102096,0.6,
Department of Health,Salisbury NHS Foundation Trust,30/08/2019,MEDSURGCONS-OTHER,Medicine,NHS LOGISTICS,1010102096,4.76,
Department of Health,Salisbury NHS Foundation Trust,30/08/2019,DISPOSABLE THEATRE DRAPES WIPES,Medicine,NHS LOGISTICS,1010102096,5.44,
Department of Health,Salisbury NHS Foundation Trust,30/08/2019,DISPOSABLE THEATRE DRAPES WIPES,Medicine,NHS LOGISTICS,1010102096,21.2,
Department of Health,Salisbury NHS Foundation Trust,30/08/2019,DISPOSABLE THEATRE DRAPES WIPES,Medicine,NHS LOGISTICS,1010102096,3.13,
Department of Health,Salisbury NHS Foundation Trust,30/08/2019,TISSUES HAND TOWELS & TOILET PAPER,Surgery,NHS LOGISTICS,1010102096,4.88,
Department of Health,Salisbury NHS Foundation Trust,30/08/2019,OTHER MEDICAL SUPPLIES,Medicine,NHS LOGISTICS,1010102096,41,
Department of Health,Salisbury NHS Foundation Trust,30/08/2019,DRESSINGS - PRE STERILE,Medicine,NHS LOGISTICS,1010102096,0.68,
Department of Health,Salisbury NHS Foundation Trust,30/08/2019,ELECTRICAL EQUIPMENT,Medicine,NHS LOGISTICS,1010102096,1.48,
Department of Health,Salisbury NHS Foundation Trust,30/08/2019,DISPOSABLE THEATRE DRAPES WIPES,Medicine,NHS LOGISTICS,1010102096,1.73,
Department of Health,Salisbury NHS Foundation Trust,30/08/2019,TISSUES HAND TOWELS & TOILET PAPER,Medicine,NHS LOGISTICS,1010102096,0.6,
Department of Health,Salisbury NHS Foundation Trust,30/08/2019,PATIENTS INCONTINENCE,Medicine,NHS LOGISTICS,1010102096,4.72,
Department of Health,Salisbury NHS Foundation Trust,30/08/2019,MEDSURGCONS-OTHER,Medicine,NHS LOGISTICS,1010102096,44.9,
Department of Health,Salisbury NHS Foundation Trust,30/08/2019,MEDSURGCONS-OTHER,Medicine,NHS LOGISTICS,1010102096,3.38,
Department of Health,Salisbury NHS Foundation Trust,30/08/2019,MEDSURGCONS-OTHER,Medicine,NHS LOGISTICS,1010102096,5.43,
Department of Health,Salisbury NHS Foundation Trust,30/08/2019,DRESSINGS - PRE STERILE,Medicine,NHS LOGISTICS,1010102096,0.74,
Department of Health,Salisbury NHS Foundation Trust,30/08/2019,ANAESTHETIC EQUIPMENT ACCESSORIES,Medicine,NHS LOGISTICS,1010102096,1.44,
Department of Health,Salisbury NHS Foundation Trust,30/08/2019,MEDSURGCONS-OTHER,Medicine,NHS LOGISTICS,1010102096,10,
Department of Health,Salisbury NHS Foundation Trust,30/08/2019,MEDSURGCONS-OTHER,Medicine,NHS LOGISTICS,1010102096,10.2,
Department of Health,Salisbury NHS Foundation Trust,30/08/2019,OTHER MEDICAL SUPPLIES,Medicine,NHS LOGISTICS,1010102096,1.34,
Department of Health,Salisbury NHS Foundation Trust,30/08/2019,PATIENTS INCONTINENCE,Medicine,NHS LOGISTICS,1010102096,16.86,
Department of Health,Salisbury NHS Foundation Trust,30/08/2019,TOILETRIES PERSONAL HYGIENE PRODUCT,Medicine,NHS LOGISTICS,1010102096,2.88,
Department of Health,Salisbury NHS Foundation Trust,30/08/2019,DRESSINGS - PRE STERILE,Medicine,NHS LOGISTICS,1010102096,2.04,
Department of Health,Salisbury NHS Foundation Trust,30/08/2019,MEDSURGCONS-OTHER,Medicine,NHS LOGISTICS,1010102096,6.16,
Department of Health,Salisbury NHS Foundation Trust,30/08/2019,MEDSURGCONS-OTHER,Medicine,NHS LOGISTICS,1010102096,6.4,
Department of Health,Salisbury NHS Foundation Trust,30/08/2019,TISSUES HAND TOWELS & TOILET PAPER,Medicine,NHS LOGISTICS,1010102096,0.6,
Department of Health,Salisbury NHS Foundation Trust,30/08/2019,DISPOSABLE THEATRE DRAPES WIPES,Medicine,NHS LOGISTICS,1010102096,21.2,
Department of Health,Salisbury NHS Foundation Trust,30/08/2019,OTHER MEDICAL SUPPLIES,Medicine,NHS LOGISTICS,1010102096,18.4,
Department of Health,Salisbury NHS Foundation Trust,30/08/2019,DRESSINGS - PRE STERILE,Medicine,NHS LOGISTICS,1010102096,3.82,
Department of Health,Salisbury NHS Foundation Trust,30/08/2019,DISPOSABLE THEATRE DRAPES WIPES,Medicine,NHS LOGISTICS,1010102096,3.46,
Department of Health,Salisbury NHS Foundation Trust,30/08/2019,TISSUES HAND TOWELS & TOILET PAPER,Medicine,NHS LOGISTICS,1010102096,2.44,
Department of Health,Salisbury NHS Foundation Trust,30/08/2019,CLEANING MATERIAL PRODUCTS SUNDRIES,Medicine,NHS LOGISTICS,1010102096,6.6,
Department of Health,Salisbury NHS Foundation Trust,30/08/2019,DRESSINGS - PRE STERILE,Medicine,NHS LOGISTICS,1010102096,1.45,
Department of Health,Salisbury NHS Foundation Trust,30/08/2019,M & S EQUIPELECTEQUIPINST - OTHER,Medicine,NHS LOGISTICS,1010102096,11.76,
Department of Health,Salisbury NHS Foundation Trust,30/08/2019,MEDSURGCONS-OTHER,Medicine,NHS LOGISTICS,1010102096,5.43,
Department of Health,Salisbury NHS Foundation Trust,30/08/2019,MEDSURGCONS-OTHER,Medicine,NHS LOGISTICS,1010102096,2.39,
Department of Health,Salisbury NHS Foundation Trust,30/08/2019,DRESSINGS - PRE STERILE,Medicine,NHS LOGISTICS,1010102096,0.74,
Department of Health,Salisbury NHS Foundation Trust,30/08/2019,MEDSURGCONS-OTHER,Medicine,NHS LOGISTICS,1010102096,20,
Department of Health,Salisbury NHS Foundation Trust,30/08/2019,OTHER MEDICAL SUPPLIES,Medicine,NHS LOGISTICS,1010102096,7.12,
Department of Health,Salisbury NHS Foundation Trust,30/08/2019,OTHER MEDICAL SUPPLIES,Medicine,NHS LOGISTICS,1010102096,1.34,
Department of Health,Salisbury NHS Foundation Trust,30/08/2019,SURGICAL INSTRUMENTS - DISPOSABLE,Medicine,NHS LOGISTICS,1010102096,2.25,
Department of Health,Salisbury NHS Foundation Trust,30/08/2019,PATIENTS INCONTINENCE,Medicine,NHS LOGISTICS,1010102096,22.48,
Department of Health,Salisbury NHS Foundation Trust,30/08/2019,PATIENT APPLIANCES,Medicine,NHS LOGISTICS,1010102096,5.5,
Department of Health,Salisbury NHS Foundation Trust,30/08/2019,PATIENT APPLIANCES,Medicine,NHS LOGISTICS,1010102096,5.5,
Department of Health,Salisbury NHS Foundation Trust,30/08/2019,PATIENT APPLIANCES,Medicine,NHS LOGISTICS,1010102096,3.6,
Department of Health,Salisbury NHS Foundation Trust,30/08/2019,TOILETRIES PERSONAL HYGIENE PRODUCT,Medicine,NHS LOGISTICS,1010102096,2.88,
Department of Health,Salisbury NHS Foundation Trust,30/08/2019,DRESSINGS - PRE STERILE,Medicine,NHS LOGISTICS,1010102096,4.08,
Department of Health,Salisbury NHS Foundation Trust,30/08/2019,DRESSINGS - PRE STERILE,Medicine,NHS LOGISTICS,1010102096,1.12,
Department of Health,Salisbury NHS Foundation Trust,30/08/2019,MEDSURGCONS-OTHER,Medicine,NHS LOGISTICS,1010102096,12.8,
Department of Health,Salisbury NHS Foundation Trust,30/08/2019,TISSUES HAND TOWELS & TOILET PAPER,Medicine,NHS LOGISTICS,1010102096,0.6,
Department of Health,Salisbury NHS Foundation Trust,30/08/2019,MEDSURGCONS-OTHER,Medicine,NHS LOGISTICS,1010102096,0.76,
Department of Health,Salisbury NHS Foundation Trust,30/08/2019,TUBES,Medicine,NHS LOGISTICS,1010102096,2.74,
Department of Health,Salisbury NHS Foundation Trust,30/08/2019,DRESSINGS - PRE STERILE,Medicine,NHS LOGISTICS,1010102096,3.83,
Department of Health,Salisbury NHS Foundation Trust,30/08/2019,PATIENT APPLIANCES,Medicine,NHS LOGISTICS,1010102096,6.7,
Department of Health,Salisbury NHS Foundation Trust,30/08/2019,DISPOSABLE THEATRE DRAPES WIPES,Medicine,NHS LOGISTICS,1010102096,2.93,
Department of Health,Salisbury NHS Foundation Trust,30/08/2019,DISPOSABLE THEATRE DRAPES WIPES,Medicine,NHS LOGISTICS,1010102096,31.8,
Department of Health,Salisbury NHS Foundation Trust,30/08/2019,PAPER GENERAL STATIONERY SUNDRIES,Musculo-Skeletal,NHS LOGISTICS,1010102096,22.29,
Department of Health,Salisbury NHS Foundation Trust,30/08/2019,PAPER GENERAL STATIONERY SUNDRIES,Surgery,NHS LOGISTICS,1010102096,37.15,
Department of Health,Salisbury NHS Foundation Trust,30/08/2019,BAGS SACKS - OTHER,Facilities,NHS LOGISTICS,1010102096,124.8,
Department of Health,Salisbury NHS Foundation Trust,30/08/2019,BAGS SACKS - OTHER,Facilities,NHS LOGISTICS,1010102096,12.18,
Department of Health,Salisbury NHS Foundation Trust,30/08/2019,TOILETRIES PERSONAL HYGIENE PRODUCT,Facilities,NHS LOGISTICS,1010102096,216,
Department of Health,Salisbury NHS Foundation Trust,30/08/2019,LIQUID REFRESHMENTS,Facilities,NHS LOGISTICS,1010102096,5.4,
Department of Health,Salisbury NHS Foundation Trust,30/08/2019,CLEANING MATERIAL PRODUCTS SUNDRIES,Facilities,NHS LOGISTICS,1010102096,36.48,
Department of Health,Salisbury NHS Foundation Trust,30/08/2019,MEDSURGCONS-OTHER,Facilities,NHS LOGISTICS,1010102096,35.8,
Department of Health,Salisbury NHS Foundation Trust,30/08/2019,M & S EQUIPELECTEQUIPINST - OTHER,Facilities,NHS LOGISTICS,1010102096,117.6,
Department of Health,Salisbury NHS Foundation Trust,30/08/2019,BAGS SACKS - OTHER,Facilities,NHS LOGISTICS,1010102096,19.76,
Department of Health,Salisbury NHS Foundation Trust,30/08/2019,CLEANING MATERIAL PRODUCTS SUNDRIES,Facilities,NHS LOGISTICS,1010102096,63.72,
Department of Health,Salisbury NHS Foundation Trust,30/08/2019,TISSUES HAND TOWELS & TOILET PAPER,Facilities,NHS LOGISTICS,1010102096,757.92,
Department of Health,Salisbury NHS Foundation Trust,30/08/2019,CLEANING MATERIAL PRODUCTS SUNDRIES,Facilities,NHS LOGISTICS,1010102096,20.5,
Department of Health,Salisbury NHS Foundation Trust,30/08/2019,DISPOSABLE THEATRE DRAPES WIPES,Facilities,NHS LOGISTICS,1010102096,73.92,
Department of Health,Salisbury NHS Foundation Trust,30/08/2019,STATIONERY SUNDRIES,Facilities,NHS LOGISTICS,1010102096,11.3,
Department of Health,Salisbury NHS Foundation Trust,30/08/2019,M & S EQUIPELECTEQUIPINST - OTHER,Surgery,NHS LOGISTICS,1010102096,368,
Department of Health,Salisbury NHS Foundation Trust,30/08/2019,LAB EQUIP-LABORATORY APPARATUS,Clinical Support,NHS LOGISTICS,1010102096,22.1,
Department of Health,Salisbury NHS Foundation Trust,30/08/2019,ELECTRICAL EQUIPMENT,Medicine,NHS LOGISTICS,1010102096,8.88,
Department of Health,Salisbury NHS Foundation Trust,30/08/2019,OTHER MEDICAL SUPPLIES,Medicine,NHS LOGISTICS,1010102096,41,
Department of Health,Salisbury NHS Foundation Trust,30/08/2019,DRESSINGS - PRE STERILE,Medicine,NHS LOGISTICS,1010102096,0.68,
Department of Health,Salisbury NHS Foundation Trust,30/08/2019,TOILETRIES PERSONAL HYGIENE PRODUCT,Medicine,NHS LOGISTICS,1010102096,13.4,
Department of Health,Salisbury NHS Foundation Trust,30/08/2019,TISSUES HAND TOWELS & TOILET PAPER,Medicine,NHS LOGISTICS,1010102096,1.22,
Department of Health,Salisbury NHS Foundation Trust,30/08/2019,MEDSURGCONS-OTHER,Medicine,NHS LOGISTICS,1010102096,44.9,
Department of Health,Salisbury NHS Foundation Trust,30/08/2019,MEDSURGCONS-OTHER,Medicine,NHS LOGISTICS,1010102096,3.38,
Department of Health,Salisbury NHS Foundation Trust,30/08/2019,MEDSURGCONS-OTHER,Medicine,NHS LOGISTICS,1010102096,5.43,
Department of Health,Salisbury NHS Foundation Trust,30/08/2019,OTHER MEDICAL SUPPLIES,Medicine,NHS LOGISTICS,1010102096,3,
Department of Health,Salisbury NHS Foundation Trust,30/08/2019,MEDSURGCONS-OTHER,Medicine,NHS LOGISTICS,1010102096,10,
Department of Health,Salisbury NHS Foundation Trust,30/08/2019,MEDSURGCONS-OTHER,Medicine,NHS LOGISTICS,1010102096,5.1,
Department of Health,Salisbury NHS Foundation Trust,30/08/2019,OTHER MEDICAL SUPPLIES,Medicine,NHS LOGISTICS,1010102096,1.34,
Department of Health,Salisbury NHS Foundation Trust,30/08/2019,PATIENTS INCONTINENCE,Medicine,NHS LOGISTICS,1010102096,16.86,
Department of Health,Salisbury NHS Foundation Trust,30/08/2019,PATIENT APPLIANCES,Medicine,NHS LOGISTICS,1010102096,2.75,
Department of Health,Salisbury NHS Foundation Trust,30/08/2019,PATIENT APPLIANCES,Medicine,NHS LOGISTICS,1010102096,2.75,
Department of Health,Salisbury NHS Foundation Trust,30/08/2019,PATIENT APPLIANCES,Medicine,NHS LOGISTICS,1010102096,3.6,
Department of Health,Salisbury NHS Foundation Trust,30/08/2019,MEDSURGCONS-OTHER,Medicine,NHS LOGISTICS,1010102096,6.16,
Department of Health,Salisbury NHS Foundation Trust,30/08/2019,MEDSURGCONS-OTHER,Medicine,NHS LOGISTICS,1010102096,6.4,
Department of Health,Salisbury NHS Foundation Trust,30/08/2019,MEDSURGCONS-OTHER,Medicine,NHS LOGISTICS,1010102096,1.2,
Department of Health,Salisbury NHS Foundation Trust,30/08/2019,DISPOSABLE THEATRE DRAPES WIPES,Medicine,NHS LOGISTICS,1010102096,2.93,
Department of Health,Salisbury NHS Foundation Trust,30/08/2019,DISPOSABLE THEATRE DRAPES WIPES,Medicine,NHS LOGISTICS,1010102096,21.2,
Department of Health,Salisbury NHS Foundation Trust,30/08/2019,DISPOSABLE THEATRE DRAPES WIPES,Medicine,NHS LOGISTICS,1010102096,12.24,
Department of Health,Salisbury NHS Foundation Trust,30/08/2019,DRESSINGS - PRE STERILE,Medicine,NHS LOGISTICS,1010102096,116.25,
Department of Health,Salisbury NHS Foundation Trust,30/08/2019,DRESSINGS - PRE STERILE,Musculo-Skeletal,NHS LOGISTICS,1010102096,10.46,
Department of Health,Salisbury NHS Foundation Trust,30/08/2019,TISSUES HAND TOWELS & TOILET PAPER,Musculo-Skeletal,NHS LOGISTICS,1010102096,6.1,
Department of Health,Salisbury NHS Foundation Trust,30/08/2019,TISSUES HAND TOWELS & TOILET PAPER,Musculo-Skeletal,NHS LOGISTICS,1010102096,0.3,
Department of Health,Salisbury NHS Foundation Trust,30/08/2019,SURGICAL INSTRUMENTS - GENERAL,Musculo-Skeletal,NHS LOGISTICS,1010102096,2.6,
Department of Health,Salisbury NHS Foundation Trust,30/08/2019,DRESSINGS - PRE STERILE,Musculo-Skeletal,NHS LOGISTICS,1010102096,1.48,
Department of Health,Salisbury NHS Foundation Trust,30/08/2019,DISPOSABLE THEATRE DRAPES WIPES,Musculo-Skeletal,NHS LOGISTICS,1010102096,2.72,
Department of Health,Salisbury NHS Foundation Trust,30/08/2019,DISPOSABLE THEATRE DRAPES WIPES,Musculo-Skeletal,NHS LOGISTICS,1010102096,3.13,
Department of Health,Salisbury NHS Foundation Trust,30/08/2019,MEDSURGCONS-SUTURES,Musculo-Skeletal,NHS LOGISTICS,1010102096,62.95,
Department of Health,Salisbury NHS Foundation Trust,30/08/2019,OTHER MEDICAL SUPPLIES,Clinical Support,NHS LOGISTICS,1010102096,18.42,
Department of Health,Salisbury NHS Foundation Trust,30/08/2019,OTHER MEDICAL SUPPLIES,Clinical Support,NHS LOGISTICS,1010102096,71.24,
Department of Health,Salisbury NHS Foundation Trust,30/08/2019,TISSUES HAND TOWELS & TOILET PAPER,Clinical Support,NHS LOGISTICS,1010102096,0.9,
Department of Health,Salisbury NHS Foundation Trust,30/08/2019,M & S EQUIPELECTEQUIPINST - OTHER,Clinical Support,NHS LOGISTICS,1010102096,11.76,
Department of Health,Salisbury NHS Foundation Trust,30/08/2019,MEDSURGCONS-OTHER,Clinical Support,NHS LOGISTICS,1010102096,5.43,
Department of Health,Salisbury NHS Foundation Trust,30/08/2019,MEDSURGCONS-OTHER,Clinical Support,NHS LOGISTICS,1010102096,5,
Department of Health,Salisbury NHS Foundation Trust,30/08/2019,OTHER MEDICAL SUPPLIES,Clinical Support,NHS LOGISTICS,1010102096,6.63,
Department of Health,Salisbury NHS Foundation Trust,30/08/2019,OTHER MEDICAL SUPPLIES,Clinical Support,NHS LOGISTICS,1010102096,1.34,
Department of Health,Salisbury NHS Foundation Trust,30/08/2019,MEDSURGCONS-OTHER,Clinical Support,NHS LOGISTICS,1010102096,77.8,
Department of Health,Salisbury NHS Foundation Trust,30/08/2019,MEDSURGCONS-OTHER,Clinical Support,NHS LOGISTICS,1010102096,0.76,
Department of Health,Salisbury NHS Foundation Trust,30/08/2019,NON DISPOSABLE BED LINEN,Clinical Support,NHS LOGISTICS,1010102096,2.82,
Department of Health,Salisbury NHS Foundation Trust,30/08/2019,DRUGS,Clinical Support,NHS LOGISTICS,1010102096,9.5,
Department of Health,Salisbury NHS Foundation Trust,30/08/2019,DRUGS,Clinical Support,NHS LOGISTICS,1010102096,2.9,
Department of Health,Salisbury NHS Foundation Trust,30/08/2019,OTHER MEDICAL SUPPLIES,Medicine,NHS LOGISTICS,1010102096,101,
Department of Health,Salisbury NHS Foundation Trust,30/08/2019,OTHER MEDICAL SUPPLIES,Medicine,NHS LOGISTICS,1010102096,48.5,
Department of Health,Salisbury NHS Foundation Trust,30/08/2019,TISSUES HAND TOWELS & TOILET PAPER,Medicine,NHS LOGISTICS,1010102096,1.22,
Department of Health,Salisbury NHS Foundation Trust,30/08/2019,OTHER MEDICAL SUPPLIES,Medicine,NHS LOGISTICS,1010102096,2.85,
Department of Health,Salisbury NHS Foundation Trust,30/08/2019,OTHER MEDICAL SUPPLIES,Medicine,NHS LOGISTICS,1010102096,18.4,
Department of Health,Salisbury NHS Foundation Trust,30/08/2019,MEDSURGCONS-OTHER,Medicine,NHS LOGISTICS,1010102096,3.38,
Department of Health,Salisbury NHS Foundation Trust,30/08/2019,MEDSURGCONS-OTHER,Medicine,NHS LOGISTICS,1010102096,1.5,
Department of Health,Salisbury NHS Foundation Trust,30/08/2019,MEDSURGCONS-OTHER,Medicine,NHS LOGISTICS,1010102096,2.55,
Department of Health,Salisbury NHS Foundation Trust,30/08/2019,OTHER MEDICAL SUPPLIES,Medicine,NHS LOGISTICS,1010102096,1.34,
Department of Health,Salisbury NHS Foundation Trust,30/08/2019,PATIENTS INCONTINENCE,Medicine,NHS LOGISTICS,1010102096,2.54,
Department of Health,Salisbury NHS Foundation Trust,30/08/2019,MEDSURGCONS-OTHER,Medicine,NHS LOGISTICS,1010102096,6.4,
Department of Health,Salisbury NHS Foundation Trust,30/08/2019,MEDSURGCONS-OTHER,Medicine,NHS LOGISTICS,1010102096,2.39,
Department of Health,Salisbury NHS Foundation Trust,09/08/2019,HARD/SOFTWARE-CONTRACTS,Corporate - Transformation & Informatics,NAUTILUS CONSULTING LIMITED,INV-1084,30500,
Department of Health,Salisbury NHS Foundation Trust,09/08/2019,M&S EQUIPMENT - OTHER,Clinical Support,COBALT HEALTH,45533,26571.43,
Department of Health,Salisbury NHS Foundation Trust,30/08/2019,SOFT FURNISHINGS,Surgery,NHS LOGISTICS,1010102096,126,
Department of Health,Salisbury NHS Foundation Trust,30/08/2019,SURGICAL INSTRUMENTS - GENERAL,Musculo-Skeletal,NHS LOGISTICS,1010102096,68.53,
Department of Health,Salisbury NHS Foundation Trust,30/08/2019,SURGICAL INSTRUMENTS - GENERAL,Musculo-Skeletal,NHS LOGISTICS,1010102096,267.54,
Department of Health,Salisbury NHS Foundation Trust,30/08/2019,SURGICAL INSTRUMENTS - GENERAL,Musculo-Skeletal,NHS LOGISTICS,1010102096,267.54,
Department of Health,Salisbury NHS Foundation Trust,30/08/2019,ELECTRICAL EQUIPMENT,Clinical Support,NHS LOGISTICS,1010102096,2.96,
Department of Health,Salisbury NHS Foundation Trust,30/08/2019,PAPER GENERAL STATIONERY SUNDRIES,Corporate - OD and People,NHS LOGISTICS,1010102096,13.3,
Department of Health,Salisbury NHS Foundation Trust,30/08/2019,OPTICAL - OTHER,Surgery,NHS LOGISTICS,1010102096,180,
Department of Health,Salisbury NHS Foundation Trust,30/08/2019,PAPER GENERAL STATIONERY SUNDRIES,Corporate - Transformation & Informatics,NHS LOGISTICS,1010102096,14.86,
Department of Health,Salisbury NHS Foundation Trust,30/08/2019,PAPER GENERAL STATIONERY SUNDRIES,Corporate - Transformation & Informatics,NHS LOGISTICS,1010102096,59.36,
Department of Health,Salisbury NHS Foundation Trust,30/08/2019,CONTOUTSERVICES - OTHER,Clinical Support,NHS LOGISTICS,1010102096,10.05,
Department of Health,Salisbury NHS Foundation Trust,30/08/2019,MEDSURGCONS-SUTURES,Musculo-Skeletal,NHS LOGISTICS,1010102096,55,
Department of Health,Salisbury NHS Foundation Trust,30/08/2019,SURGICAL INSTRUMENTS - DISPOSABLE,Musculo-Skeletal,NHS LOGISTICS,1010102096,79.2,
Department of Health,Salisbury NHS Foundation Trust,30/08/2019,M & S EQUIPELECTEQUIPINST - OTHER,Clinical Support,NHS LOGISTICS,1010102096,72.5,
Department of Health,Salisbury NHS Foundation Trust,30/08/2019,ANAESTHETIC EQUIPMENT ACCESSORIES,Medicine,NHS LOGISTICS,1010102096,0.96,
Department of Health,Salisbury NHS Foundation Trust,30/08/2019,BAGS SACKS - OTHER,Facilities,NHS LOGISTICS,1010102096,24.24,
Department of Health,Salisbury NHS Foundation Trust,30/08/2019,MEDSURGCONS-SUTURES,Musculo-Skeletal,NHS LOGISTICS,1010102096,71.24,
Department of Health,Salisbury NHS Foundation Trust,30/08/2019,LAB EQUIP-LABORATORY APPARATUS,Corporate - Medical,NHS LOGISTICS,1010102096,11.6,
Department of Health,Salisbury NHS Foundation Trust,30/08/2019,DISPOSABLE THEATRE DRAPES WIPES,Corporate - Medical,NHS LOGISTICS,1010102096,5.44,
Department of Health,Salisbury NHS Foundation Trust,30/08/2019,DISPOSABLE THEATRE DRAPES WIPES,Corporate - Medical,NHS LOGISTICS,1010102096,21.2,
Department of Health,Salisbury NHS Foundation Trust,30/08/2019,COOKING & KITCHEN UTENSILS,Clinical Support,NHS LOGISTICS,1010102096,6.06,
Department of Health,Salisbury NHS Foundation Trust,30/08/2019,DRESSINGS - PRE STERILE,Surgery,NHS LOGISTICS,1010102096,21,
Department of Health,Salisbury NHS Foundation Trust,30/08/2019,DRESSINGS - PRE STERILE,Surgery,NHS LOGISTICS,1010102096,14.3,
Department of Health,Salisbury NHS Foundation Trust,30/08/2019,DRESSINGS - PRE STERILE,Surgery,NHS LOGISTICS,1010102096,14.5,
Department of Health,Salisbury NHS Foundation Trust,30/08/2019,DRESSINGS - PRE STERILE,Surgery,NHS LOGISTICS,1010102096,23.5,
Department of Health,Salisbury NHS Foundation Trust,30/08/2019,M & S EQUIPELECTEQUIPINST - OTHER,Clinical Support,NHS LOGISTICS,1010102096,26.74,
Department of Health,Salisbury NHS Foundation Trust,30/08/2019,DRESSINGS - PRE STERILE,Surgery,NHS LOGISTICS,1010102096,3.57,
Department of Health,Salisbury NHS Foundation Trust,30/08/2019,ANAESTHETIC EQUIPMENT ACCESSORIES,Musculo-Skeletal,NHS LOGISTICS,1010102096,25,
Department of Health,Salisbury NHS Foundation Trust,30/08/2019,HEARING AIDS SPARES,Surgery,NHS LOGISTICS,1010102096,40.5,
Department of Health,Salisbury NHS Foundation Trust,30/08/2019,HEARING AIDS SPARES,Surgery,NHS LOGISTICS,1010102096,40.5,
Department of Health,Salisbury NHS Foundation Trust,30/08/2019,HEARING AIDS SPARES,Surgery,NHS LOGISTICS,1010102096,81,
Department of Health,Salisbury NHS Foundation Trust,30/08/2019,HEARING AIDS SPARES,Surgery,NHS LOGISTICS,1010102096,460,
Department of Health,Salisbury NHS Foundation Trust,30/08/2019,HEARING AIDS SPARES,Surgery,NHS LOGISTICS,1010102096,48.96,
Department of Health,Salisbury NHS Foundation Trust,30/08/2019,HEARING AIDS SPARES,Surgery,NHS LOGISTICS,1010102096,48.96,
Department of Health,Salisbury NHS Foundation Trust,30/08/2019,HEARING AIDS SPARES,Surgery,NHS LOGISTICS,1010102096,48.96,
Department of Health,Salisbury NHS Foundation Trust,30/08/2019,HEARING AIDS SPARES,Surgery,NHS LOGISTICS,1010102096,48.96,
Department of Health,Salisbury NHS Foundation Trust,30/08/2019,HEARING AIDS SPARES,Surgery,NHS LOGISTICS,1010102096,48.96,
Department of Health,Salisbury NHS Foundation Trust,30/08/2019,HEARING AIDS SPARES,Surgery,NHS LOGISTICS,1010102096,48.96,
Department of Health,Salisbury NHS Foundation Trust,30/08/2019,PATIENTS BABY WEAR,Medicine,NHS LOGISTICS,1010102096,19.98,
Department of Health,Salisbury NHS Foundation Trust,30/08/2019,PATIENTS BABY WEAR,Medicine,NHS LOGISTICS,1010102096,18.51,
Department of Health,Salisbury NHS Foundation Trust,30/08/2019,PATIENTS BABY WEAR,Medicine,NHS LOGISTICS,1010102096,11.88,
Department of Health,Salisbury NHS Foundation Trust,30/08/2019,BAGS SACKS - OTHER,Medicine,NHS LOGISTICS,1010102096,3.2,
Department of Health,Salisbury NHS Foundation Trust,30/08/2019,NON DISPOSABLE BED LINEN,Medicine,NHS LOGISTICS,1010102096,11.28,
Department of Health,Salisbury NHS Foundation Trust,30/08/2019,NON DISPOSABLE BED LINEN,Medicine,NHS LOGISTICS,1010102096,16.92,
Department of Health,Salisbury NHS Foundation Trust,30/08/2019,NON DISPOSABLE BED LINEN,Medicine,NHS LOGISTICS,1010102096,11.28,
Department of Health,Salisbury NHS Foundation Trust,30/08/2019,PAPER GENERAL STATIONERY SUNDRIES,Clinical Support,NHS LOGISTICS,1010102096,29.72,
Department of Health,Salisbury NHS Foundation Trust,30/08/2019,DENTAL SURGERY SUNDRIES,Medicine,NHS LOGISTICS,1010102096,2.52,
Department of Health,Salisbury NHS Foundation Trust,30/08/2019,NON DISPOSABLE BED LINEN,Medicine,NHS LOGISTICS,1010102096,5.64,
Department of Health,Salisbury NHS Foundation Trust,30/08/2019,PATIENTS BABY WEAR,Medicine,NHS LOGISTICS,1010102096,26.64,
Department of Health,Salisbury NHS Foundation Trust,30/08/2019,PATIENTS BABY WEAR,Medicine,NHS LOGISTICS,1010102096,24.68,
Department of Health,Salisbury NHS Foundation Trust,30/08/2019,PATIENTS BABY WEAR,Medicine,NHS LOGISTICS,1010102096,19.98,
Department of Health,Salisbury NHS Foundation Trust,30/08/2019,PATIENTS BABY WEAR,Medicine,NHS LOGISTICS,1010102096,12.34,
Department of Health,Salisbury NHS Foundation Trust,30/08/2019,BEVERAGES & AMBIENT FOOD,Medicine,NHS LOGISTICS,1010102096,7.8,
Department of Health,Salisbury NHS Foundation Trust,30/08/2019,BEVERAGES & AMBIENT FOOD,Medicine,NHS LOGISTICS,1010102096,1.94,
Department of Health,Salisbury NHS Foundation Trust,30/08/2019,BEVERAGES & AMBIENT FOOD,Medicine,NHS LOGISTICS,1010102096,1.56,
Department of Health,Salisbury NHS Foundation Trust,30/08/2019,BEVERAGES & AMBIENT FOOD,Medicine,NHS LOGISTICS,1010102096,2.16,
Department of Health,Salisbury NHS Foundation Trust,30/08/2019,BEVERAGES & AMBIENT FOOD,Medicine,NHS LOGISTICS,1010102096,3,
Department of Health,Salisbury NHS Foundation Trust,30/08/2019,BAGS SACKS - OTHER,Clinical Support,NHS LOGISTICS,1010102096,10.24,
Department of Health,Salisbury NHS Foundation Trust,30/08/2019,DRESSINGS  -  PROCEDURE PACKS,Musculo-Skeletal,NHS LOGISTICS,1010102096,0.5,
Department of Health,Salisbury NHS Foundation Trust,30/08/2019,DRESSINGS - PRE STERILE,Clinical Support,NHS LOGISTICS,1010102096,5.44,
Department of Health,Salisbury NHS Foundation Trust,30/08/2019,DRESSINGS - PRE STERILE,Clinical Support,NHS LOGISTICS,1010102096,4.35,
Department of Health,Salisbury NHS Foundation Trust,30/08/2019,DISPOSABLE THEATRE DRAPES WIPES,Clinical Support,NHS LOGISTICS,1010102096,2.72,
Department of Health,Salisbury NHS Foundation Trust,30/08/2019,DISPOSABLE THEATRE DRAPES WIPES,Medicine,NHS LOGISTICS,1010102096,5.44,
Department of Health,Salisbury NHS Foundation Trust,30/08/2019,DISPOSABLE THEATRE DRAPES WIPES,Medicine,NHS LOGISTICS,1010102096,2.93,
Department of Health,Salisbury NHS Foundation Trust,30/08/2019,DISPOSABLE THEATRE DRAPES WIPES,Medicine,NHS LOGISTICS,1010102096,5.44,
Department of Health,Salisbury NHS Foundation Trust,30/08/2019,NON DISPOSABLE BED LINEN,Medicine,NHS LOGISTICS,1010102096,5.64,
Department of Health,Salisbury NHS Foundation Trust,30/08/2019,TOILETRIES PERSONAL HYGIENE PRODUCT,Medicine,NHS LOGISTICS,1010102096,0.54,
Department of Health,Salisbury NHS Foundation Trust,30/08/2019,OTHER MEDICAL SUPPLIES,Medicine,NHS LOGISTICS,1010102096,2.3,
Department of Health,Salisbury NHS Foundation Trust,30/08/2019,DRESSINGS - PRE STERILE,Medicine,NHS LOGISTICS,1010102096,0.68,
Department of Health,Salisbury NHS Foundation Trust,30/08/2019,TOILETRIES PERSONAL HYGIENE PRODUCT,Medicine,NHS LOGISTICS,1010102096,4.58,
Department of Health,Salisbury NHS Foundation Trust,30/08/2019,MEDSURGCONS-OTHER,Medicine,NHS LOGISTICS,1010102096,6.38,
Department of Health,Salisbury NHS Foundation Trust,30/08/2019,TISSUES HAND TOWELS & TOILET PAPER,Medicine,NHS LOGISTICS,1010102096,1.22,
Department of Health,Salisbury NHS Foundation Trust,30/08/2019,DISPOSABLE THEATRE DRAPES WIPES,Medicine,NHS LOGISTICS,1010102096,2.72,
Department of Health,Salisbury NHS Foundation Trust,30/08/2019,DRESSINGS - PRE STERILE,Clinical Support,NHS LOGISTICS,1010102096,11.64,
Department of Health,Salisbury NHS Foundation Trust,30/08/2019,DRESSINGS - PRE STERILE,Clinical Support,NHS LOGISTICS,1010102096,3.82,
Department of Health,Salisbury NHS Foundation Trust,30/08/2019,ELECTRICAL EQUIPMENT,Clinical Support,NHS LOGISTICS,1010102096,3.1,
Department of Health,Salisbury NHS Foundation Trust,30/08/2019,ELECTRICAL EQUIPMENT,Clinical Support,NHS LOGISTICS,1010102096,2.96,
Department of Health,Salisbury NHS Foundation Trust,30/08/2019,MEDSURGCONS-OTHER,Clinical Support,NHS LOGISTICS,1010102096,11.67,
Department of Health,Salisbury NHS Foundation Trust,30/08/2019,MEDSURGCONS-OTHER,Clinical Support,NHS LOGISTICS,1010102096,51.67,
Department of Health,Salisbury NHS Foundation Trust,30/08/2019,DISPOSABLE THEATRE DRAPES WIPES,Clinical Support,NHS LOGISTICS,1010102096,5.19,
Department of Health,Salisbury NHS Foundation Trust,30/08/2019,TOILETRIES PERSONAL HYGIENE PRODUCT,Clinical Support,NHS LOGISTICS,1010102096,10.05,
Department of Health,Salisbury NHS Foundation Trust,30/08/2019,TISSUES HAND TOWELS & TOILET PAPER,Clinical Support,NHS LOGISTICS,1010102096,2.44,
Department of Health,Salisbury NHS Foundation Trust,30/08/2019,DRESSINGS - PRE STERILE,Clinical Support,NHS LOGISTICS,1010102096,15.28,
Department of Health,Salisbury NHS Foundation Trust,30/08/2019,DRESSINGS  -  PROCEDURE PACKS,Clinical Support,NHS LOGISTICS,1010102096,0.4,
Department of Health,Salisbury NHS Foundation Trust,30/08/2019,MEDSURGCONS-OTHER,Clinical Support,NHS LOGISTICS,1010102096,3.38,
Department of Health,Salisbury NHS Foundation Trust,30/08/2019,OTHER MEDICAL SUPPLIES,Clinical Support,NHS LOGISTICS,1010102096,6,
Department of Health,Salisbury NHS Foundation Trust,30/08/2019,MEDSURGCONS-OTHER,Clinical Support,NHS LOGISTICS,1010102096,5,
Department of Health,Salisbury NHS Foundation Trust,30/08/2019,OTHER MEDICAL SUPPLIES,Clinical Support,NHS LOGISTICS,1010102096,6.63,
Department of Health,Salisbury NHS Foundation Trust,30/08/2019,OTHER MEDICAL SUPPLIES,Clinical Support,NHS LOGISTICS,1010102096,2.68,
Department of Health,Salisbury NHS Foundation Trust,30/08/2019,OTHER MEDICAL SUPPLIES,Clinical Support,NHS LOGISTICS,1010102096,3.58,
Department of Health,Salisbury NHS Foundation Trust,30/08/2019,SURGICAL INSTRUMENTS - DISPOSABLE,Clinical Support,NHS LOGISTICS,1010102096,2.25,
Department of Health,Salisbury NHS Foundation Trust,30/08/2019,DRESSINGS - PRE STERILE,Clinical Support,NHS LOGISTICS,1010102096,24.55,
Department of Health,Salisbury NHS Foundation Trust,30/08/2019,DRESSINGS - PRE STERILE,Clinical Support,NHS LOGISTICS,1010102096,45.55,
Department of Health,Salisbury NHS Foundation Trust,30/08/2019,DRESSINGS - PRE STERILE,Clinical Support,NHS LOGISTICS,1010102096,53.9,
Department of Health,Salisbury NHS Foundation Trust,30/08/2019,DRESSINGS - PRE STERILE,Clinical Support,NHS LOGISTICS,1010102096,2.04,
Department of Health,Salisbury NHS Foundation Trust,30/08/2019,MEDSURGCONS-OTHER,Clinical Support,NHS LOGISTICS,1010102096,4.38,
Department of Health,Salisbury NHS Foundation Trust,30/08/2019,MEDSURGCONS-OTHER,Clinical Support,NHS LOGISTICS,1010102096,3.53,
Department of Health,Salisbury NHS Foundation Trust,30/08/2019,DRESSINGS - PRE STERILE,Clinical Support,NHS LOGISTICS,1010102096,2.88,
Department of Health,Salisbury NHS Foundation Trust,30/08/2019,MEDSURGCONS-OTHER,Clinical Support,NHS LOGISTICS,1010102096,6.4,
Department of Health,Salisbury NHS Foundation Trust,30/08/2019,MEDSURGCONS-OTHER,Clinical Support,NHS LOGISTICS,1010102096,3.24,
Department of Health,Salisbury NHS Foundation Trust,30/08/2019,NON DISPOSABLE BED LINEN,Clinical Support,NHS LOGISTICS,1010102096,2.82,
Department of Health,Salisbury NHS Foundation Trust,30/08/2019,DISPOSABLE THEATRE DRAPES WIPES,Clinical Support,NHS LOGISTICS,1010102096,2.93,
Department of Health,Salisbury NHS Foundation Trust,30/08/2019,DISPOSABLE THEATRE DRAPES WIPES,Clinical Support,NHS LOGISTICS,1010102096,5.44,
Department of Health,Salisbury NHS Foundation Trust,30/08/2019,DISPOSABLE THEATRE DRAPES WIPES,Clinical Support,NHS LOGISTICS,1010102096,3.13,
Department of Health,Salisbury NHS Foundation Trust,30/08/2019,DRESSINGS - PRE STERILE,Clinical Support,NHS LOGISTICS,1010102096,3.57,
Department of Health,Salisbury NHS Foundation Trust,30/08/2019,PAPER GENERAL STATIONERY SUNDRIES,Corporate - Corporate Development,NHS LOGISTICS,1010102096,44.58,
Department of Health,Salisbury NHS Foundation Trust,30/08/2019,PAPER GENERAL STATIONERY SUNDRIES,Facilities,NHS LOGISTICS,1010102096,44.58,
Department of Health,Salisbury NHS Foundation Trust,30/08/2019,DRESSINGS  -  PROCEDURE PACKS,Surgery,NHS LOGISTICS,1010102096,24.8,
Department of Health,Salisbury NHS Foundation Trust,30/08/2019,PATIENT APPLIANCES,Clinical Support,NHS LOGISTICS,1010102096,13.56,
Department of Health,Salisbury NHS Foundation Trust,30/08/2019,OTHER MEDICAL SUPPLIES,Clinical Support,NHS LOGISTICS,1010102096,20.7,
Department of Health,Salisbury NHS Foundation Trust,30/08/2019,TUBES,Clinical Support,NHS LOGISTICS,1010102096,0.39,
Department of Health,Salisbury NHS Foundation Trust,30/08/2019,TOILETRIES PERSONAL HYGIENE PRODUCT,Clinical Support,NHS LOGISTICS,1010102096,3.35,
Department of Health,Salisbury NHS Foundation Trust,30/08/2019,TISSUES HAND TOWELS & TOILET PAPER,Clinical Support,NHS LOGISTICS,1010102096,0.6,
Department of Health,Salisbury NHS Foundation Trust,30/08/2019,MED SURG EQUIP REP MAINT CLEANING,Clinical Support,NHS LOGISTICS,1010102096,26.59,
Department of Health,Salisbury NHS Foundation Trust,30/08/2019,MED SURG EQUIP REP MAINT CLEANING,Clinical Support,NHS LOGISTICS,1010102096,26.59,
Department of Health,Salisbury NHS Foundation Trust,30/08/2019,TUBES,Clinical Support,NHS LOGISTICS,1010102096,5.82,
Department of Health,Salisbury NHS Foundation Trust,30/08/2019,DRESSINGS - PRE STERILE,Clinical Support,NHS LOGISTICS,1010102096,0.74,
Department of Health,Salisbury NHS Foundation Trust,30/08/2019,OTHER MEDICAL SUPPLIES,Clinical Support,NHS LOGISTICS,1010102096,137.37,
Department of Health,Salisbury NHS Foundation Trust,30/08/2019,SURGICAL INSTRUMENTS - DISPOSABLE,Clinical Support,NHS LOGISTICS,1010102096,2.25,
Department of Health,Salisbury NHS Foundation Trust,30/08/2019,OTHER MEDICAL SUPPLIES,Clinical Support,NHS LOGISTICS,1010102096,24.4,
Department of Health,Salisbury NHS Foundation Trust,30/08/2019,MEDSURGCONS-OTHER,Clinical Support,NHS LOGISTICS,1010102096,10.64,
Department of Health,Salisbury NHS Foundation Trust,30/08/2019,MEDSURGCONS-OTHER,Clinical Support,NHS LOGISTICS,1010102096,6.4,
Department of Health,Salisbury NHS Foundation Trust,30/08/2019,DISPOSABLE THEATRE DRAPES WIPES,Clinical Support,NHS LOGISTICS,1010102096,5.44,
Department of Health,Salisbury NHS Foundation Trust,30/08/2019,OTHER MEDICAL SUPPLIES,Clinical Support,NHS LOGISTICS,1010102096,390,
Department of Health,Salisbury NHS Foundation Trust,30/08/2019,OTHER MEDICAL SUPPLIES,Surgery,NHS LOGISTICS,1010102096,41,
Department of Health,Salisbury NHS Foundation Trust,30/08/2019,MEDSURGCONS-OTHER,Surgery,NHS LOGISTICS,1010102096,45,
Department of Health,Salisbury NHS Foundation Trust,30/08/2019,MEDSURGCONS-OTHER,Surgery,NHS LOGISTICS,1010102096,15.3,
Department of Health,Salisbury NHS Foundation Trust,30/08/2019,MEDSURGCONS-OTHER,Surgery,NHS LOGISTICS,1010102096,23,
Department of Health,Salisbury NHS Foundation Trust,30/08/2019,DRESSINGS - PRE STERILE,Surgery,NHS LOGISTICS,1010102096,101.31,
Department of Health,Salisbury NHS Foundation Trust,30/08/2019,BAGS SACKS - OTHER,Surgery,NHS LOGISTICS,1010102096,6.05,
Department of Health,Salisbury NHS Foundation Trust,30/08/2019,SURGICAL INSTRUMENTS - GENERAL,Surgery,NHS LOGISTICS,1010102096,65,
Department of Health,Salisbury NHS Foundation Trust,30/08/2019,DRESSINGS - PRE STERILE,Surgery,NHS LOGISTICS,1010102096,2.9,
Department of Health,Salisbury NHS Foundation Trust,30/08/2019,MEDSURGCONS-OTHER,Surgery,NHS LOGISTICS,1010102096,26.65,
Department of Health,Salisbury NHS Foundation Trust,30/08/2019,OTHER MEDICAL SUPPLIES,Surgery,NHS LOGISTICS,1010102096,206.01,
Department of Health,Salisbury NHS Foundation Trust,30/08/2019,BEVERAGES & AMBIENT FOOD,Surgery,NHS LOGISTICS,1010102096,12.22,
Department of Health,Salisbury NHS Foundation Trust,30/08/2019,MEDSURGCONS-OTHER,Surgery,NHS LOGISTICS,1010102096,36,
Department of Health,Salisbury NHS Foundation Trust,30/08/2019,BEVERAGES & AMBIENT FOOD,Surgery,NHS LOGISTICS,1010102096,0.94,
Department of Health,Salisbury NHS Foundation Trust,30/08/2019,MEDSURGCONS-SUTURES,Surgery,NHS LOGISTICS,1010102096,55.51,
Department of Health,Salisbury NHS Foundation Trust,30/08/2019,MEDSURGCONS-SUTURES,Surgery,NHS LOGISTICS,1010102096,26.73,
Department of Health,Salisbury NHS Foundation Trust,30/08/2019,MEDSURGCONS-SUTURES,Surgery,NHS LOGISTICS,1010102096,107.72,
Department of Health,Salisbury NHS Foundation Trust,30/08/2019,MEDSURGCONS-SUTURES,Surgery,NHS LOGISTICS,1010102096,54.74,
Department of Health,Salisbury NHS Foundation Trust,30/08/2019,BEVERAGES & AMBIENT FOOD,Surgery,NHS LOGISTICS,1010102096,6,
Department of Health,Salisbury NHS Foundation Trust,30/08/2019,DRESSINGS - PRE STERILE,Surgery,NHS LOGISTICS,1010102096,33.09,
Department of Health,Salisbury NHS Foundation Trust,30/08/2019,NON DISPOSABLE BED LINEN,Surgery,NHS LOGISTICS,1010102096,22.56,
Department of Health,Salisbury NHS Foundation Trust,30/08/2019,PATIENT APPLIANCES,Surgery,NHS LOGISTICS,1010102096,3.54,
Department of Health,Salisbury NHS Foundation Trust,30/08/2019,DISPOSABLE THEATRE DRAPES WIPES,Surgery,NHS LOGISTICS,1010102096,5.44,
Department of Health,Salisbury NHS Foundation Trust,30/08/2019,DISPOSABLE THEATRE DRAPES WIPES,Surgery,NHS LOGISTICS,1010102096,10.6,
Department of Health,Salisbury NHS Foundation Trust,30/08/2019,DISPOSABLE THEATRE DRAPES WIPES,Surgery,NHS LOGISTICS,1010102096,3.13,
Department of Health,Salisbury NHS Foundation Trust,30/08/2019,HEALTHCARE - WEAR,Surgery,NHS LOGISTICS,1010102096,144.78,
Department of Health,Salisbury NHS Foundation Trust,30/08/2019,MEDSURGCONS-OTHER,Surgery,NHS LOGISTICS,1010102096,22.9,
Department of Health,Salisbury NHS Foundation Trust,30/08/2019,DRESSINGS - PRE STERILE,Surgery,NHS LOGISTICS,1010102096,337.15,
Department of Health,Salisbury NHS Foundation Trust,30/08/2019,MEDSURGCONS-SUTURES,Surgery,NHS LOGISTICS,1010102096,36.06,
Department of Health,Salisbury NHS Foundation Trust,30/08/2019,MEDSURGCONS-SUTURES,Surgery,NHS LOGISTICS,1010102096,46.37,
Department of Health,Salisbury NHS Foundation Trust,30/08/2019,M & S EQUIPELECTEQUIPINST - OTHER,Surgery,NHS LOGISTICS,1010102096,208,
Department of Health,Salisbury NHS Foundation Trust,30/08/2019,MEDSURGCONS-SUTURES,Surgery,NHS LOGISTICS,1010102096,139.34,
Department of Health,Salisbury NHS Foundation Trust,30/08/2019,COOKING & KITCHEN UTENSILS,Corporate - Finance & Procurement,NHS LOGISTICS,1010102096,88.8,
Department of Health,Salisbury NHS Foundation Trust,30/08/2019,OTHER MEDICAL SUPPLIES,Corporate - Finance & Procurement,NHS LOGISTICS,1010102096,65,
Department of Health,Salisbury NHS Foundation Trust,30/08/2019,M & S EQUIPELECTEQUIPINST - OTHER,Surgery,NHS LOGISTICS,1010102096,104,
Department of Health,Salisbury NHS Foundation Trust,30/08/2019,M & S EQUIPELECTEQUIPINST - OTHER,Surgery,NHS LOGISTICS,1010102096,104,
Department of Health,Salisbury NHS Foundation Trust,30/08/2019,PAPER GENERAL STATIONERY SUNDRIES,Corporate - CEO,NHS LOGISTICS,1010102096,29.72,
Department of Health,Salisbury NHS Foundation Trust,30/08/2019,TOILETRIES PERSONAL HYGIENE PRODUCT,Surgery,NHS LOGISTICS,1010102096,13.74,
Department of Health,Salisbury NHS Foundation Trust,30/08/2019,DRUGS,Surgery,NHS LOGISTICS,1010102096,49.2,
Department of Health,Salisbury NHS Foundation Trust,30/08/2019,DRUGS,Surgery,NHS LOGISTICS,1010102096,8.02,
Department of Health,Salisbury NHS Foundation Trust,30/08/2019,DRUGS,Surgery,NHS LOGISTICS,1010102096,20.05,
Department of Health,Salisbury NHS Foundation Trust,30/08/2019,MEDSURGCONS-SUTURES,Surgery,NHS LOGISTICS,1010102096,626.52,
Department of Health,Salisbury NHS Foundation Trust,30/08/2019,DISPOSABLE THEATRE DRAPES WIPES,Surgery,NHS LOGISTICS,1010102096,2.93,
Department of Health,Salisbury NHS Foundation Trust,30/08/2019,MEDSURGCONS-SUTURES,Surgery,NHS LOGISTICS,1010102096,71.24,
Department of Health,Salisbury NHS Foundation Trust,30/08/2019,PAPER GENERAL STATIONERY SUNDRIES,Surgery,NHS LOGISTICS,1010102096,29.72,
Department of Health,Salisbury NHS Foundation Trust,30/08/2019,LAB EQUIP-LABORATORY APPARATUS,Clinical Support,NHS LOGISTICS,1010102096,242,
Department of Health,Salisbury NHS Foundation Trust,30/08/2019,SURGICAL INSTRUMENTS - DISPOSABLE,Medicine,NHS LOGISTICS,1010102096,9,
Department of Health,Salisbury NHS Foundation Trust,30/08/2019,MEDSURGCONS-OTHER,Medicine,NHS LOGISTICS,1010102096,1111,
Department of Health,Salisbury NHS Foundation Trust,30/08/2019,BAGS SACKS - OTHER,Clinical Support,NHS LOGISTICS,1010102096,3.2,
Department of Health,Salisbury NHS Foundation Trust,30/08/2019,TISSUES HAND TOWELS & TOILET PAPER,Clinical Support,NHS LOGISTICS,1010102096,2.44,
Department of Health,Salisbury NHS Foundation Trust,30/08/2019,TISSUES HAND TOWELS & TOILET PAPER,Clinical Support,NHS LOGISTICS,1010102096,0.9,
Department of Health,Salisbury NHS Foundation Trust,30/08/2019,MEDSURGCONS-OTHER,Clinical Support,NHS LOGISTICS,1010102096,5.43,
Department of Health,Salisbury NHS Foundation Trust,30/08/2019,MEDSURGCONS-OTHER,Clinical Support,NHS LOGISTICS,1010102096,2.39,
Department of Health,Salisbury NHS Foundation Trust,30/08/2019,DRESSINGS  -  PROCEDURE PACKS,Clinical Support,NHS LOGISTICS,1010102096,11.52,
Department of Health,Salisbury NHS Foundation Trust,30/08/2019,OTHER MEDICAL SUPPLIES,Clinical Support,NHS LOGISTICS,1010102096,3,
Department of Health,Salisbury NHS Foundation Trust,30/08/2019,OTHER MEDICAL SUPPLIES,Clinical Support,NHS LOGISTICS,1010102096,1.34,
Department of Health,Salisbury NHS Foundation Trust,30/08/2019,OTHER MEDICAL SUPPLIES,Clinical Support,NHS LOGISTICS,1010102096,3.58,
Department of Health,Salisbury NHS Foundation Trust,30/08/2019,DRESSINGS - PRE STERILE,Clinical Support,NHS LOGISTICS,1010102096,7.2,
Department of Health,Salisbury NHS Foundation Trust,30/08/2019,NON DISPOSABLE BED LINEN,Clinical Support,NHS LOGISTICS,1010102096,5.64,
Department of Health,Salisbury NHS Foundation Trust,30/08/2019,M & S EQUIPELECTEQUIPINST - OTHER,Clinical Support,NHS LOGISTICS,1010102096,110,
Department of Health,Salisbury NHS Foundation Trust,30/08/2019,M & S EQUIPELECTEQUIPINST - OTHER,Clinical Support,NHS LOGISTICS,1010102096,209.81,
Department of Health,Salisbury NHS Foundation Trust,30/08/2019,M & S EQUIPELECTEQUIPINST - OTHER,Clinical Support,NHS LOGISTICS,1010102096,343,
Department of Health,Salisbury NHS Foundation Trust,30/08/2019,DRESSINGS - PRE STERILE,Musculo-Skeletal,NHS LOGISTICS,1010102096,1.75,
Department of Health,Salisbury NHS Foundation Trust,30/08/2019,DISPOSABLE THEATRE DRAPES WIPES,Musculo-Skeletal,NHS LOGISTICS,1010102096,1.73,
Department of Health,Salisbury NHS Foundation Trust,30/08/2019,DRESSINGS - PRE STERILE,Musculo-Skeletal,NHS LOGISTICS,1010102096,2.75,
Department of Health,Salisbury NHS Foundation Trust,30/08/2019,DRESSINGS - PRE STERILE,Musculo-Skeletal,NHS LOGISTICS,1010102096,4.4,
Department of Health,Salisbury NHS Foundation Trust,30/08/2019,MEDSURGCONS-OTHER,Musculo-Skeletal,NHS LOGISTICS,1010102096,5.43,
Department of Health,Salisbury NHS Foundation Trust,30/08/2019,MEDSURGCONS-OTHER,Musculo-Skeletal,NHS LOGISTICS,1010102096,10,
Department of Health,Salisbury NHS Foundation Trust,30/08/2019,MEDSURGCONS-OTHER,Musculo-Skeletal,NHS LOGISTICS,1010102096,5.1,
Department of Health,Salisbury NHS Foundation Trust,30/08/2019,OTHER MEDICAL SUPPLIES,Musculo-Skeletal,NHS LOGISTICS,1010102096,3.58,
Department of Health,Salisbury NHS Foundation Trust,30/08/2019,SURGICAL INSTRUMENTS - DISPOSABLE,Musculo-Skeletal,NHS LOGISTICS,1010102096,6.75,
Department of Health,Salisbury NHS Foundation Trust,30/08/2019,MEDSURGCONS-OTHER,Musculo-Skeletal,NHS LOGISTICS,1010102096,6.16,
Department of Health,Salisbury NHS Foundation Trust,30/08/2019,MEDSURGCONS-OTHER,Musculo-Skeletal,NHS LOGISTICS,1010102096,12.8,
Department of Health,Salisbury NHS Foundation Trust,30/08/2019,MEDSURGCONS-OTHER,Musculo-Skeletal,NHS LOGISTICS,1010102096,0.76,
Department of Health,Salisbury NHS Foundation Trust,30/08/2019,DISPOSABLE THEATRE DRAPES WIPES,Musculo-Skeletal,NHS LOGISTICS,1010102096,2.93,
Department of Health,Salisbury NHS Foundation Trust,30/08/2019,DISPOSABLE THEATRE DRAPES WIPES,Musculo-Skeletal,NHS LOGISTICS,1010102096,10.6,
Department of Health,Salisbury NHS Foundation Trust,30/08/2019,DRESSINGS  -  PROCEDURE PACKS,Musculo-Skeletal,NHS LOGISTICS,1010102096,32.4,
Department of Health,Salisbury NHS Foundation Trust,30/08/2019,DRESSINGS - PRE STERILE,Musculo-Skeletal,NHS LOGISTICS,1010102096,2.79,
Department of Health,Salisbury NHS Foundation Trust,30/08/2019,PAPER GENERAL STATIONERY SUNDRIES,Medicine,NHS LOGISTICS,1010102096,14.86,
Department of Health,Salisbury NHS Foundation Trust,30/08/2019,OTHER MEDICAL SUPPLIES,Surgery,NHS LOGISTICS,1010102096,6.48,
Department of Health,Salisbury NHS Foundation Trust,30/08/2019,OTHER MEDICAL SUPPLIES,Surgery,NHS LOGISTICS,1010102096,41,
Department of Health,Salisbury NHS Foundation Trust,30/08/2019,OTHER MEDICAL SUPPLIES,Surgery,NHS LOGISTICS,1010102096,3.2,
Department of Health,Salisbury NHS Foundation Trust,30/08/2019,OTHER MEDICAL SUPPLIES,Surgery,NHS LOGISTICS,1010102096,3.2,
Department of Health,Salisbury NHS Foundation Trust,30/08/2019,MEDSURGCONS-OTHER,Surgery,NHS LOGISTICS,1010102096,20.44,
Department of Health,Salisbury NHS Foundation Trust,30/08/2019,TUBES,Surgery,NHS LOGISTICS,1010102096,4.99,
Department of Health,Salisbury NHS Foundation Trust,30/08/2019,MEDSURGCONS-OTHER,Surgery,NHS LOGISTICS,1010102096,2.92,
Department of Health,Salisbury NHS Foundation Trust,30/08/2019,MEDSURGCONS-OTHER,Surgery,NHS LOGISTICS,1010102096,4.17,
Department of Health,Salisbury NHS Foundation Trust,30/08/2019,OTHER MEDICAL SUPPLIES,Surgery,NHS LOGISTICS,1010102096,11.3,
Department of Health,Salisbury NHS Foundation Trust,30/08/2019,MEDSURGCONS-OTHER,Surgery,NHS LOGISTICS,1010102096,6.76,
Department of Health,Salisbury NHS Foundation Trust,30/08/2019,MEDSURGCONS-OTHER,Surgery,NHS LOGISTICS,1010102096,10.86,
Department of Health,Salisbury NHS Foundation Trust,30/08/2019,MEDSURGCONS-OTHER,Surgery,NHS LOGISTICS,1010102096,3.06,
Department of Health,Salisbury NHS Foundation Trust,30/08/2019,MEDSURGCONS-OTHER,Surgery,NHS LOGISTICS,1010102096,4.78,
Department of Health,Salisbury NHS Foundation Trust,30/08/2019,M & S EQUIPELECTEQUIPINST - OTHER,Surgery,NHS LOGISTICS,1010102096,50,
Department of Health,Salisbury NHS Foundation Trust,30/08/2019,M & S EQUIPELECTEQUIPINST - OTHER,Surgery,NHS LOGISTICS,1010102096,50,
Department of Health,Salisbury NHS Foundation Trust,30/08/2019,MEDSURGCONS-OTHER,Surgery,NHS LOGISTICS,1010102096,92.64,
Department of Health,Salisbury NHS Foundation Trust,30/08/2019,OTHER MEDICAL SUPPLIES,Surgery,NHS LOGISTICS,1010102096,8.04,
Department of Health,Salisbury NHS Foundation Trust,30/08/2019,OTHER MEDICAL SUPPLIES,Surgery,NHS LOGISTICS,1010102096,15.9,
Department of Health,Salisbury NHS Foundation Trust,30/08/2019,OTHER MEDICAL SUPPLIES,Surgery,NHS LOGISTICS,1010102096,20.6,
Department of Health,Salisbury NHS Foundation Trust,30/08/2019,SURGICAL INSTRUMENTS - GENERAL,Surgery,NHS LOGISTICS,1010102096,9.5,
Department of Health,Salisbury NHS Foundation Trust,30/08/2019,SURGICAL INSTRUMENTS - GENERAL,Surgery,NHS LOGISTICS,1010102096,71.5,
Department of Health,Salisbury NHS Foundation Trust,30/08/2019,TUBES,Surgery,NHS LOGISTICS,1010102096,8.22,
Department of Health,Salisbury NHS Foundation Trust,30/08/2019,DRESSINGS - PRE STERILE,Surgery,NHS LOGISTICS,1010102096,78.3,
Department of Health,Salisbury NHS Foundation Trust,30/08/2019,OTHER MEDICAL SUPPLIES,Clinical Support,NHS LOGISTICS,1010102096,36.16,
Department of Health,Salisbury NHS Foundation Trust,30/08/2019,OTHER MEDICAL SUPPLIES,Clinical Support,NHS LOGISTICS,1010102096,1.34,
Department of Health,Salisbury NHS Foundation Trust,30/08/2019,OTHER MEDICAL SUPPLIES,Clinical Support,NHS LOGISTICS,1010102096,3.58,
Department of Health,Salisbury NHS Foundation Trust,30/08/2019,M & S EQUIPELECTEQUIPINST - OTHER,Surgery,NHS LOGISTICS,1010102096,2.44,
Department of Health,Salisbury NHS Foundation Trust,30/08/2019,DISPOSABLE THEATRE DRAPES WIPES,Surgery,NHS LOGISTICS,1010102096,34.65,
Department of Health,Salisbury NHS Foundation Trust,30/08/2019,DISPOSABLE THEATRE DRAPES WIPES,Surgery,NHS LOGISTICS,1010102096,5.44,
Department of Health,Salisbury NHS Foundation Trust,30/08/2019,DISPOSABLE THEATRE DRAPES WIPES,Surgery,NHS LOGISTICS,1010102096,10.6,
Department of Health,Salisbury NHS Foundation Trust,30/08/2019,M & S EQUIPELECTEQUIPINST - OTHER,Surgery,NHS LOGISTICS,1010102096,25,
Department of Health,Salisbury NHS Foundation Trust,30/08/2019,MEDSURGCONS-OTHER,Surgery,NHS LOGISTICS,1010102096,45,
Department of Health,Salisbury NHS Foundation Trust,30/08/2019,SURGICAL INSTRUMENTS - GENERAL,Surgery,NHS LOGISTICS,1010102096,9.5,
Department of Health,Salisbury NHS Foundation Trust,30/08/2019,SURGICAL INSTRUMENTS - GENERAL,Musculo-Skeletal,NHS LOGISTICS,1010102096,223.97,
Department of Health,Salisbury NHS Foundation Trust,30/08/2019,SURGICAL INSTRUMENTS - GENERAL,Musculo-Skeletal,NHS LOGISTICS,1010102096,535.08,
Department of Health,Salisbury NHS Foundation Trust,30/08/2019,OTHER MEDICAL SUPPLIES,Musculo-Skeletal,NHS LOGISTICS,1010102096,41,
Department of Health,Salisbury NHS Foundation Trust,30/08/2019,BAGS SACKS - OTHER,Musculo-Skeletal,NHS LOGISTICS,1010102096,3.2,
Department of Health,Salisbury NHS Foundation Trust,30/08/2019,M & S EQUIPELECTEQUIPINST - OTHER,Musculo-Skeletal,NHS LOGISTICS,1010102096,6.76,
Department of Health,Salisbury NHS Foundation Trust,30/08/2019,DISPOSABLE THEATRE DRAPES WIPES,Musculo-Skeletal,NHS LOGISTICS,1010102096,3.46,
Department of Health,Salisbury NHS Foundation Trust,30/08/2019,M & S EQUIPELECTEQUIPINST - OTHER,Musculo-Skeletal,NHS LOGISTICS,1010102096,4.88,
Department of Health,Salisbury NHS Foundation Trust,30/08/2019,TOILETRIES PERSONAL HYGIENE PRODUCT,Musculo-Skeletal,NHS LOGISTICS,1010102096,10.05,
Department of Health,Salisbury NHS Foundation Trust,30/08/2019,TISSUES HAND TOWELS & TOILET PAPER,Musculo-Skeletal,NHS LOGISTICS,1010102096,1.22,
Department of Health,Salisbury NHS Foundation Trust,30/08/2019,M & S EQUIPELECTEQUIPINST - OTHER,Musculo-Skeletal,NHS LOGISTICS,1010102096,9.2,
Department of Health,Salisbury NHS Foundation Trust,30/08/2019,DRESSINGS - PRE STERILE,Musculo-Skeletal,NHS LOGISTICS,1010102096,11.9,
Department of Health,Salisbury NHS Foundation Trust,30/08/2019,DRESSINGS - PRE STERILE,Musculo-Skeletal,NHS LOGISTICS,1010102096,7.83,
Department of Health,Salisbury NHS Foundation Trust,30/08/2019,DRESSINGS - PRE STERILE,Musculo-Skeletal,NHS LOGISTICS,1010102096,3.34,
Department of Health,Salisbury NHS Foundation Trust,30/08/2019,TISSUES HAND TOWELS & TOILET PAPER,Musculo-Skeletal,NHS LOGISTICS,1010102096,3.6,
Department of Health,Salisbury NHS Foundation Trust,30/08/2019,MEDSURGCONS-OTHER,Musculo-Skeletal,NHS LOGISTICS,1010102096,26.65,
Department of Health,Salisbury NHS Foundation Trust,30/08/2019,MEDSURGCONS-OTHER,Musculo-Skeletal,NHS LOGISTICS,1010102096,89.8,
Department of Health,Salisbury NHS Foundation Trust,30/08/2019,M & S EQUIPELECTEQUIPINST - OTHER,Musculo-Skeletal,NHS LOGISTICS,1010102096,35.28,
Department of Health,Salisbury NHS Foundation Trust,30/08/2019,MEDSURGCONS-OTHER,Musculo-Skeletal,NHS LOGISTICS,1010102096,10.14,
Department of Health,Salisbury NHS Foundation Trust,30/08/2019,MEDSURGCONS-OTHER,Musculo-Skeletal,NHS LOGISTICS,1010102096,5.43,
Department of Health,Salisbury NHS Foundation Trust,30/08/2019,DRESSINGS - PRE STERILE,Musculo-Skeletal,NHS LOGISTICS,1010102096,2.22,
Department of Health,Salisbury NHS Foundation Trust,30/08/2019,DRESSINGS - PRE STERILE,Musculo-Skeletal,NHS LOGISTICS,1010102096,37.04,
Department of Health,Salisbury NHS Foundation Trust,30/08/2019,DRESSINGS - PRE STERILE,Musculo-Skeletal,NHS LOGISTICS,1010102096,16.52,
Department of Health,Salisbury NHS Foundation Trust,30/08/2019,MEDSURGCONS-OTHER,Musculo-Skeletal,NHS LOGISTICS,1010102096,5,
Department of Health,Salisbury NHS Foundation Trust,30/08/2019,MEDSURGCONS-OTHER,Musculo-Skeletal,NHS LOGISTICS,1010102096,22.44,
Department of Health,Salisbury NHS Foundation Trust,30/08/2019,OTHER MEDICAL SUPPLIES,Musculo-Skeletal,NHS LOGISTICS,1010102096,5.36,
Department of Health,Salisbury NHS Foundation Trust,30/08/2019,PATIENTS INCONTINENCE,Musculo-Skeletal,NHS LOGISTICS,1010102096,15.24,
Department of Health,Salisbury NHS Foundation Trust,30/08/2019,OTHER MEDICAL SUPPLIES,Musculo-Skeletal,NHS LOGISTICS,1010102096,3.9,
Department of Health,Salisbury NHS Foundation Trust,30/08/2019,SERVICES FROM NHS BODIES,Musculo-Skeletal,NHS LOGISTICS,1010102096,3.56,
Department of Health,Salisbury NHS Foundation Trust,30/08/2019,DRESSINGS - PRE STERILE,Musculo-Skeletal,NHS LOGISTICS,1010102096,4.08,
Department of Health,Salisbury NHS Foundation Trust,30/08/2019,MEDSURGCONS-OTHER,Musculo-Skeletal,NHS LOGISTICS,1010102096,3.53,
Department of Health,Salisbury NHS Foundation Trust,30/08/2019,MEDSURGCONS-OTHER,Musculo-Skeletal,NHS LOGISTICS,1010102096,19.2,
Department of Health,Salisbury NHS Foundation Trust,30/08/2019,M & S EQUIPELECTEQUIPINST - OTHER,Musculo-Skeletal,NHS LOGISTICS,1010102096,2.84,
Department of Health,Salisbury NHS Foundation Trust,30/08/2019,MEDSURGCONS-OTHER,Musculo-Skeletal,NHS LOGISTICS,1010102096,3.24,
Department of Health,Salisbury NHS Foundation Trust,30/08/2019,PATIENT APPLIANCES,Musculo-Skeletal,NHS LOGISTICS,1010102096,84,
Department of Health,Salisbury NHS Foundation Trust,30/08/2019,TOILETRIES PERSONAL HYGIENE PRODUCT,Musculo-Skeletal,NHS LOGISTICS,1010102096,6.24,
Department of Health,Salisbury NHS Foundation Trust,30/08/2019,DISPOSABLE THEATRE DRAPES WIPES,Musculo-Skeletal,NHS LOGISTICS,1010102096,2.93,
Department of Health,Salisbury NHS Foundation Trust,30/08/2019,DISPOSABLE THEATRE DRAPES WIPES,Musculo-Skeletal,NHS LOGISTICS,1010102096,21.2,
Department of Health,Salisbury NHS Foundation Trust,30/08/2019,DISPOSABLE THEATRE DRAPES WIPES,Musculo-Skeletal,NHS LOGISTICS,1010102096,3.13,
Department of Health,Salisbury NHS Foundation Trust,30/08/2019,MEDSURGCONS-SUTURES,Surgery,NHS LOGISTICS,1010102096,132.66,
Department of Health,Salisbury NHS Foundation Trust,30/08/2019,MEDSURGCONS-OTHER,Medicine,NHS LOGISTICS,1010102096,555.5,
Department of Health,Salisbury NHS Foundation Trust,30/08/2019,MEDSURGCONS-OTHER,Medicine,NHS LOGISTICS,1010102096,325,
Department of Health,Salisbury NHS Foundation Trust,30/08/2019,MEDSURGCONS-OTHER,Medicine,NHS LOGISTICS,1010102096,185,
Department of Health,Salisbury NHS Foundation Trust,30/08/2019,MEDSURGCONS-OTHER,Medicine,NHS LOGISTICS,1010102096,90,
Department of Health,Salisbury NHS Foundation Trust,30/08/2019,PAPER GENERAL STATIONERY SUNDRIES,Medicine,NHS LOGISTICS,1010102096,44.58,
Department of Health,Salisbury NHS Foundation Trust,30/08/2019,DISPOSABLE THEATRE DRAPES WIPES,Medicine,NHS LOGISTICS,1010102096,1.22,
Department of Health,Salisbury NHS Foundation Trust,30/08/2019,DISPOSABLE THEATRE DRAPES WIPES,Medicine,NHS LOGISTICS,1010102096,5.44,
Department of Health,Salisbury NHS Foundation Trust,30/08/2019,DISPOSABLE THEATRE DRAPES WIPES,Medicine,NHS LOGISTICS,1010102096,10.6,
Department of Health,Salisbury NHS Foundation Trust,30/08/2019,M & S EQUIPELECTEQUIPINST - OTHER,Medicine,NHS LOGISTICS,1010102096,8.1,
Department of Health,Salisbury NHS Foundation Trust,30/08/2019,MEDSURGCONS-OTHER,Medicine,NHS LOGISTICS,1010102096,3.38,
Department of Health,Salisbury NHS Foundation Trust,30/08/2019,MEDSURGCONS-OTHER,Medicine,NHS LOGISTICS,1010102096,1.53,
Department of Health,Salisbury NHS Foundation Trust,30/08/2019,ANAESTHETIC EQUIPMENT ACCESSORIES,Medicine,NHS LOGISTICS,1010102096,1.44,
Department of Health,Salisbury NHS Foundation Trust,30/08/2019,OTHER MEDICAL SUPPLIES,Medicine,NHS LOGISTICS,1010102096,3,
Department of Health,Salisbury NHS Foundation Trust,30/08/2019,OTHER MEDICAL SUPPLIES,Medicine,NHS LOGISTICS,1010102096,107.2,
Department of Health,Salisbury NHS Foundation Trust,30/08/2019,MEDSURGCONS-OTHER,Medicine,NHS LOGISTICS,1010102096,1,
Department of Health,Salisbury NHS Foundation Trust,30/08/2019,OTHER MEDICAL SUPPLIES,Medicine,NHS LOGISTICS,1010102096,7.12,
Department of Health,Salisbury NHS Foundation Trust,30/08/2019,DRUGS,Medicine,NHS LOGISTICS,1010102096,72.36,
Department of Health,Salisbury NHS Foundation Trust,30/08/2019,DRESSINGS - PRE STERILE,Medicine,NHS LOGISTICS,1010102096,19.56,
Department of Health,Salisbury NHS Foundation Trust,30/08/2019,NON DISPOSABLE BED LINEN,Medicine,NHS LOGISTICS,1010102096,8.46,
Department of Health,Salisbury NHS Foundation Trust,30/08/2019,DISPOSABLE THEATRE DRAPES WIPES,Medicine,NHS LOGISTICS,1010102096,10.6,
Department of Health,Salisbury NHS Foundation Trust,30/08/2019,DRESSINGS  -  PROCEDURE PACKS,Medicine,NHS LOGISTICS,1010102096,786.1,
Department of Health,Salisbury NHS Foundation Trust,30/08/2019,OTHER MEDICAL SUPPLIES,Medicine,NHS LOGISTICS,1010102096,23,
Department of Health,Salisbury NHS Foundation Trust,30/08/2019,PATIENTS INCONTINENCE,Medicine,NHS LOGISTICS,1010102096,13.12,
Department of Health,Salisbury NHS Foundation Trust,30/08/2019,TISSUES HAND TOWELS & TOILET PAPER,Medicine,NHS LOGISTICS,1010102096,1.22,
Department of Health,Salisbury NHS Foundation Trust,30/08/2019,M & S EQUIPELECTEQUIPINST - OTHER,Medicine,NHS LOGISTICS,1010102096,11.76,
Department of Health,Salisbury NHS Foundation Trust,30/08/2019,MEDSURGCONS-OTHER,Medicine,NHS LOGISTICS,1010102096,3.38,
Department of Health,Salisbury NHS Foundation Trust,30/08/2019,MEDSURGCONS-OTHER,Medicine,NHS LOGISTICS,1010102096,5.43,
Department of Health,Salisbury NHS Foundation Trust,30/08/2019,DRESSINGS - PRE STERILE,Medicine,NHS LOGISTICS,1010102096,0.74,
Department of Health,Salisbury NHS Foundation Trust,30/08/2019,MEDSURGCONS-OTHER,Medicine,NHS LOGISTICS,1010102096,10,
Department of Health,Salisbury NHS Foundation Trust,30/08/2019,OTHER MEDICAL SUPPLIES,Medicine,NHS LOGISTICS,1010102096,7.12,
Department of Health,Salisbury NHS Foundation Trust,30/08/2019,OTHER MEDICAL SUPPLIES,Medicine,NHS LOGISTICS,1010102096,1.34,
Department of Health,Salisbury NHS Foundation Trust,30/08/2019,SURGICAL INSTRUMENTS - DISPOSABLE,Medicine,NHS LOGISTICS,1010102096,2.25,
Department of Health,Salisbury NHS Foundation Trust,30/08/2019,PATIENTS INCONTINENCE,Medicine,NHS LOGISTICS,1010102096,2.54,
Department of Health,Salisbury NHS Foundation Trust,30/08/2019,DRESSINGS - PRE STERILE,Medicine,NHS LOGISTICS,1010102096,2.04,
Department of Health,Salisbury NHS Foundation Trust,30/08/2019,MEDSURGCONS-OTHER,Medicine,NHS LOGISTICS,1010102096,6.4,
Department of Health,Salisbury NHS Foundation Trust,30/08/2019,TISSUES HAND TOWELS & TOILET PAPER,Medicine,NHS LOGISTICS,1010102096,0.6,
Department of Health,Salisbury NHS Foundation Trust,30/08/2019,NON DISPOSABLE BED LINEN,Medicine,NHS LOGISTICS,1010102096,8.46,
Department of Health,Salisbury NHS Foundation Trust,30/08/2019,MEDSURGCONS-OTHER,Medicine,NHS LOGISTICS,1010102096,2.4,
Department of Health,Salisbury NHS Foundation Trust,30/08/2019,MEDSURGCONS-OTHER,Medicine,NHS LOGISTICS,1010102096,2.38,
Department of Health,Salisbury NHS Foundation Trust,30/08/2019,DISPOSABLE THEATRE DRAPES WIPES,Medicine,NHS LOGISTICS,1010102096,2.93,
Department of Health,Salisbury NHS Foundation Trust,30/08/2019,DISPOSABLE THEATRE DRAPES WIPES,Medicine,NHS LOGISTICS,1010102096,10.6,
Department of Health,Salisbury NHS Foundation Trust,30/08/2019,OTHER MEDICAL SUPPLIES,Medicine,NHS LOGISTICS,1010102096,7.28,
Department of Health,Salisbury NHS Foundation Trust,30/08/2019,OTHER MEDICAL SUPPLIES,Medicine,NHS LOGISTICS,1010102096,23,
Department of Health,Salisbury NHS Foundation Trust,30/08/2019,OTHER MEDICAL SUPPLIES,Medicine,NHS LOGISTICS,1010102096,41,
Department of Health,Salisbury NHS Foundation Trust,30/08/2019,PATIENTS INCONTINENCE,Medicine,NHS LOGISTICS,1010102096,6.56,
Department of Health,Salisbury NHS Foundation Trust,30/08/2019,DRESSINGS - PRE STERILE,Medicine,NHS LOGISTICS,1010102096,2.04,
Department of Health,Salisbury NHS Foundation Trust,30/08/2019,DRESSINGS - PRE STERILE,Medicine,NHS LOGISTICS,1010102096,1.75,
Department of Health,Salisbury NHS Foundation Trust,30/08/2019,DRESSINGS - PRE STERILE,Medicine,NHS LOGISTICS,1010102096,1.59,
Department of Health,Salisbury NHS Foundation Trust,30/08/2019,DRESSINGS - PRE STERILE,Medicine,NHS LOGISTICS,1010102096,2.8,
Department of Health,Salisbury NHS Foundation Trust,30/08/2019,DRESSINGS - PRE STERILE,Medicine,NHS LOGISTICS,1010102096,5,
Department of Health,Salisbury NHS Foundation Trust,30/08/2019,OTHER MEDICAL SUPPLIES,Medicine,NHS LOGISTICS,1010102096,29.5,
Department of Health,Salisbury NHS Foundation Trust,30/08/2019,DISPOSABLE THEATRE DRAPES WIPES,Medicine,NHS LOGISTICS,1010102096,1.73,
Department of Health,Salisbury NHS Foundation Trust,30/08/2019,DRESSINGS - PRE STERILE,Medicine,NHS LOGISTICS,1010102096,11.9,
Department of Health,Salisbury NHS Foundation Trust,30/08/2019,MEDSURGCONS-OTHER,Medicine,NHS LOGISTICS,1010102096,2.8,
Department of Health,Salisbury NHS Foundation Trust,30/08/2019,TISSUES HAND TOWELS & TOILET PAPER,Medicine,NHS LOGISTICS,1010102096,1.5,
Department of Health,Salisbury NHS Foundation Trust,30/08/2019,MEDSURGCONS-OTHER,Medicine,NHS LOGISTICS,1010102096,53.3,
Department of Health,Salisbury NHS Foundation Trust,30/08/2019,MEDSURGCONS-OTHER,Medicine,NHS LOGISTICS,1010102096,44.9,
Department of Health,Salisbury NHS Foundation Trust,30/08/2019,M & S EQUIPELECTEQUIPINST - OTHER,Medicine,NHS LOGISTICS,1010102096,11.76,
Department of Health,Salisbury NHS Foundation Trust,30/08/2019,MEDSURGCONS-OTHER,Medicine,NHS LOGISTICS,1010102096,6.76,
Department of Health,Salisbury NHS Foundation Trust,30/08/2019,HEALTHCARE - WEAR,Medicine,NHS LOGISTICS,1010102096,3.34,
Department of Health,Salisbury NHS Foundation Trust,30/08/2019,M & S EQUIPELECTEQUIPINST - OTHER,Medicine,NHS LOGISTICS,1010102096,4.75,
Department of Health,Salisbury NHS Foundation Trust,30/08/2019,DRESSINGS - PRE STERILE,Medicine,NHS LOGISTICS,1010102096,5.92,
Department of Health,Salisbury NHS Foundation Trust,30/08/2019,PATIENT APPLIANCES,Medicine,NHS LOGISTICS,1010102096,14,
Department of Health,Salisbury NHS Foundation Trust,30/08/2019,PATIENT APPLIANCES,Medicine,NHS LOGISTICS,1010102096,14,
Department of Health,Salisbury NHS Foundation Trust,30/08/2019,PATIENT APPLIANCES,Medicine,NHS LOGISTICS,1010102096,7,
Department of Health,Salisbury NHS Foundation Trust,30/08/2019,PATIENT APPLIANCES,Medicine,NHS LOGISTICS,1010102096,7,
Department of Health,Salisbury NHS Foundation Trust,30/08/2019,PATIENT APPLIANCES,Medicine,NHS LOGISTICS,1010102096,7,
Department of Health,Salisbury NHS Foundation Trust,30/08/2019,PATIENT APPLIANCES,Medicine,NHS LOGISTICS,1010102096,7,
Department of Health,Salisbury NHS Foundation Trust,30/08/2019,PATIENT APPLIANCES,Medicine,NHS LOGISTICS,1010102096,7,
Department of Health,Salisbury NHS Foundation Trust,30/08/2019,ANAESTHETIC EQUIPMENT ACCESSORIES,Medicine,NHS LOGISTICS,1010102096,4.8,
Department of Health,Salisbury NHS Foundation Trust,30/08/2019,DRESSINGS  -  PROCEDURE PACKS,Medicine,NHS LOGISTICS,1010102096,11.52,
Department of Health,Salisbury NHS Foundation Trust,30/08/2019,MEDSURGCONS-OTHER,Medicine,NHS LOGISTICS,1010102096,22.5,
Department of Health,Salisbury NHS Foundation Trust,30/08/2019,MEDSURGCONS-OTHER,Medicine,NHS LOGISTICS,1010102096,46,
Department of Health,Salisbury NHS Foundation Trust,30/08/2019,OTHER MEDICAL SUPPLIES,Medicine,NHS LOGISTICS,1010102096,7.12,
Department of Health,Salisbury NHS Foundation Trust,30/08/2019,OTHER MEDICAL SUPPLIES,Medicine,NHS LOGISTICS,1010102096,2.68,
Department of Health,Salisbury NHS Foundation Trust,30/08/2019,OTHER MEDICAL SUPPLIES,Medicine,NHS LOGISTICS,1010102096,3.58,
Department of Health,Salisbury NHS Foundation Trust,30/08/2019,PATIENTS INCONTINENCE,Medicine,NHS LOGISTICS,1010102096,2.54,
Department of Health,Salisbury NHS Foundation Trust,30/08/2019,PATIENTS INCONTINENCE,Medicine,NHS LOGISTICS,1010102096,3.39,
Department of Health,Salisbury NHS Foundation Trust,30/08/2019,DRESSINGS - PRE STERILE,Medicine,NHS LOGISTICS,1010102096,26.67,
Department of Health,Salisbury NHS Foundation Trust,30/08/2019,DRESSINGS - PRE STERILE,Medicine,NHS LOGISTICS,1010102096,2.04,
Department of Health,Salisbury NHS Foundation Trust,30/08/2019,DRESSINGS - PRE STERILE,Medicine,NHS LOGISTICS,1010102096,9,
Department of Health,Salisbury NHS Foundation Trust,30/08/2019,MEDSURGCONS-OTHER,Medicine,NHS LOGISTICS,1010102096,12.8,
Department of Health,Salisbury NHS Foundation Trust,30/08/2019,TISSUES HAND TOWELS & TOILET PAPER,Medicine,NHS LOGISTICS,1010102096,0.6,
Department of Health,Salisbury NHS Foundation Trust,30/08/2019,MEDSURGCONS-OTHER,Medicine,NHS LOGISTICS,1010102096,4.56,
Department of Health,Salisbury NHS Foundation Trust,30/08/2019,NON DISPOSABLE BED LINEN,Medicine,NHS LOGISTICS,1010102096,8.46,
Department of Health,Salisbury NHS Foundation Trust,30/08/2019,DISPOSABLE THEATRE DRAPES WIPES,Medicine,NHS LOGISTICS,1010102096,2.93,
Department of Health,Salisbury NHS Foundation Trust,30/08/2019,DISPOSABLE THEATRE DRAPES WIPES,Medicine,NHS LOGISTICS,1010102096,31.8,
Department of Health,Salisbury NHS Foundation Trust,30/08/2019,PATIENT APPLIANCES,Medicine,NHS LOGISTICS,1010102096,21,
Department of Health,Salisbury NHS Foundation Trust,30/08/2019,PATIENT APPLIANCES,Medicine,NHS LOGISTICS,1010102096,10.5,
Department of Health,Salisbury NHS Foundation Trust,30/08/2019,PAPER GENERAL STATIONERY SUNDRIES,Clinical Support,NHS LOGISTICS,1010102096,14.86,
Department of Health,Salisbury NHS Foundation Trust,30/08/2019,OTHER MEDICAL SUPPLIES,Surgery,NHS LOGISTICS,1010102096,2.68,
Department of Health,Salisbury NHS Foundation Trust,30/08/2019,ELECTRICAL EQUIPMENT,Facilities,NHS LOGISTICS,1010102096,8.88,
Department of Health,Salisbury NHS Foundation Trust,30/08/2019,ANAESTHETIC EQUIPMENT ACCESSORIES,Clinical Support,NHS LOGISTICS,1010102096,14.2,
Department of Health,Salisbury NHS Foundation Trust,30/08/2019,DRESSINGS  -  PROCEDURE PACKS,Clinical Support,NHS LOGISTICS,1010102096,0.24,
Department of Health,Salisbury NHS Foundation Trust,30/08/2019,TUBES,Surgery,NHS LOGISTICS,1010102096,48.4,
Department of Health,Salisbury NHS Foundation Trust,30/08/2019,TUBES,Surgery,NHS LOGISTICS,1010102096,11.1,
Department of Health,Salisbury NHS Foundation Trust,30/08/2019,LAB REAGENTS-BUFFERS COMPUND SOLNS,Musculo-Skeletal,NHS LOGISTICS,1010102096,51.6,
Department of Health,Salisbury NHS Foundation Trust,30/08/2019,X-RAY FILM PROCESSING CHEMICALS,Clinical Support,NHS LOGISTICS,1010102096,94,
Department of Health,Salisbury NHS Foundation Trust,30/08/2019,DRESSINGS - PRE STERILE,Medicine,NHS LOGISTICS,1010102096,3.08,
Department of Health,Salisbury NHS Foundation Trust,30/08/2019,DRESSINGS - PRE STERILE,Medicine,NHS LOGISTICS,1010102096,4.48,
Department of Health,Salisbury NHS Foundation Trust,30/08/2019,DRESSINGS - PRE STERILE,Medicine,NHS LOGISTICS,1010102096,1.12,
Department of Health,Salisbury NHS Foundation Trust,30/08/2019,OTHER MEDICAL SUPPLIES,Medicine,NHS LOGISTICS,1010102096,400,
Department of Health,Salisbury NHS Foundation Trust,30/08/2019,TUBES,Clinical Support,NHS LOGISTICS,1010102096,4.99,
Department of Health,Salisbury NHS Foundation Trust,30/08/2019,TUBES,Clinical Support,NHS LOGISTICS,1010102096,120,
Department of Health,Salisbury NHS Foundation Trust,30/08/2019,TUBES,Musculo-Skeletal,NHS LOGISTICS,1010102096,0.75,
Department of Health,Salisbury NHS Foundation Trust,30/08/2019,OTHER MEDICAL SUPPLIES,Surgery,NHS LOGISTICS,1010102096,41,
Department of Health,Salisbury NHS Foundation Trust,30/08/2019,MEDSURGCONS-OTHER,Surgery,NHS LOGISTICS,1010102096,7.94,
Department of Health,Salisbury NHS Foundation Trust,30/08/2019,M & S EQUIPELECTEQUIPINST - OTHER,Surgery,NHS LOGISTICS,1010102096,7.98,
Department of Health,Salisbury NHS Foundation Trust,30/08/2019,DRESSINGS - PRE STERILE,Surgery,NHS LOGISTICS,1010102096,1,
Department of Health,Salisbury NHS Foundation Trust,30/08/2019,DRESSINGS - PRE STERILE,Surgery,NHS LOGISTICS,1010102096,7.83,
Department of Health,Salisbury NHS Foundation Trust,30/08/2019,DRESSINGS - PRE STERILE,Surgery,NHS LOGISTICS,1010102096,4.8,
Department of Health,Salisbury NHS Foundation Trust,30/08/2019,DRESSINGS - PRE STERILE,Surgery,NHS LOGISTICS,1010102096,4.35,
Department of Health,Salisbury NHS Foundation Trust,30/08/2019,MEDSURGCONS-OTHER,Surgery,NHS LOGISTICS,1010102096,3.38,
Department of Health,Salisbury NHS Foundation Trust,30/08/2019,MEDSURGCONS-OTHER,Surgery,NHS LOGISTICS,1010102096,5.43,
Department of Health,Salisbury NHS Foundation Trust,30/08/2019,M & S EQUIPELECTEQUIPINST - OTHER,Surgery,NHS LOGISTICS,1010102096,14.25,
Department of Health,Salisbury NHS Foundation Trust,30/08/2019,DRESSINGS - PRE STERILE,Surgery,NHS LOGISTICS,1010102096,1.48,
Department of Health,Salisbury NHS Foundation Trust,30/08/2019,ANAESTHETIC EQUIPMENT ACCESSORIES,Surgery,NHS LOGISTICS,1010102096,2.88,
Department of Health,Salisbury NHS Foundation Trust,30/08/2019,DRESSINGS  -  PROCEDURE PACKS,Surgery,NHS LOGISTICS,1010102096,1.75,
Department of Health,Salisbury NHS Foundation Trust,30/08/2019,SERVICES FROM NHS BODIES,Clinical Support,NHS LOGISTICS,1010102096,8.64,
Department of Health,Salisbury NHS Foundation Trust,30/08/2019,DENTAL SURGERY SUNDRIES,Musculo-Skeletal,NHS LOGISTICS,1010102096,2.52,
Department of Health,Salisbury NHS Foundation Trust,30/08/2019,SERVICES FROM NHS BODIES,Clinical Support,NHS LOGISTICS,1010102096,136.5,
Department of Health,Salisbury NHS Foundation Trust,30/08/2019,DRESSINGS - PRE STERILE,Musculo-Skeletal,NHS LOGISTICS,1010102096,146.4,
Department of Health,Salisbury NHS Foundation Trust,30/08/2019,DRESSINGS - PRE STERILE,Musculo-Skeletal,NHS LOGISTICS,1010102096,5.1,
Department of Health,Salisbury NHS Foundation Trust,30/08/2019,MEDSURGCONS-OTHER,Corporate - Finance & Procurement,NHS LOGISTICS,1010102096,1718.4,
Department of Health,Salisbury NHS Foundation Trust,30/08/2019,ELECTRICAL EQUIPMENT,Musculo-Skeletal,NHS LOGISTICS,1010102096,0.85,
Department of Health,Salisbury NHS Foundation Trust,30/08/2019,ELECTRICAL EQUIPMENT,Musculo-Skeletal,NHS LOGISTICS,1010102096,1.48,
Department of Health,Salisbury NHS Foundation Trust,30/08/2019,SURGICAL INSTRUMENTS - DISPOSABLE,Musculo-Skeletal,NHS LOGISTICS,1010102096,2.25,
Department of Health,Salisbury NHS Foundation Trust,30/08/2019,DENTAL SURGERY SUNDRIES,Musculo-Skeletal,NHS LOGISTICS,1010102096,2.52,
Department of Health,Salisbury NHS Foundation Trust,30/08/2019,NON DISPOSABLE BED LINEN,Musculo-Skeletal,NHS LOGISTICS,1010102096,8.46,
Department of Health,Salisbury NHS Foundation Trust,30/08/2019,DISPOSABLE TABLE LINEN,Medicine,NHS LOGISTICS,1010102096,0.65,
Department of Health,Salisbury NHS Foundation Trust,30/08/2019,TUBES,Medicine,NHS LOGISTICS,1010102096,2.34,
Department of Health,Salisbury NHS Foundation Trust,30/08/2019,SURGICAL INSTRUMENTS - DISPOSABLE,Medicine,NHS LOGISTICS,1010102096,9,
Department of Health,Salisbury NHS Foundation Trust,30/08/2019,SURGICAL INSTRUMENTS - DISPOSABLE,Medicine,NHS LOGISTICS,1010102096,12.15,
Department of Health,Salisbury NHS Foundation Trust,30/08/2019,TUBES,Surgery,NHS LOGISTICS,1010102096,5.82,
Department of Health,Salisbury NHS Foundation Trust,30/08/2019,TOILETRIES PERSONAL HYGIENE PRODUCT,Surgery,NHS LOGISTICS,1010102096,3.26,
Department of Health,Salisbury NHS Foundation Trust,30/08/2019,MEDSURGCONS-OTHER,Surgery,NHS LOGISTICS,1010102096,25.56,
Department of Health,Salisbury NHS Foundation Trust,30/08/2019,TISSUES HAND TOWELS & TOILET PAPER,Surgery,NHS LOGISTICS,1010102096,0.6,
Department of Health,Salisbury NHS Foundation Trust,30/08/2019,MEDSURGCONS-OTHER,Surgery,NHS LOGISTICS,1010102096,0.76,
Department of Health,Salisbury NHS Foundation Trust,30/08/2019,DISPOSABLE THEATRE DRAPES WIPES,Surgery,NHS LOGISTICS,1010102096,2.93,
Department of Health,Salisbury NHS Foundation Trust,30/08/2019,DISPOSABLE THEATRE DRAPES WIPES,Surgery,NHS LOGISTICS,1010102096,10.6,
Department of Health,Salisbury NHS Foundation Trust,30/08/2019,MEDSURGCONS-OTHER,Surgery,NHS LOGISTICS,1010102096,0.76,
Department of Health,Salisbury NHS Foundation Trust,30/08/2019,PATIENTS INCONTINENCE,Medicine,NHS LOGISTICS,1010102096,6.56,
Department of Health,Salisbury NHS Foundation Trust,30/08/2019,DISPOSABLE THEATRE DRAPES WIPES,Medicine,NHS LOGISTICS,1010102096,1.73,
Department of Health,Salisbury NHS Foundation Trust,30/08/2019,TISSUES HAND TOWELS & TOILET PAPER,Medicine,NHS LOGISTICS,1010102096,1.8,
Department of Health,Salisbury NHS Foundation Trust,30/08/2019,M & S EQUIPELECTEQUIPINST - OTHER,Medicine,NHS LOGISTICS,1010102096,1.69,
Department of Health,Salisbury NHS Foundation Trust,30/08/2019,OTHER MEDICAL SUPPLIES,Medicine,NHS LOGISTICS,1010102096,6.63,
Department of Health,Salisbury NHS Foundation Trust,30/08/2019,PATIENTS INCONTINENCE,Medicine,NHS LOGISTICS,1010102096,5.62,
Department of Health,Salisbury NHS Foundation Trust,30/08/2019,MEDSURGCONS-OTHER,Medicine,NHS LOGISTICS,1010102096,3.24,
Department of Health,Salisbury NHS Foundation Trust,30/08/2019,DISPOSABLE THEATRE DRAPES WIPES,Medicine,NHS LOGISTICS,1010102096,5.44,
Department of Health,Salisbury NHS Foundation Trust,30/08/2019,DISPOSABLE THEATRE DRAPES WIPES,Medicine,NHS LOGISTICS,1010102096,10.6,
Department of Health,Salisbury NHS Foundation Trust,30/08/2019,OTHER MEDICAL SUPPLIES,Surgery,NHS LOGISTICS,1010102096,82,
Department of Health,Salisbury NHS Foundation Trust,30/08/2019,DRESSINGS - PRE STERILE,Surgery,NHS LOGISTICS,1010102096,1.36,
Department of Health,Salisbury NHS Foundation Trust,30/08/2019,ELECTRICAL EQUIPMENT,Surgery,NHS LOGISTICS,1010102096,0.85,
Department of Health,Salisbury NHS Foundation Trust,30/08/2019,DRESSINGS - PRE STERILE,Surgery,NHS LOGISTICS,1010102096,1.45,
Department of Health,Salisbury NHS Foundation Trust,30/08/2019,DRESSINGS - PRE STERILE,Surgery,NHS LOGISTICS,1010102096,4.2,
Department of Health,Salisbury NHS Foundation Trust,30/08/2019,MEDSURGCONS-OTHER,Surgery,NHS LOGISTICS,1010102096,26.65,
Department of Health,Salisbury NHS Foundation Trust,30/08/2019,MEDSURGCONS-OTHER,Surgery,NHS LOGISTICS,1010102096,6.76,
Department of Health,Salisbury NHS Foundation Trust,30/08/2019,MEDSURGCONS-OTHER,Surgery,NHS LOGISTICS,1010102096,5.43,
Department of Health,Salisbury NHS Foundation Trust,30/08/2019,SURGICAL INSTRUMENTS - GENERAL,Surgery,NHS LOGISTICS,1010102096,1.16,
Department of Health,Salisbury NHS Foundation Trust,30/08/2019,M & S EQUIPELECTEQUIPINST - OTHER,Surgery,NHS LOGISTICS,1010102096,14.25,
Department of Health,Salisbury NHS Foundation Trust,30/08/2019,ANAESTHETIC EQUIPMENT ACCESSORIES,Surgery,NHS LOGISTICS,1010102096,1.92,
Department of Health,Salisbury NHS Foundation Trust,30/08/2019,COOKING & KITCHEN UTENSILS,Surgery,NHS LOGISTICS,1010102096,8.28,
Department of Health,Salisbury NHS Foundation Trust,30/08/2019,MEDSURGCONS-OTHER,Surgery,NHS LOGISTICS,1010102096,12.5,
Department of Health,Salisbury NHS Foundation Trust,30/08/2019,SURGICAL INSTRUMENTS - DISPOSABLE,Surgery,NHS LOGISTICS,1010102096,4.5,
Department of Health,Salisbury NHS Foundation Trust,30/08/2019,PATIENTS INCONTINENCE,Surgery,NHS LOGISTICS,1010102096,15.24,
Department of Health,Salisbury NHS Foundation Trust,30/08/2019,MEDSURGCONS-OTHER,Surgery,NHS LOGISTICS,1010102096,3.53,
Department of Health,Salisbury NHS Foundation Trust,30/08/2019,TISSUES HAND TOWELS & TOILET PAPER,Surgery,NHS LOGISTICS,1010102096,1.2,
Department of Health,Salisbury NHS Foundation Trust,30/08/2019,MEDSURGCONS-OTHER,Surgery,NHS LOGISTICS,1010102096,1.52,
Department of Health,Salisbury NHS Foundation Trust,30/08/2019,TUBES,Surgery,NHS LOGISTICS,1010102096,2.74,
Department of Health,Salisbury NHS Foundation Trust,30/08/2019,NON DISPOSABLE BED LINEN,Surgery,NHS LOGISTICS,1010102096,8.46,
Department of Health,Salisbury NHS Foundation Trust,30/08/2019,DISPOSABLE THEATRE DRAPES WIPES,Surgery,NHS LOGISTICS,1010102096,5.86,
Department of Health,Salisbury NHS Foundation Trust,30/08/2019,DISPOSABLE THEATRE DRAPES WIPES,Surgery,NHS LOGISTICS,1010102096,21.2,
Department of Health,Salisbury NHS Foundation Trust,30/08/2019,TISSUES HAND TOWELS & TOILET PAPER,Clinical Support,NHS LOGISTICS,1010102096,31.59,
Department of Health,Salisbury NHS Foundation Trust,30/08/2019,MEDSURGCONS-OTHER,Clinical Support,NHS LOGISTICS,1010102096,6.76,
Department of Health,Salisbury NHS Foundation Trust,30/08/2019,MEDSURGCONS-OTHER,Clinical Support,NHS LOGISTICS,1010102096,5.43,
Department of Health,Salisbury NHS Foundation Trust,30/08/2019,DRESSINGS - PRE STERILE,Clinical Support,NHS LOGISTICS,1010102096,3.6,
Department of Health,Salisbury NHS Foundation Trust,30/08/2019,MEDSURGCONS-OTHER,Clinical Support,NHS LOGISTICS,1010102096,5.4,
Department of Health,Salisbury NHS Foundation Trust,30/08/2019,DISPOSABLE THEATRE DRAPES WIPES,Clinical Support,NHS LOGISTICS,1010102096,5.44,
Department of Health,Salisbury NHS Foundation Trust,30/08/2019,DRESSINGS - PRE STERILE,Surgery,NHS LOGISTICS,1010102096,11.9,
Department of Health,Salisbury NHS Foundation Trust,30/08/2019,DRESSINGS - PRE STERILE,Surgery,NHS LOGISTICS,1010102096,3.34,
Department of Health,Salisbury NHS Foundation Trust,30/08/2019,DRUGS,Surgery,NHS LOGISTICS,1010102096,33.68,
Department of Health,Salisbury NHS Foundation Trust,30/08/2019,OTHER MEDICAL SUPPLIES,Surgery,NHS LOGISTICS,1010102096,6.68,
Department of Health,Salisbury NHS Foundation Trust,30/08/2019,MEDSURGCONS-OTHER,Surgery,NHS LOGISTICS,1010102096,8.4,
Department of Health,Salisbury NHS Foundation Trust,30/08/2019,MEDSURGCONS-SUTURES,Surgery,NHS LOGISTICS,1010102096,54.05,
Department of Health,Salisbury NHS Foundation Trust,30/08/2019,MEDSURGCONS-SUTURES,Surgery,NHS LOGISTICS,1010102096,65.45,
Department of Health,Salisbury NHS Foundation Trust,30/08/2019,BEVERAGES & AMBIENT FOOD,Surgery,NHS LOGISTICS,1010102096,3,
Department of Health,Salisbury NHS Foundation Trust,30/08/2019,TUBES,Surgery,NHS LOGISTICS,1010102096,16.65,
Department of Health,Salisbury NHS Foundation Trust,30/08/2019,DRESSINGS - PRE STERILE,Surgery,NHS LOGISTICS,1010102096,163.8,
Department of Health,Salisbury NHS Foundation Trust,30/08/2019,DRESSINGS - PRE STERILE,Surgery,NHS LOGISTICS,1010102096,134.86,
Department of Health,Salisbury NHS Foundation Trust,30/08/2019,MEDSURGCONS-SUTURES,Surgery,NHS LOGISTICS,1010102096,49.4,
Department of Health,Salisbury NHS Foundation Trust,30/08/2019,MEDSURGCONS-SUTURES,Surgery,NHS LOGISTICS,1010102096,75.73,
Department of Health,Salisbury NHS Foundation Trust,30/08/2019,HABERDASHERY,Surgery,NHS LOGISTICS,1010102096,15.5,
Department of Health,Salisbury NHS Foundation Trust,30/08/2019,MEDSURGCONS-OTHER,Surgery,NHS LOGISTICS,1010102096,6,
Department of Health,Salisbury NHS Foundation Trust,30/08/2019,DRESSINGS - PRE STERILE,Clinical Support,NHS LOGISTICS,1010102096,8.4,
Department of Health,Salisbury NHS Foundation Trust,30/08/2019,DRESSINGS - PRE STERILE,Clinical Support,NHS LOGISTICS,1010102096,1.56,
Department of Health,Salisbury NHS Foundation Trust,30/08/2019,DRESSINGS - PRE STERILE,Clinical Support,NHS LOGISTICS,1010102096,2.29,
Department of Health,Salisbury NHS Foundation Trust,30/08/2019,TISSUES HAND TOWELS & TOILET PAPER,Clinical Support,NHS LOGISTICS,1010102096,2.44,
Department of Health,Salisbury NHS Foundation Trust,30/08/2019,PATIENT APPLIANCES,Clinical Support,NHS LOGISTICS,1010102096,64.8,
Department of Health,Salisbury NHS Foundation Trust,30/08/2019,M & S EQUIPELECTEQUIPINST - OTHER,Clinical Support,NHS LOGISTICS,1010102096,118,
Department of Health,Salisbury NHS Foundation Trust,30/08/2019,MEDSURGCONS-OTHER,Clinical Support,NHS LOGISTICS,1010102096,3.53,
Department of Health,Salisbury NHS Foundation Trust,30/08/2019,DRESSINGS - PRE STERILE,Clinical Support,NHS LOGISTICS,1010102096,1.72,
Department of Health,Salisbury NHS Foundation Trust,30/08/2019,DRESSINGS - PRE STERILE,Clinical Support,NHS LOGISTICS,1010102096,1.12,
Department of Health,Salisbury NHS Foundation Trust,30/08/2019,MEDSURGCONS-OTHER,Clinical Support,NHS LOGISTICS,1010102096,6.4,
Department of Health,Salisbury NHS Foundation Trust,30/08/2019,DISPOSABLE THEATRE DRAPES WIPES,Clinical Support,NHS LOGISTICS,1010102096,8.16,
Department of Health,Salisbury NHS Foundation Trust,30/08/2019,DRESSINGS  -  PROCEDURE PACKS,Clinical Support,NHS LOGISTICS,1010102096,1.6,
Department of Health,Salisbury NHS Foundation Trust,30/08/2019,MEDSURGCONS-OTHER,Clinical Support,NHS LOGISTICS,1010102096,3.38,
Department of Health,Salisbury NHS Foundation Trust,30/08/2019,MEDSURGCONS-OTHER,Clinical Support,NHS LOGISTICS,1010102096,5.43,
Department of Health,Salisbury NHS Foundation Trust,30/08/2019,MEDSURGCONS-SUTURES,Clinical Support,NHS LOGISTICS,1010102096,66.33,
Department of Health,Salisbury NHS Foundation Trust,30/08/2019,HEALTHCARE - WEAR,Surgery,NHS LOGISTICS,1010102096,53.1,
Department of Health,Salisbury NHS Foundation Trust,30/08/2019,OTHER MEDICAL SUPPLIES,Medicine,NHS LOGISTICS,1010102096,27.6,
Department of Health,Salisbury NHS Foundation Trust,30/08/2019,DRESSINGS - PRE STERILE,Medicine,NHS LOGISTICS,1010102096,3.26,
Department of Health,Salisbury NHS Foundation Trust,30/08/2019,ELECTRICAL EQUIPMENT,Medicine,NHS LOGISTICS,1010102096,1.7,
Department of Health,Salisbury NHS Foundation Trust,30/08/2019,ELECTRICAL EQUIPMENT,Medicine,NHS LOGISTICS,1010102096,5.92,
Department of Health,Salisbury NHS Foundation Trust,30/08/2019,M & S EQUIPELECTEQUIPINST - OTHER,Medicine,NHS LOGISTICS,1010102096,4.88,
Department of Health,Salisbury NHS Foundation Trust,30/08/2019,TOILETRIES PERSONAL HYGIENE PRODUCT,Medicine,NHS LOGISTICS,1010102096,10.05,
Department of Health,Salisbury NHS Foundation Trust,30/08/2019,DRESSINGS - PRE STERILE,Medicine,NHS LOGISTICS,1010102096,2.75,
Department of Health,Salisbury NHS Foundation Trust,30/08/2019,MEDSURGCONS-OTHER,Medicine,NHS LOGISTICS,1010102096,7,
Department of Health,Salisbury NHS Foundation Trust,30/08/2019,MED SURG EQUIP REP MAINT CLEANING,Medicine,NHS LOGISTICS,1010102096,60.27,
Department of Health,Salisbury NHS Foundation Trust,30/08/2019,PATIENTS INCONTINENCE,Medicine,NHS LOGISTICS,1010102096,2.29,
Department of Health,Salisbury NHS Foundation Trust,30/08/2019,M & S EQUIPELECTEQUIPINST - OTHER,Medicine,NHS LOGISTICS,1010102096,11.76,
Department of Health,Salisbury NHS Foundation Trust,30/08/2019,MEDSURGCONS-OTHER,Medicine,NHS LOGISTICS,1010102096,6.76,
Department of Health,Salisbury NHS Foundation Trust,30/08/2019,MEDSURGCONS-OTHER,Medicine,NHS LOGISTICS,1010102096,5.43,
Department of Health,Salisbury NHS Foundation Trust,30/08/2019,DRESSINGS - PRE STERILE,Medicine,NHS LOGISTICS,1010102096,0.74,
Department of Health,Salisbury NHS Foundation Trust,30/08/2019,MEDSURGCONS-OTHER,Medicine,NHS LOGISTICS,1010102096,10,
Department of Health,Salisbury NHS Foundation Trust,30/08/2019,MEDSURGCONS-OTHER,Medicine,NHS LOGISTICS,1010102096,10.2,
Department of Health,Salisbury NHS Foundation Trust,30/08/2019,OTHER MEDICAL SUPPLIES,Medicine,NHS LOGISTICS,1010102096,7.12,
Department of Health,Salisbury NHS Foundation Trust,30/08/2019,OTHER MEDICAL SUPPLIES,Medicine,NHS LOGISTICS,1010102096,1.34,
Department of Health,Salisbury NHS Foundation Trust,30/08/2019,SURGICAL INSTRUMENTS - DISPOSABLE,Medicine,NHS LOGISTICS,1010102096,4.5,
Department of Health,Salisbury NHS Foundation Trust,30/08/2019,PATIENTS INCONTINENCE,Medicine,NHS LOGISTICS,1010102096,10.16,
Department of Health,Salisbury NHS Foundation Trust,30/08/2019,PATIENT APPLIANCES,Medicine,NHS LOGISTICS,1010102096,2.75,
Department of Health,Salisbury NHS Foundation Trust,30/08/2019,TOILETRIES PERSONAL HYGIENE PRODUCT,Medicine,NHS LOGISTICS,1010102096,2.88,
Department of Health,Salisbury NHS Foundation Trust,30/08/2019,DRESSINGS - PRE STERILE,Medicine,NHS LOGISTICS,1010102096,4.08,
Department of Health,Salisbury NHS Foundation Trust,30/08/2019,DRESSINGS - PRE STERILE,Medicine,NHS LOGISTICS,1010102096,3.44,
Department of Health,Salisbury NHS Foundation Trust,30/08/2019,MEDSURGCONS-OTHER,Medicine,NHS LOGISTICS,1010102096,19.2,
Department of Health,Salisbury NHS Foundation Trust,30/08/2019,TISSUES HAND TOWELS & TOILET PAPER,Medicine,NHS LOGISTICS,1010102096,0.6,
Department of Health,Salisbury NHS Foundation Trust,30/08/2019,M & S EQUIPELECTEQUIPINST - OTHER,Medicine,NHS LOGISTICS,1010102096,1.42,
Department of Health,Salisbury NHS Foundation Trust,30/08/2019,MEDSURGCONS-OTHER,Medicine,NHS LOGISTICS,1010102096,0.76,
Department of Health,Salisbury NHS Foundation Trust,30/08/2019,TUBES,Medicine,NHS LOGISTICS,1010102096,5.48,
Department of Health,Salisbury NHS Foundation Trust,30/08/2019,NON DISPOSABLE BED LINEN,Medicine,NHS LOGISTICS,1010102096,5.64,
Department of Health,Salisbury NHS Foundation Trust,30/08/2019,TOILETRIES PERSONAL HYGIENE PRODUCT,Medicine,NHS LOGISTICS,1010102096,6.24,
Department of Health,Salisbury NHS Foundation Trust,30/08/2019,DISPOSABLE THEATRE DRAPES WIPES,Medicine,NHS LOGISTICS,1010102096,21.2,
Department of Health,Salisbury NHS Foundation Trust,30/08/2019,DISPOSABLE THEATRE DRAPES WIPES,Medicine,NHS LOGISTICS,1010102096,3.13,
Department of Health,Salisbury NHS Foundation Trust,30/08/2019,M & S EQUIPELECTEQUIPINST - OTHER,Surgery,NHS LOGISTICS,1010102096,175,
Department of Health,Salisbury NHS Foundation Trust,30/08/2019,BAGS SACKS - OTHER,Surgery,NHS LOGISTICS,1010102096,10.84,
Department of Health,Salisbury NHS Foundation Trust,30/08/2019,BAGS SACKS - OTHER,Surgery,NHS LOGISTICS,1010102096,12.18,
Department of Health,Salisbury NHS Foundation Trust,30/08/2019,DRESSINGS - PRE STERILE,Surgery,NHS LOGISTICS,1010102096,11.64,
Department of Health,Salisbury NHS Foundation Trust,30/08/2019,M & S EQUIPELECTEQUIPINST - OTHER,Surgery,NHS LOGISTICS,1010102096,2.44,
Department of Health,Salisbury NHS Foundation Trust,30/08/2019,SURGICAL INSTRUMENTS - GENERAL,Surgery,NHS LOGISTICS,1010102096,65,
Department of Health,Salisbury NHS Foundation Trust,30/08/2019,SURGICAL INSTRUMENTS - GENERAL,Surgery,NHS LOGISTICS,1010102096,18.5,
Department of Health,Salisbury NHS Foundation Trust,30/08/2019,BAGS SACKS - OTHER,Surgery,NHS LOGISTICS,1010102096,4.58,
Department of Health,Salisbury NHS Foundation Trust,30/08/2019,DRESSINGS - PRE STERILE,Surgery,NHS LOGISTICS,1010102096,1,
Department of Health,Salisbury NHS Foundation Trust,30/08/2019,DRESSINGS - PRE STERILE,Surgery,NHS LOGISTICS,1010102096,3.34,
Department of Health,Salisbury NHS Foundation Trust,30/08/2019,TOILETRIES PERSONAL HYGIENE PRODUCT,Surgery,NHS LOGISTICS,1010102096,9.16,
Department of Health,Salisbury NHS Foundation Trust,30/08/2019,DRUGS,Surgery,NHS LOGISTICS,1010102096,49.2,
Department of Health,Salisbury NHS Foundation Trust,30/08/2019,TUBES,Surgery,NHS LOGISTICS,1010102096,96.8,
Department of Health,Salisbury NHS Foundation Trust,30/08/2019,SURGICAL INSTRUMENTS - GENERAL,Surgery,NHS LOGISTICS,1010102096,5,
Department of Health,Salisbury NHS Foundation Trust,30/08/2019,TOILETRIES PERSONAL HYGIENE PRODUCT,Surgery,NHS LOGISTICS,1010102096,3.32,
Department of Health,Salisbury NHS Foundation Trust,30/08/2019,DRUGS,Surgery,NHS LOGISTICS,1010102096,20.05,
Department of Health,Salisbury NHS Foundation Trust,30/08/2019,DRUGS,Surgery,NHS LOGISTICS,1010102096,40.1,
Department of Health,Salisbury NHS Foundation Trust,30/08/2019,MEDSURGCONS-OTHER,Surgery,NHS LOGISTICS,1010102096,36,
Department of Health,Salisbury NHS Foundation Trust,30/08/2019,SERVICES FROM NHS BODIES,Surgery,NHS LOGISTICS,1010102096,8.64,
Department of Health,Salisbury NHS Foundation Trust,30/08/2019,MEDSURGCONS-SUTURES,Surgery,NHS LOGISTICS,1010102096,35.67,
Department of Health,Salisbury NHS Foundation Trust,30/08/2019,MEDSURGCONS-SUTURES,Surgery,NHS LOGISTICS,1010102096,50.41,
Department of Health,Salisbury NHS Foundation Trust,30/08/2019,MEDSURGCONS-SUTURES,Surgery,NHS LOGISTICS,1010102096,54.74,
Department of Health,Salisbury NHS Foundation Trust,30/08/2019,DRESSINGS - PRE STERILE,Surgery,NHS LOGISTICS,1010102096,5.68,
Department of Health,Salisbury NHS Foundation Trust,30/08/2019,MEDSURGCONS-OTHER,Surgery,NHS LOGISTICS,1010102096,12.8,
Department of Health,Salisbury NHS Foundation Trust,30/08/2019,NON DISPOSABLE BED LINEN,Surgery,NHS LOGISTICS,1010102096,11.28,
Department of Health,Salisbury NHS Foundation Trust,30/08/2019,PATIENT APPLIANCES,Surgery,NHS LOGISTICS,1010102096,16.8,
Department of Health,Salisbury NHS Foundation Trust,30/08/2019,CLEANING MATERIAL PRODUCTS SUNDRIES,Surgery,NHS LOGISTICS,1010102096,0.98,
Department of Health,Salisbury NHS Foundation Trust,30/08/2019,DISPOSABLE THEATRE DRAPES WIPES,Surgery,NHS LOGISTICS,1010102096,2.93,
Department of Health,Salisbury NHS Foundation Trust,30/08/2019,LAB EQUIP-LABORATORY APPARATUS,Surgery,NHS LOGISTICS,1010102096,8.9,
Department of Health,Salisbury NHS Foundation Trust,30/08/2019,HEALTHCARE - WEAR,Surgery,NHS LOGISTICS,1010102096,144.78,
Department of Health,Salisbury NHS Foundation Trust,30/08/2019,MEDSURGCONS-SUTURES,Surgery,NHS LOGISTICS,1010102096,36.06,
Department of Health,Salisbury NHS Foundation Trust,30/08/2019,MEDSURGCONS-SUTURES,Surgery,NHS LOGISTICS,1010102096,46.37,
Department of Health,Salisbury NHS Foundation Trust,30/08/2019,MEDSURGCONS-SUTURES,Surgery,NHS LOGISTICS,1010102096,142.48,
Department of Health,Salisbury NHS Foundation Trust,30/08/2019,M & S EQUIPELECTEQUIPINST - OTHER,Surgery,NHS LOGISTICS,1010102096,168,
Department of Health,Salisbury NHS Foundation Trust,30/08/2019,MEDPROST-TRAUMA PRODUCTS,Musculo-Skeletal,NHS LOGISTICS,1010102096,96.56,
Department of Health,Salisbury NHS Foundation Trust,30/08/2019,OTHER MEDICAL SUPPLIES,Surgery,NHS LOGISTICS,1010102096,23,
Department of Health,Salisbury NHS Foundation Trust,30/08/2019,TUBES,Surgery,NHS LOGISTICS,1010102096,4.99,
Department of Health,Salisbury NHS Foundation Trust,30/08/2019,MEDSURGCONS-OTHER,Surgery,NHS LOGISTICS,1010102096,24.84,
Department of Health,Salisbury NHS Foundation Trust,30/08/2019,MEDSURGCONS-OTHER,Surgery,NHS LOGISTICS,1010102096,57.4,
Department of Health,Salisbury NHS Foundation Trust,30/08/2019,TUBES,Surgery,NHS LOGISTICS,1010102096,15,
Department of Health,Salisbury NHS Foundation Trust,30/08/2019,MEDSURGCONS-OTHER,Surgery,NHS LOGISTICS,1010102096,3.38,
Department of Health,Salisbury NHS Foundation Trust,30/08/2019,DRUGS,Surgery,NHS LOGISTICS,1010102096,5.41,
Department of Health,Salisbury NHS Foundation Trust,30/08/2019,DRESSINGS - PRE STERILE,Surgery,NHS LOGISTICS,1010102096,2.9,
Department of Health,Salisbury NHS Foundation Trust,30/08/2019,DRESSINGS - PRE STERILE,Surgery,NHS LOGISTICS,1010102096,8.55,
Department of Health,Salisbury NHS Foundation Trust,30/08/2019,TISSUES HAND TOWELS & TOILET PAPER,Surgery,NHS LOGISTICS,1010102096,0.9,
Department of Health,Salisbury NHS Foundation Trust,30/08/2019,MEDSURGCONS-OTHER,Surgery,NHS LOGISTICS,1010102096,10.14,
Department of Health,Salisbury NHS Foundation Trust,30/08/2019,MEDSURGCONS-OTHER,Surgery,NHS LOGISTICS,1010102096,1.53,
Department of Health,Salisbury NHS Foundation Trust,30/08/2019,MEDSURGCONS-OTHER,Surgery,NHS LOGISTICS,1010102096,2.39,
Department of Health,Salisbury NHS Foundation Trust,30/08/2019,DRESSINGS - PRE STERILE,Surgery,NHS LOGISTICS,1010102096,1.48,
Department of Health,Salisbury NHS Foundation Trust,30/08/2019,MED SURG EQUIP REP MAINT CLEANING,Surgery,NHS LOGISTICS,1010102096,50.46,
Department of Health,Salisbury NHS Foundation Trust,30/08/2019,DRESSINGS  -  PROCEDURE PACKS,Surgery,NHS LOGISTICS,1010102096,1.4,
Department of Health,Salisbury NHS Foundation Trust,30/08/2019,OTHER MEDICAL SUPPLIES,Surgery,NHS LOGISTICS,1010102096,3,
Department of Health,Salisbury NHS Foundation Trust,30/08/2019,OTHER MEDICAL SUPPLIES,Surgery,NHS LOGISTICS,1010102096,23.58,
Department of Health,Salisbury NHS Foundation Trust,30/08/2019,MEDSURGCONS-OTHER,Surgery,NHS LOGISTICS,1010102096,44,
Department of Health,Salisbury NHS Foundation Trust,30/08/2019,MEDSURGCONS-OTHER,Surgery,NHS LOGISTICS,1010102096,3.53,
Department of Health,Salisbury NHS Foundation Trust,30/08/2019,DENTAL SURGERY SUNDRIES,Surgery,NHS LOGISTICS,1010102096,2.52,
Department of Health,Salisbury NHS Foundation Trust,30/08/2019,MEDSURGCONS-OTHER,Surgery,NHS LOGISTICS,1010102096,0.76,
Department of Health,Salisbury NHS Foundation Trust,30/08/2019,OTHER MEDICAL SUPPLIES,Surgery,NHS LOGISTICS,1010102096,10,
Department of Health,Salisbury NHS Foundation Trust,30/08/2019,OTHER MEDICAL SUPPLIES,Surgery,NHS LOGISTICS,1010102096,27,
Department of Health,Salisbury NHS Foundation Trust,30/08/2019,NON DISPOSABLE BED LINEN,Surgery,NHS LOGISTICS,1010102096,11.28,
Department of Health,Salisbury NHS Foundation Trust,30/08/2019,PATIENT APPLIANCES,Surgery,NHS LOGISTICS,1010102096,9.6,
Department of Health,Salisbury NHS Foundation Trust,30/08/2019,MEDSURGCONS-OTHER,Surgery,NHS LOGISTICS,1010102096,5.26,
Department of Health,Salisbury NHS Foundation Trust,30/08/2019,DISPOSABLE THEATRE DRAPES WIPES,Surgery,NHS LOGISTICS,1010102096,1.85,
Department of Health,Salisbury NHS Foundation Trust,30/08/2019,DISPOSABLE THEATRE DRAPES WIPES,Surgery,NHS LOGISTICS,1010102096,2.93,
Department of Health,Salisbury NHS Foundation Trust,30/08/2019,DISPOSABLE THEATRE DRAPES WIPES,Surgery,NHS LOGISTICS,1010102096,10,
Department of Health,Salisbury NHS Foundation Trust,30/08/2019,M & S EQUIPELECTEQUIPINST - OTHER,Surgery,NHS LOGISTICS,1010102096,1544,
Department of Health,Salisbury NHS Foundation Trust,30/08/2019,M & S EQUIPELECTEQUIPINST - OTHER,Surgery,NHS LOGISTICS,1010102096,841.4,
Department of Health,Salisbury NHS Foundation Trust,30/08/2019,MEDSURGCONS-SUTURES,Musculo-Skeletal,NHS LOGISTICS,1010102096,34.19,
Department of Health,Salisbury NHS Foundation Trust,30/08/2019,MEDSURGCONS-SUTURES,Musculo-Skeletal,NHS LOGISTICS,1010102096,125,
Department of Health,Salisbury NHS Foundation Trust,30/08/2019,MEDSURGCONS-SUTURES,Musculo-Skeletal,NHS LOGISTICS,1010102096,35.84,
Department of Health,Salisbury NHS Foundation Trust,30/08/2019,DRESSINGS  -  PROCEDURE PACKS,Corporate - Finance & Procurement,NHS LOGISTICS,1010102096,193.2,
Department of Health,Salisbury NHS Foundation Trust,30/08/2019,DRESSINGS  -  PROCEDURE PACKS,Corporate - Finance & Procurement,NHS LOGISTICS,1010102096,271.21,
Department of Health,Salisbury NHS Foundation Trust,30/08/2019,DRESSINGS  -  PROCEDURE PACKS,Corporate - Finance & Procurement,NHS LOGISTICS,1010102096,343.43,
Department of Health,Salisbury NHS Foundation Trust,30/08/2019,DRESSINGS  -  PROCEDURE PACKS,Corporate - Finance & Procurement,NHS LOGISTICS,1010102096,421.85,
Department of Health,Salisbury NHS Foundation Trust,30/08/2019,DRESSINGS  -  PROCEDURE PACKS,Corporate - Finance & Procurement,NHS LOGISTICS,1010102096,292.8,
Department of Health,Salisbury NHS Foundation Trust,30/08/2019,DRESSINGS  -  PROCEDURE PACKS,Corporate - Finance & Procurement,NHS LOGISTICS,1010102096,205.58,
Department of Health,Salisbury NHS Foundation Trust,30/08/2019,DRESSINGS  -  PROCEDURE PACKS,Corporate - Finance & Procurement,NHS LOGISTICS,1010102096,499.1,
Department of Health,Salisbury NHS Foundation Trust,30/08/2019,DRESSINGS  -  PROCEDURE PACKS,Corporate - Finance & Procurement,NHS LOGISTICS,1010102096,254.9,
Department of Health,Salisbury NHS Foundation Trust,30/08/2019,DRESSINGS  -  PROCEDURE PACKS,Corporate - Finance & Procurement,NHS LOGISTICS,1010102096,242.87,
Department of Health,Salisbury NHS Foundation Trust,30/08/2019,DRESSINGS  -  PROCEDURE PACKS,Corporate - Finance & Procurement,NHS LOGISTICS,1010102096,199.6,
Department of Health,Salisbury NHS Foundation Trust,30/08/2019,DRESSINGS  -  PROCEDURE PACKS,Corporate - Finance & Procurement,NHS LOGISTICS,1010102096,255.6,
Department of Health,Salisbury NHS Foundation Trust,30/08/2019,DRESSINGS  -  PROCEDURE PACKS,Corporate - Finance & Procurement,NHS LOGISTICS,1010102096,182.42,
Department of Health,Salisbury NHS Foundation Trust,30/08/2019,DRESSINGS  -  PROCEDURE PACKS,Corporate - Finance & Procurement,NHS LOGISTICS,1010102096,25.41,
Department of Health,Salisbury NHS Foundation Trust,30/08/2019,DRESSINGS  -  PROCEDURE PACKS,Clinical Support,NHS LOGISTICS,1010102096,7.77,
Department of Health,Salisbury NHS Foundation Trust,30/08/2019,BAGS SACKS - OTHER,Clinical Support,NHS LOGISTICS,1010102096,4.28,
Department of Health,Salisbury NHS Foundation Trust,30/08/2019,BAGS SACKS - OTHER,Clinical Support,NHS LOGISTICS,1010102096,16.32,
Department of Health,Salisbury NHS Foundation Trust,30/08/2019,MEDSURGCONS-OTHER,Medicine,NHS LOGISTICS,1010102096,850,
Department of Health,Salisbury NHS Foundation Trust,30/08/2019,MEDSURGCONS-OTHER,Medicine,NHS LOGISTICS,1010102096,87.5,
Department of Health,Salisbury NHS Foundation Trust,30/08/2019,NON DISPOSABLE BED LINEN,Medicine,NHS LOGISTICS,1010102096,21.8,
Department of Health,Salisbury NHS Foundation Trust,30/08/2019,TISSUES HAND TOWELS & TOILET PAPER,Surgery,NHS LOGISTICS,1010102096,2.28,
Department of Health,Salisbury NHS Foundation Trust,30/08/2019,TISSUES HAND TOWELS & TOILET PAPER,Surgery,NHS LOGISTICS,1010102096,3.66,
Department of Health,Salisbury NHS Foundation Trust,30/08/2019,MED SURG EQUIP REP MAINT CLEANING,Surgery,NHS LOGISTICS,1010102096,209.55,
Department of Health,Salisbury NHS Foundation Trust,30/08/2019,MEDSURGCONS-OTHER,Clinical Support,NHS LOGISTICS,1010102096,5.43,
Department of Health,Salisbury NHS Foundation Trust,30/08/2019,OTHER MEDICAL SUPPLIES,Clinical Support,NHS LOGISTICS,1010102096,7.12,
Department of Health,Salisbury NHS Foundation Trust,30/08/2019,X-RAY FILM PROCESSING CHEMICALS,Clinical Support,NHS LOGISTICS,1010102096,125.2,
Department of Health,Salisbury NHS Foundation Trust,30/08/2019,DISPOSABLE THEATRE DRAPES WIPES,Clinical Support,NHS LOGISTICS,1010102096,10.6,
Department of Health,Salisbury NHS Foundation Trust,30/08/2019,OTHER MEDICAL SUPPLIES,Medicine,NHS LOGISTICS,1010102096,9.2,
Department of Health,Salisbury NHS Foundation Trust,30/08/2019,OTHER MEDICAL SUPPLIES,Medicine,NHS LOGISTICS,1010102096,41,
Department of Health,Salisbury NHS Foundation Trust,30/08/2019,TUBES,Medicine,NHS LOGISTICS,1010102096,4.99,
Department of Health,Salisbury NHS Foundation Trust,30/08/2019,M & S EQUIPELECTEQUIPINST - OTHER,Medicine,NHS LOGISTICS,1010102096,7.98,
Department of Health,Salisbury NHS Foundation Trust,30/08/2019,M & S EQUIPELECTEQUIPINST - OTHER,Medicine,NHS LOGISTICS,1010102096,11.76,
Department of Health,Salisbury NHS Foundation Trust,30/08/2019,DRESSINGS  -  PROCEDURE PACKS,Medicine,NHS LOGISTICS,1010102096,2.45,
Department of Health,Salisbury NHS Foundation Trust,30/08/2019,SERVICES FROM NHS BODIES,Surgery,NHS LOGISTICS,1010102096,4.32,
Department of Health,Salisbury NHS Foundation Trust,30/08/2019,SERVICES FROM NHS BODIES,Surgery,NHS LOGISTICS,1010102096,3.56,
Department of Health,Salisbury NHS Foundation Trust,30/08/2019,MEDSURGCONS-OTHER,Musculo-Skeletal,NHS LOGISTICS,1010102096,318,
Department of Health,Salisbury NHS Foundation Trust,30/08/2019,TUBES,Surgery,NHS LOGISTICS,1010102096,4.99,
Department of Health,Salisbury NHS Foundation Trust,30/08/2019,DRESSINGS  -  PROCEDURE PACKS,Surgery,NHS LOGISTICS,1010102096,0.4,
Department of Health,Salisbury NHS Foundation Trust,30/08/2019,DRESSINGS - PRE STERILE,Medicine,NHS LOGISTICS,1010102096,0.68,
Department of Health,Salisbury NHS Foundation Trust,30/08/2019,DRESSINGS - PRE STERILE,Medicine,NHS LOGISTICS,1010102096,3.82,
Department of Health,Salisbury NHS Foundation Trust,30/08/2019,DRESSINGS - PRE STERILE,Medicine,NHS LOGISTICS,1010102096,10.04,
Department of Health,Salisbury NHS Foundation Trust,30/08/2019,PATIENTS INCONTINENCE,Medicine,NHS LOGISTICS,1010102096,4.72,
Department of Health,Salisbury NHS Foundation Trust,30/08/2019,MEDSURGCONS-OTHER,Medicine,NHS LOGISTICS,1010102096,44.9,
Department of Health,Salisbury NHS Foundation Trust,30/08/2019,MEDSURGCONS-OTHER,Medicine,NHS LOGISTICS,1010102096,6.76,
Department of Health,Salisbury NHS Foundation Trust,30/08/2019,MEDSURGCONS-OTHER,Medicine,NHS LOGISTICS,1010102096,5.43,
Department of Health,Salisbury NHS Foundation Trust,30/08/2019,MEDSURGCONS-OTHER,Medicine,NHS LOGISTICS,1010102096,2.39,
Department of Health,Salisbury NHS Foundation Trust,30/08/2019,DRESSINGS - PRE STERILE,Medicine,NHS LOGISTICS,1010102096,1.48,
Department of Health,Salisbury NHS Foundation Trust,30/08/2019,CLEANING MATERIAL PRODUCTS SUNDRIES,Medicine,NHS LOGISTICS,1010102096,6.6,
Department of Health,Salisbury NHS Foundation Trust,30/08/2019,MEDSURGCONS-OTHER,Medicine,NHS LOGISTICS,1010102096,22.5,
Department of Health,Salisbury NHS Foundation Trust,30/08/2019,MEDSURGCONS-OTHER,Medicine,NHS LOGISTICS,1010102096,15.3,
Department of Health,Salisbury NHS Foundation Trust,30/08/2019,OTHER MEDICAL SUPPLIES,Medicine,NHS LOGISTICS,1010102096,14.24,
Department of Health,Salisbury NHS Foundation Trust,30/08/2019,OTHER MEDICAL SUPPLIES,Medicine,NHS LOGISTICS,1010102096,1.34,
Department of Health,Salisbury NHS Foundation Trust,30/08/2019,SURGICAL INSTRUMENTS - DISPOSABLE,Medicine,NHS LOGISTICS,1010102096,6.75,
Department of Health,Salisbury NHS Foundation Trust,30/08/2019,PATIENTS INCONTINENCE,Medicine,NHS LOGISTICS,1010102096,10.16,
Department of Health,Salisbury NHS Foundation Trust,30/08/2019,DRESSINGS - PRE STERILE,Medicine,NHS LOGISTICS,1010102096,4.08,
Department of Health,Salisbury NHS Foundation Trust,30/08/2019,MEDSURGCONS-OTHER,Medicine,NHS LOGISTICS,1010102096,3.53,
Department of Health,Salisbury NHS Foundation Trust,30/08/2019,MEDSURGCONS-OTHER,Medicine,NHS LOGISTICS,1010102096,19.2,
Department of Health,Salisbury NHS Foundation Trust,30/08/2019,TISSUES HAND TOWELS & TOILET PAPER,Medicine,NHS LOGISTICS,1010102096,0.6,
Department of Health,Salisbury NHS Foundation Trust,30/08/2019,MEDSURGCONS-OTHER,Medicine,NHS LOGISTICS,1010102096,0.76,
Department of Health,Salisbury NHS Foundation Trust,30/08/2019,DRESSINGS - PRE STERILE,Medicine,NHS LOGISTICS,1010102096,7.66,
Department of Health,Salisbury NHS Foundation Trust,30/08/2019,NON DISPOSABLE BED LINEN,Medicine,NHS LOGISTICS,1010102096,8.46,
Department of Health,Salisbury NHS Foundation Trust,30/08/2019,PATIENT APPLIANCES,Medicine,NHS LOGISTICS,1010102096,1.34,
Department of Health,Salisbury NHS Foundation Trust,30/08/2019,MEDSURGCONS-OTHER,Medicine,NHS LOGISTICS,1010102096,2.4,
Department of Health,Salisbury NHS Foundation Trust,30/08/2019,DISPOSABLE THEATRE DRAPES WIPES,Medicine,NHS LOGISTICS,1010102096,2.93,
Department of Health,Salisbury NHS Foundation Trust,30/08/2019,DISPOSABLE THEATRE DRAPES WIPES,Medicine,NHS LOGISTICS,1010102096,5.44,
Department of Health,Salisbury NHS Foundation Trust,30/08/2019,DISPOSABLE THEATRE DRAPES WIPES,Medicine,NHS LOGISTICS,1010102096,10.6,
Department of Health,Salisbury NHS Foundation Trust,30/08/2019,TISSUES HAND TOWELS & TOILET PAPER,Musculo-Skeletal,NHS LOGISTICS,1010102096,4.88,
Department of Health,Salisbury NHS Foundation Trust,30/08/2019,PATIENT APPLIANCES,Musculo-Skeletal,NHS LOGISTICS,1010102096,9.3,
Department of Health,Salisbury NHS Foundation Trust,30/08/2019,PATIENT APPLIANCES,Musculo-Skeletal,NHS LOGISTICS,1010102096,9.3,
Department of Health,Salisbury NHS Foundation Trust,30/08/2019,PATIENT APPLIANCES,Musculo-Skeletal,NHS LOGISTICS,1010102096,18.6,
Department of Health,Salisbury NHS Foundation Trust,30/08/2019,PATIENT APPLIANCES,Musculo-Skeletal,NHS LOGISTICS,1010102096,18.6,
Department of Health,Salisbury NHS Foundation Trust,30/08/2019,MEDSURGCONS-OTHER,Musculo-Skeletal,NHS LOGISTICS,1010102096,2.39,
Department of Health,Salisbury NHS Foundation Trust,30/08/2019,PATIENT APPLIANCES,Musculo-Skeletal,NHS LOGISTICS,1010102096,35,
Department of Health,Salisbury NHS Foundation Trust,30/08/2019,PATIENT APPLIANCES,Musculo-Skeletal,NHS LOGISTICS,1010102096,17.5,
Department of Health,Salisbury NHS Foundation Trust,30/08/2019,OTHER MEDICAL SUPPLIES,Musculo-Skeletal,NHS LOGISTICS,1010102096,2.68,
Department of Health,Salisbury NHS Foundation Trust,30/08/2019,DRESSINGS - PRE STERILE,Musculo-Skeletal,NHS LOGISTICS,1010102096,2.04,
Department of Health,Salisbury NHS Foundation Trust,30/08/2019,MEDSURGCONS-OTHER,Musculo-Skeletal,NHS LOGISTICS,1010102096,6.4,
Department of Health,Salisbury NHS Foundation Trust,30/08/2019,DISPOSABLE THEATRE DRAPES WIPES,Musculo-Skeletal,NHS LOGISTICS,1010102096,2.93,
Department of Health,Salisbury NHS Foundation Trust,30/08/2019,DISPOSABLE THEATRE DRAPES WIPES,Surgery,NHS LOGISTICS,1010102096,3.2,
Department of Health,Salisbury NHS Foundation Trust,30/08/2019,DRESSINGS - PRE STERILE,Surgery,NHS LOGISTICS,1010102096,8.17,
Department of Health,Salisbury NHS Foundation Trust,30/08/2019,DRESSINGS - PRE STERILE,Surgery,NHS LOGISTICS,1010102096,3.08,
Department of Health,Salisbury NHS Foundation Trust,30/08/2019,DRESSINGS - PRE STERILE,Surgery,NHS LOGISTICS,1010102096,4.56,
Department of Health,Salisbury NHS Foundation Trust,30/08/2019,TISSUES HAND TOWELS & TOILET PAPER,Surgery,NHS LOGISTICS,1010102096,1.22,
Department of Health,Salisbury NHS Foundation Trust,30/08/2019,TISSUES HAND TOWELS & TOILET PAPER,Surgery,NHS LOGISTICS,1010102096,10.53,
Department of Health,Salisbury NHS Foundation Trust,30/08/2019,DRESSINGS - PRE STERILE,Surgery,NHS LOGISTICS,1010102096,1.48,
Department of Health,Salisbury NHS Foundation Trust,30/08/2019,SURGICAL INSTRUMENTS - DISPOSABLE,Surgery,NHS LOGISTICS,1010102096,6.75,
Department of Health,Salisbury NHS Foundation Trust,30/08/2019,MEDSURGCONS-OTHER,Surgery,NHS LOGISTICS,1010102096,5.4,
Department of Health,Salisbury NHS Foundation Trust,30/08/2019,NON DISPOSABLE BED LINEN,Surgery,NHS LOGISTICS,1010102096,2.82,
Department of Health,Salisbury NHS Foundation Trust,30/08/2019,OTHER MEDICAL SUPPLIES,Medicine,NHS LOGISTICS,1010102096,41,
Department of Health,Salisbury NHS Foundation Trust,30/08/2019,DRESSINGS - PRE STERILE,Medicine,NHS LOGISTICS,1010102096,3.82,
Department of Health,Salisbury NHS Foundation Trust,30/08/2019,M & S EQUIPELECTEQUIPINST - OTHER,Medicine,NHS LOGISTICS,1010102096,6.76,
Department of Health,Salisbury NHS Foundation Trust,30/08/2019,ELECTRICAL EQUIPMENT,Medicine,NHS LOGISTICS,1010102096,1.48,
Department of Health,Salisbury NHS Foundation Trust,30/08/2019,DRESSINGS - PRE STERILE,Medicine,NHS LOGISTICS,1010102096,11.9,
Department of Health,Salisbury NHS Foundation Trust,30/08/2019,PATIENTS INCONTINENCE,Medicine,NHS LOGISTICS,1010102096,4.72,
Department of Health,Salisbury NHS Foundation Trust,30/08/2019,M & S EQUIPELECTEQUIPINST - OTHER,Medicine,NHS LOGISTICS,1010102096,11.76,
Department of Health,Salisbury NHS Foundation Trust,30/08/2019,MEDSURGCONS-OTHER,Medicine,NHS LOGISTICS,1010102096,3.38,
Department of Health,Salisbury NHS Foundation Trust,30/08/2019,MEDSURGCONS-OTHER,Medicine,NHS LOGISTICS,1010102096,2.39,
Department of Health,Salisbury NHS Foundation Trust,30/08/2019,DRESSINGS - PRE STERILE,Medicine,NHS LOGISTICS,1010102096,0.74,
Department of Health,Salisbury NHS Foundation Trust,30/08/2019,MEDSURGCONS-OTHER,Medicine,NHS LOGISTICS,1010102096,10,
Department of Health,Salisbury NHS Foundation Trust,30/08/2019,OTHER MEDICAL SUPPLIES,Medicine,NHS LOGISTICS,1010102096,7.12,
Department of Health,Salisbury NHS Foundation Trust,30/08/2019,OTHER MEDICAL SUPPLIES,Medicine,NHS LOGISTICS,1010102096,3.58,
Department of Health,Salisbury NHS Foundation Trust,30/08/2019,SURGICAL INSTRUMENTS - DISPOSABLE,Medicine,NHS LOGISTICS,1010102096,4.5,
Department of Health,Salisbury NHS Foundation Trust,30/08/2019,PATIENTS INCONTINENCE,Medicine,NHS LOGISTICS,1010102096,16.86,
Department of Health,Salisbury NHS Foundation Trust,30/08/2019,MEDSURGCONS-OTHER,Medicine,NHS LOGISTICS,1010102096,3.53,
Department of Health,Salisbury NHS Foundation Trust,30/08/2019,MEDSURGCONS-OTHER,Medicine,NHS LOGISTICS,1010102096,6.4,
Department of Health,Salisbury NHS Foundation Trust,30/08/2019,TISSUES HAND TOWELS & TOILET PAPER,Medicine,NHS LOGISTICS,1010102096,0.6,
Department of Health,Salisbury NHS Foundation Trust,30/08/2019,MEDSURGCONS-OTHER,Medicine,NHS LOGISTICS,1010102096,0.78,
Department of Health,Salisbury NHS Foundation Trust,30/08/2019,DRESSINGS - PRE STERILE,Medicine,NHS LOGISTICS,1010102096,3.83,
Department of Health,Salisbury NHS Foundation Trust,30/08/2019,NON DISPOSABLE BED LINEN,Medicine,NHS LOGISTICS,1010102096,5.64,
Department of Health,Salisbury NHS Foundation Trust,30/08/2019,MEDSURGCONS-OTHER,Medicine,NHS LOGISTICS,1010102096,1.2,
Department of Health,Salisbury NHS Foundation Trust,30/08/2019,DISPOSABLE THEATRE DRAPES WIPES,Medicine,NHS LOGISTICS,1010102096,10.6,
Department of Health,Salisbury NHS Foundation Trust,30/08/2019,DRESSINGS - PRE STERILE,Medicine,NHS LOGISTICS,1010102096,17.1,
Department of Health,Salisbury NHS Foundation Trust,30/08/2019,DRESSINGS - PRE STERILE,Clinical Support,NHS LOGISTICS,1010102096,3.4,
Department of Health,Salisbury NHS Foundation Trust,30/08/2019,OTHER MEDICAL SUPPLIES,Clinical Support,NHS LOGISTICS,1010102096,71.24,
Department of Health,Salisbury NHS Foundation Trust,30/08/2019,M & S EQUIPELECTEQUIPINST - OTHER,Clinical Support,NHS LOGISTICS,1010102096,2.44,
Department of Health,Salisbury NHS Foundation Trust,30/08/2019,MEDSURGCONS-OTHER,Clinical Support,NHS LOGISTICS,1010102096,12,
Department of Health,Salisbury NHS Foundation Trust,30/08/2019,DRESSINGS - PRE STERILE,Clinical Support,NHS LOGISTICS,1010102096,13.05,
Department of Health,Salisbury NHS Foundation Trust,30/08/2019,MEDSURGCONS-OTHER,Clinical Support,NHS LOGISTICS,1010102096,77.8,
Department of Health,Salisbury NHS Foundation Trust,30/08/2019,DRUGS,Clinical Support,NHS LOGISTICS,1010102096,9.5,
Department of Health,Salisbury NHS Foundation Trust,30/08/2019,OTHER MEDICAL SUPPLIES,Surgery,NHS LOGISTICS,1010102096,12.96,
Department of Health,Salisbury NHS Foundation Trust,30/08/2019,OTHER MEDICAL SUPPLIES,Surgery,NHS LOGISTICS,1010102096,23,
Department of Health,Salisbury NHS Foundation Trust,30/08/2019,OTHER MEDICAL SUPPLIES,Surgery,NHS LOGISTICS,1010102096,3.2,
Department of Health,Salisbury NHS Foundation Trust,30/08/2019,OTHER MEDICAL SUPPLIES,Surgery,NHS LOGISTICS,1010102096,1.6,
Department of Health,Salisbury NHS Foundation Trust,30/08/2019,TUBES,Surgery,NHS LOGISTICS,1010102096,9.98,
Department of Health,Salisbury NHS Foundation Trust,30/08/2019,MEDSURGCONS-OTHER,Surgery,NHS LOGISTICS,1010102096,8.27,
Department of Health,Salisbury NHS Foundation Trust,30/08/2019,TUBES,Surgery,NHS LOGISTICS,1010102096,3,
Department of Health,Salisbury NHS Foundation Trust,30/08/2019,TUBES,Surgery,NHS LOGISTICS,1010102096,4.5,
Department of Health,Salisbury NHS Foundation Trust,30/08/2019,DRESSINGS - PRE STERILE,Surgery,NHS LOGISTICS,1010102096,11.9,
Department of Health,Salisbury NHS Foundation Trust,30/08/2019,MEDSURGCONS-OTHER,Surgery,NHS LOGISTICS,1010102096,10.14,
Department of Health,Salisbury NHS Foundation Trust,30/08/2019,MEDSURGCONS-OTHER,Surgery,NHS LOGISTICS,1010102096,10.86,
Department of Health,Salisbury NHS Foundation Trust,30/08/2019,MEDSURGCONS-OTHER,Surgery,NHS LOGISTICS,1010102096,3.06,
Department of Health,Salisbury NHS Foundation Trust,30/08/2019,MEDSURGCONS-OTHER,Surgery,NHS LOGISTICS,1010102096,2.39,
Department of Health,Salisbury NHS Foundation Trust,30/08/2019,M & S EQUIPELECTEQUIPINST - OTHER,Surgery,NHS LOGISTICS,1010102096,50,
Department of Health,Salisbury NHS Foundation Trust,30/08/2019,MEDSURGCONS-OTHER,Surgery,NHS LOGISTICS,1010102096,22.5,
Department of Health,Salisbury NHS Foundation Trust,30/08/2019,MEDSURGCONS-OTHER,Surgery,NHS LOGISTICS,1010102096,7.5,
Department of Health,Salisbury NHS Foundation Trust,30/08/2019,MEDSURGCONS-OTHER,Surgery,NHS LOGISTICS,1010102096,5,
Department of Health,Salisbury NHS Foundation Trust,30/08/2019,MEDSURGCONS-OTHER,Surgery,NHS LOGISTICS,1010102096,23,
Department of Health,Salisbury NHS Foundation Trust,30/08/2019,DRUGS,Surgery,NHS LOGISTICS,1010102096,21.24,
Department of Health,Salisbury NHS Foundation Trust,30/08/2019,OTHER MEDICAL SUPPLIES,Surgery,NHS LOGISTICS,1010102096,10.6,
Department of Health,Salisbury NHS Foundation Trust,30/08/2019,OTHER MEDICAL SUPPLIES,Surgery,NHS LOGISTICS,1010102096,10.6,
Department of Health,Salisbury NHS Foundation Trust,30/08/2019,OTHER MEDICAL SUPPLIES,Surgery,NHS LOGISTICS,1010102096,10.6,
Department of Health,Salisbury NHS Foundation Trust,30/08/2019,SURGICAL INSTRUMENTS - GENERAL,Surgery,NHS LOGISTICS,1010102096,9.5,
Department of Health,Salisbury NHS Foundation Trust,30/08/2019,MEDSURGCONS-OTHER,Surgery,NHS LOGISTICS,1010102096,7.78,
Department of Health,Salisbury NHS Foundation Trust,30/08/2019,MEDSURGCONS-OTHER,Surgery,NHS LOGISTICS,1010102096,3.53,
Department of Health,Salisbury NHS Foundation Trust,30/08/2019,TUBES,Surgery,NHS LOGISTICS,1010102096,5.48,
Department of Health,Salisbury NHS Foundation Trust,30/08/2019,ELECTRICAL EQUIPMENT,Medicine,NHS LOGISTICS,1010102096,1.48,
Department of Health,Salisbury NHS Foundation Trust,30/08/2019,TOILETRIES PERSONAL HYGIENE PRODUCT,Medicine,NHS LOGISTICS,1010102096,6.7,
Department of Health,Salisbury NHS Foundation Trust,30/08/2019,TISSUES HAND TOWELS & TOILET PAPER,Medicine,NHS LOGISTICS,1010102096,1.14,
Department of Health,Salisbury NHS Foundation Trust,30/08/2019,TISSUES HAND TOWELS & TOILET PAPER,Medicine,NHS LOGISTICS,1010102096,21.06,
Department of Health,Salisbury NHS Foundation Trust,30/08/2019,MEDSURGCONS-OTHER,Medicine,NHS LOGISTICS,1010102096,36.36,
Department of Health,Salisbury NHS Foundation Trust,30/08/2019,MEDSURGCONS-OTHER,Medicine,NHS LOGISTICS,1010102096,2.95,
Department of Health,Salisbury NHS Foundation Trust,30/08/2019,TISSUES HAND TOWELS & TOILET PAPER,Surgery,NHS LOGISTICS,1010102096,10.53,
Department of Health,Salisbury NHS Foundation Trust,30/08/2019,MEDSURGCONS-OTHER,Surgery,NHS LOGISTICS,1010102096,24,
Department of Health,Salisbury NHS Foundation Trust,30/08/2019,DRESSINGS - PRE STERILE,Surgery,NHS LOGISTICS,1010102096,1.44,
Department of Health,Salisbury NHS Foundation Trust,30/08/2019,DISPOSABLE THEATRE DRAPES WIPES,Surgery,NHS LOGISTICS,1010102096,5.44,
Department of Health,Salisbury NHS Foundation Trust,30/08/2019,DRESSINGS  -  PROCEDURE PACKS,Clinical Support,NHS LOGISTICS,1010102096,1050,
Department of Health,Salisbury NHS Foundation Trust,30/08/2019,DRESSINGS  -  PROCEDURE PACKS,Clinical Support,NHS LOGISTICS,1010102096,37.45,
Department of Health,Salisbury NHS Foundation Trust,30/08/2019,OTHER MEDICAL SUPPLIES,Clinical Support,NHS LOGISTICS,1010102096,25.5,
Department of Health,Salisbury NHS Foundation Trust,30/08/2019,MEDSURGCONS-OTHER,Clinical Support,NHS LOGISTICS,1010102096,41.6,
Department of Health,Salisbury NHS Foundation Trust,30/08/2019,BAGS SACKS - OTHER,Surgery,NHS LOGISTICS,1010102096,8.13,
Department of Health,Salisbury NHS Foundation Trust,30/08/2019,NON DISPOSABLE BED LINEN,Surgery,NHS LOGISTICS,1010102096,16.92,
Department of Health,Salisbury NHS Foundation Trust,30/08/2019,PATIENT APPLIANCES,Clinical Support,NHS LOGISTICS,1010102096,14.34,
Department of Health,Salisbury NHS Foundation Trust,30/08/2019,LAB EQUIP-LABORATORY APPARATUS,Clinical Support,NHS LOGISTICS,1010102096,58.4,
Department of Health,Salisbury NHS Foundation Trust,30/08/2019,DISPOSABLE THEATRE DRAPES WIPES,Clinical Support,NHS LOGISTICS,1010102096,11.1,
Department of Health,Salisbury NHS Foundation Trust,30/08/2019,TISSUES HAND TOWELS & TOILET PAPER,Clinical Support,NHS LOGISTICS,1010102096,3.66,
Department of Health,Salisbury NHS Foundation Trust,30/08/2019,TISSUES HAND TOWELS & TOILET PAPER,Clinical Support,NHS LOGISTICS,1010102096,10.53,
Department of Health,Salisbury NHS Foundation Trust,30/08/2019,DISPOSABLE THEATRE DRAPES WIPES,Clinical Support,NHS LOGISTICS,1010102096,12.95,
Department of Health,Salisbury NHS Foundation Trust,30/08/2019,PATIENTS BABY WEAR,Medicine,NHS LOGISTICS,1010102096,13.32,
Department of Health,Salisbury NHS Foundation Trust,30/08/2019,BEVERAGES & AMBIENT FOOD,Medicine,NHS LOGISTICS,1010102096,7.8,
Department of Health,Salisbury NHS Foundation Trust,30/08/2019,BEVERAGES & AMBIENT FOOD,Medicine,NHS LOGISTICS,1010102096,3.86,
Department of Health,Salisbury NHS Foundation Trust,30/08/2019,DRESSINGS - PRE STERILE,Medicine,NHS LOGISTICS,1010102096,2.9,
Department of Health,Salisbury NHS Foundation Trust,30/08/2019,BEVERAGES & AMBIENT FOOD,Medicine,NHS LOGISTICS,1010102096,3.12,
Department of Health,Salisbury NHS Foundation Trust,30/08/2019,MEDSURGCONS-OTHER,Medicine,NHS LOGISTICS,1010102096,1.4,
Department of Health,Salisbury NHS Foundation Trust,30/08/2019,MEDSURGCONS-OTHER,Medicine,NHS LOGISTICS,1010102096,26.6,
Department of Health,Salisbury NHS Foundation Trust,30/08/2019,M & S EQUIPELECTEQUIPINST - OTHER,Medicine,NHS LOGISTICS,1010102096,11.76,
Department of Health,Salisbury NHS Foundation Trust,30/08/2019,TUBES,Medicine,NHS LOGISTICS,1010102096,5.82,
Department of Health,Salisbury NHS Foundation Trust,30/08/2019,PATIENT APPLIANCES,Medicine,NHS LOGISTICS,1010102096,5.5,
Department of Health,Salisbury NHS Foundation Trust,30/08/2019,BEVERAGES & AMBIENT FOOD,Medicine,NHS LOGISTICS,1010102096,2.16,
Department of Health,Salisbury NHS Foundation Trust,30/08/2019,DRESSINGS - PRE STERILE,Medicine,NHS LOGISTICS,1010102096,2.04,
Department of Health,Salisbury NHS Foundation Trust,30/08/2019,BEVERAGES & AMBIENT FOOD,Medicine,NHS LOGISTICS,1010102096,3,
Department of Health,Salisbury NHS Foundation Trust,30/08/2019,MEDSURGCONS-OTHER,Medicine,NHS LOGISTICS,1010102096,12.8,
Department of Health,Salisbury NHS Foundation Trust,30/08/2019,NON DISPOSABLE BED LINEN,Medicine,NHS LOGISTICS,1010102096,14.1,
Department of Health,Salisbury NHS Foundation Trust,30/08/2019,DISPOSABLE THEATRE DRAPES WIPES,Medicine,NHS LOGISTICS,1010102096,10.6,
Department of Health,Salisbury NHS Foundation Trust,30/08/2019,DISPOSABLE THEATRE DRAPES WIPES,Medicine,NHS LOGISTICS,1010102096,9.39,
Department of Health,Salisbury NHS Foundation Trust,30/08/2019,PAPER GENERAL STATIONERY SUNDRIES,Musculo-Skeletal,NHS LOGISTICS,1010102096,52.01,
Department of Health,Salisbury NHS Foundation Trust,30/08/2019,PAPER GENERAL STATIONERY SUNDRIES,Musculo-Skeletal,NHS LOGISTICS,1010102096,59.36,
Department of Health,Salisbury NHS Foundation Trust,30/08/2019,M & S EQUIPELECTEQUIPINST - OTHER,Musculo-Skeletal,NHS LOGISTICS,1010102096,3.66,
Department of Health,Salisbury NHS Foundation Trust,30/08/2019,TISSUES HAND TOWELS & TOILET PAPER,Musculo-Skeletal,NHS LOGISTICS,1010102096,0.6,
Department of Health,Salisbury NHS Foundation Trust,30/08/2019,MEDSURGCONS-OTHER,Musculo-Skeletal,NHS LOGISTICS,1010102096,5.43,
Department of Health,Salisbury NHS Foundation Trust,30/08/2019,TUBES,Musculo-Skeletal,NHS LOGISTICS,1010102096,5.82,
Department of Health,Salisbury NHS Foundation Trust,30/08/2019,TUBES,Musculo-Skeletal,NHS LOGISTICS,1010102096,18.5,
Department of Health,Salisbury NHS Foundation Trust,30/08/2019,DISPOSABLE THEATRE DRAPES WIPES,Musculo-Skeletal,NHS LOGISTICS,1010102096,5.44,
Department of Health,Salisbury NHS Foundation Trust,30/08/2019,DRESSINGS - PRE STERILE,Musculo-Skeletal,NHS LOGISTICS,1010102096,7.64,
Department of Health,Salisbury NHS Foundation Trust,30/08/2019,DRESSINGS - PRE STERILE,Musculo-Skeletal,NHS LOGISTICS,1010102096,0.91,
Department of Health,Salisbury NHS Foundation Trust,30/08/2019,DRESSINGS - PRE STERILE,Musculo-Skeletal,NHS LOGISTICS,1010102096,3.42,
Department of Health,Salisbury NHS Foundation Trust,30/08/2019,DRESSINGS - PRE STERILE,Musculo-Skeletal,NHS LOGISTICS,1010102096,8.44,
Department of Health,Salisbury NHS Foundation Trust,30/08/2019,DRESSINGS - PRE STERILE,Musculo-Skeletal,NHS LOGISTICS,1010102096,7.42,
Department of Health,Salisbury NHS Foundation Trust,30/08/2019,TOILETRIES PERSONAL HYGIENE PRODUCT,Musculo-Skeletal,NHS LOGISTICS,1010102096,6.7,
Department of Health,Salisbury NHS Foundation Trust,30/08/2019,DRESSINGS - PRE STERILE,Musculo-Skeletal,NHS LOGISTICS,1010102096,2,
Department of Health,Salisbury NHS Foundation Trust,30/08/2019,DRESSINGS - PRE STERILE,Musculo-Skeletal,NHS LOGISTICS,1010102096,7.83,
Department of Health,Salisbury NHS Foundation Trust,30/08/2019,M & S EQUIPELECTEQUIPINST - OTHER,Musculo-Skeletal,NHS LOGISTICS,1010102096,23.52,
Department of Health,Salisbury NHS Foundation Trust,30/08/2019,MEDSURGCONS-OTHER,Musculo-Skeletal,NHS LOGISTICS,1010102096,2.39,
Department of Health,Salisbury NHS Foundation Trust,30/08/2019,PATIENT APPLIANCES,Musculo-Skeletal,NHS LOGISTICS,1010102096,17.5,
Department of Health,Salisbury NHS Foundation Trust,30/08/2019,SURGICAL INSTRUMENTS - DISPOSABLE,Musculo-Skeletal,NHS LOGISTICS,1010102096,9,
Department of Health,Salisbury NHS Foundation Trust,30/08/2019,MEDSURGCONS-SUTURES,Musculo-Skeletal,NHS LOGISTICS,1010102096,46.85,
Department of Health,Salisbury NHS Foundation Trust,30/08/2019,MEDSURGCONS-SUTURES,Musculo-Skeletal,NHS LOGISTICS,1010102096,56.48,
Department of Health,Salisbury NHS Foundation Trust,30/08/2019,DRESSINGS - PRE STERILE,Musculo-Skeletal,NHS LOGISTICS,1010102096,3.24,
Department of Health,Salisbury NHS Foundation Trust,30/08/2019,DISPOSABLE THEATRE DRAPES WIPES,Musculo-Skeletal,NHS LOGISTICS,1010102096,10.6,
Department of Health,Salisbury NHS Foundation Trust,30/08/2019,DRESSINGS  -  PROCEDURE PACKS,Musculo-Skeletal,NHS LOGISTICS,1010102096,32.4,
Department of Health,Salisbury NHS Foundation Trust,30/08/2019,DRESSINGS - PRE STERILE,Musculo-Skeletal,NHS LOGISTICS,1010102096,237.6,
Department of Health,Salisbury NHS Foundation Trust,30/08/2019,DRESSINGS - PRE STERILE,Musculo-Skeletal,NHS LOGISTICS,1010102096,118.8,
Department of Health,Salisbury NHS Foundation Trust,30/08/2019,OTHER MEDICAL SUPPLIES,Musculo-Skeletal,NHS LOGISTICS,1010102096,41,
Department of Health,Salisbury NHS Foundation Trust,30/08/2019,BAGS SACKS - OTHER,Musculo-Skeletal,NHS LOGISTICS,1010102096,3.2,
Department of Health,Salisbury NHS Foundation Trust,30/08/2019,DRESSINGS - PRE STERILE,Musculo-Skeletal,NHS LOGISTICS,1010102096,4.22,
Department of Health,Salisbury NHS Foundation Trust,30/08/2019,TOILETRIES PERSONAL HYGIENE PRODUCT,Musculo-Skeletal,NHS LOGISTICS,1010102096,3.35,
Department of Health,Salisbury NHS Foundation Trust,30/08/2019,TISSUES HAND TOWELS & TOILET PAPER,Musculo-Skeletal,NHS LOGISTICS,1010102096,1.22,
Department of Health,Salisbury NHS Foundation Trust,30/08/2019,DRESSINGS - PRE STERILE,Musculo-Skeletal,NHS LOGISTICS,1010102096,7.83,
Department of Health,Salisbury NHS Foundation Trust,30/08/2019,DRESSINGS - PRE STERILE,Musculo-Skeletal,NHS LOGISTICS,1010102096,6.14,
Department of Health,Salisbury NHS Foundation Trust,30/08/2019,DRESSINGS - PRE STERILE,Musculo-Skeletal,NHS LOGISTICS,1010102096,19.44,
Department of Health,Salisbury NHS Foundation Trust,30/08/2019,DRESSINGS - PRE STERILE,Musculo-Skeletal,NHS LOGISTICS,1010102096,10.25,
Department of Health,Salisbury NHS Foundation Trust,30/08/2019,DRESSINGS - PRE STERILE,Musculo-Skeletal,NHS LOGISTICS,1010102096,3.34,
Department of Health,Salisbury NHS Foundation Trust,30/08/2019,TISSUES HAND TOWELS & TOILET PAPER,Musculo-Skeletal,NHS LOGISTICS,1010102096,1.2,
Department of Health,Salisbury NHS Foundation Trust,30/08/2019,PATIENTS INCONTINENCE,Musculo-Skeletal,NHS LOGISTICS,1010102096,2.29,
Department of Health,Salisbury NHS Foundation Trust,30/08/2019,MEDSURGCONS-OTHER,Musculo-Skeletal,NHS LOGISTICS,1010102096,26.65,
Department of Health,Salisbury NHS Foundation Trust,30/08/2019,MEDSURGCONS-OTHER,Musculo-Skeletal,NHS LOGISTICS,1010102096,26.6,
Department of Health,Salisbury NHS Foundation Trust,30/08/2019,M & S EQUIPELECTEQUIPINST - OTHER,Musculo-Skeletal,NHS LOGISTICS,1010102096,8.1,
Department of Health,Salisbury NHS Foundation Trust,30/08/2019,MEDSURGCONS-OTHER,Musculo-Skeletal,NHS LOGISTICS,1010102096,10.14,
Department of Health,Salisbury NHS Foundation Trust,30/08/2019,MEDSURGCONS-OTHER,Musculo-Skeletal,NHS LOGISTICS,1010102096,5.43,
Department of Health,Salisbury NHS Foundation Trust,30/08/2019,MEDSURGCONS-OTHER,Musculo-Skeletal,NHS LOGISTICS,1010102096,1.53,
Department of Health,Salisbury NHS Foundation Trust,30/08/2019,DRESSINGS - PRE STERILE,Musculo-Skeletal,NHS LOGISTICS,1010102096,2.22,
Department of Health,Salisbury NHS Foundation Trust,30/08/2019,OTHER MEDICAL SUPPLIES,Musculo-Skeletal,NHS LOGISTICS,1010102096,0.56,
Department of Health,Salisbury NHS Foundation Trust,30/08/2019,ANAESTHETIC EQUIPMENT ACCESSORIES,Musculo-Skeletal,NHS LOGISTICS,1010102096,2.4,
Department of Health,Salisbury NHS Foundation Trust,30/08/2019,MEDSURGCONS-OTHER,Musculo-Skeletal,NHS LOGISTICS,1010102096,15,
Department of Health,Salisbury NHS Foundation Trust,30/08/2019,OTHER MEDICAL SUPPLIES,Musculo-Skeletal,NHS LOGISTICS,1010102096,7.12,
Department of Health,Salisbury NHS Foundation Trust,30/08/2019,OTHER MEDICAL SUPPLIES,Musculo-Skeletal,NHS LOGISTICS,1010102096,4.02,
Department of Health,Salisbury NHS Foundation Trust,30/08/2019,SURGICAL INSTRUMENTS - DISPOSABLE,Musculo-Skeletal,NHS LOGISTICS,1010102096,2.25,
Department of Health,Salisbury NHS Foundation Trust,30/08/2019,PATIENTS INCONTINENCE,Musculo-Skeletal,NHS LOGISTICS,1010102096,12.7,
Department of Health,Salisbury NHS Foundation Trust,30/08/2019,OTHER MEDICAL SUPPLIES,Musculo-Skeletal,NHS LOGISTICS,1010102096,5.2,
Department of Health,Salisbury NHS Foundation Trust,30/08/2019,PATIENT APPLIANCES,Musculo-Skeletal,NHS LOGISTICS,1010102096,5.5,
Department of Health,Salisbury NHS Foundation Trust,30/08/2019,PATIENT APPLIANCES,Musculo-Skeletal,NHS LOGISTICS,1010102096,3.6,
Department of Health,Salisbury NHS Foundation Trust,30/08/2019,MEDSURGCONS-OTHER,Musculo-Skeletal,NHS LOGISTICS,1010102096,40.68,
Department of Health,Salisbury NHS Foundation Trust,30/08/2019,TOILETRIES PERSONAL HYGIENE PRODUCT,Musculo-Skeletal,NHS LOGISTICS,1010102096,2.88,
Department of Health,Salisbury NHS Foundation Trust,30/08/2019,DRESSINGS - PRE STERILE,Musculo-Skeletal,NHS LOGISTICS,1010102096,4.08,
Department of Health,Salisbury NHS Foundation Trust,30/08/2019,MEDSURGCONS-OTHER,Musculo-Skeletal,NHS LOGISTICS,1010102096,3.53,
Department of Health,Salisbury NHS Foundation Trust,30/08/2019,DRESSINGS - PRE STERILE,Musculo-Skeletal,NHS LOGISTICS,1010102096,2.84,
Department of Health,Salisbury NHS Foundation Trust,30/08/2019,MEDSURGCONS-OTHER,Musculo-Skeletal,NHS LOGISTICS,1010102096,12.8,
Department of Health,Salisbury NHS Foundation Trust,30/08/2019,M & S EQUIPELECTEQUIPINST - OTHER,Musculo-Skeletal,NHS LOGISTICS,1010102096,1.42,
Department of Health,Salisbury NHS Foundation Trust,30/08/2019,NON DISPOSABLE BED LINEN,Musculo-Skeletal,NHS LOGISTICS,1010102096,8.46,
Department of Health,Salisbury NHS Foundation Trust,30/08/2019,TOILETRIES PERSONAL HYGIENE PRODUCT,Musculo-Skeletal,NHS LOGISTICS,1010102096,24.96,
Department of Health,Salisbury NHS Foundation Trust,30/08/2019,DISPOSABLE THEATRE DRAPES WIPES,Musculo-Skeletal,NHS LOGISTICS,1010102096,2.93,
Department of Health,Salisbury NHS Foundation Trust,30/08/2019,DISPOSABLE THEATRE DRAPES WIPES,Musculo-Skeletal,NHS LOGISTICS,1010102096,5.44,
Department of Health,Salisbury NHS Foundation Trust,30/08/2019,DISPOSABLE THEATRE DRAPES WIPES,Musculo-Skeletal,NHS LOGISTICS,1010102096,21.2,
Department of Health,Salisbury NHS Foundation Trust,30/08/2019,DISPOSABLE THEATRE DRAPES WIPES,Musculo-Skeletal,NHS LOGISTICS,1010102096,9.39,
Department of Health,Salisbury NHS Foundation Trust,30/08/2019,DRESSINGS - PRE STERILE,Musculo-Skeletal,NHS LOGISTICS,1010102096,237.6,
Department of Health,Salisbury NHS Foundation Trust,30/08/2019,DRESSINGS - PRE STERILE,Musculo-Skeletal,NHS LOGISTICS,1010102096,237.6,
Department of Health,Salisbury NHS Foundation Trust,30/08/2019,DRESSINGS - PRE STERILE,Musculo-Skeletal,NHS LOGISTICS,1010102096,256.08,
Department of Health,Salisbury NHS Foundation Trust,30/08/2019,OTHER MEDICAL SUPPLIES,Medicine,NHS LOGISTICS,1010102096,1.7,
Department of Health,Salisbury NHS Foundation Trust,30/08/2019,OTHER MEDICAL SUPPLIES,Medicine,NHS LOGISTICS,1010102096,41,
Department of Health,Salisbury NHS Foundation Trust,30/08/2019,PATIENTS INCONTINENCE,Medicine,NHS LOGISTICS,1010102096,6.56,
Department of Health,Salisbury NHS Foundation Trust,30/08/2019,DRESSINGS - PRE STERILE,Medicine,NHS LOGISTICS,1010102096,2.04,
Department of Health,Salisbury NHS Foundation Trust,30/08/2019,DRESSINGS - PRE STERILE,Medicine,NHS LOGISTICS,1010102096,3.82,
Department of Health,Salisbury NHS Foundation Trust,30/08/2019,ELECTRICAL EQUIPMENT,Medicine,NHS LOGISTICS,1010102096,1.48,
Department of Health,Salisbury NHS Foundation Trust,30/08/2019,M & S EQUIPELECTEQUIPINST - OTHER,Medicine,NHS LOGISTICS,1010102096,2.44,
Department of Health,Salisbury NHS Foundation Trust,30/08/2019,TOILETRIES PERSONAL HYGIENE PRODUCT,Medicine,NHS LOGISTICS,1010102096,6.7,
Department of Health,Salisbury NHS Foundation Trust,30/08/2019,DRESSINGS - PRE STERILE,Medicine,NHS LOGISTICS,1010102096,11.9,
Department of Health,Salisbury NHS Foundation Trust,30/08/2019,DRESSINGS - PRE STERILE,Medicine,NHS LOGISTICS,1010102096,1.45,
Department of Health,Salisbury NHS Foundation Trust,30/08/2019,MEDSURGCONS-OTHER,Medicine,NHS LOGISTICS,1010102096,2.8,
Department of Health,Salisbury NHS Foundation Trust,30/08/2019,TISSUES HAND TOWELS & TOILET PAPER,Medicine,NHS LOGISTICS,1010102096,1.2,
Department of Health,Salisbury NHS Foundation Trust,30/08/2019,DRESSINGS  -  PROCEDURE PACKS,Medicine,NHS LOGISTICS,1010102096,0.16,
Department of Health,Salisbury NHS Foundation Trust,30/08/2019,M & S EQUIPELECTEQUIPINST - OTHER,Medicine,NHS LOGISTICS,1010102096,4.05,
Department of Health,Salisbury NHS Foundation Trust,30/08/2019,M & S EQUIPELECTEQUIPINST - OTHER,Medicine,NHS LOGISTICS,1010102096,11.76,
Department of Health,Salisbury NHS Foundation Trust,30/08/2019,MEDSURGCONS-OTHER,Medicine,NHS LOGISTICS,1010102096,10.14,
Department of Health,Salisbury NHS Foundation Trust,30/08/2019,MEDSURGCONS-OTHER,Medicine,NHS LOGISTICS,1010102096,5.43,
Department of Health,Salisbury NHS Foundation Trust,30/08/2019,DRESSINGS - PRE STERILE,Medicine,NHS LOGISTICS,1010102096,1.48,
Department of Health,Salisbury NHS Foundation Trust,30/08/2019,ANAESTHETIC EQUIPMENT ACCESSORIES,Medicine,NHS LOGISTICS,1010102096,3.36,
Department of Health,Salisbury NHS Foundation Trust,30/08/2019,DRESSINGS  -  PROCEDURE PACKS,Medicine,NHS LOGISTICS,1010102096,8.75,
Department of Health,Salisbury NHS Foundation Trust,30/08/2019,NON DISPOSABLE BED LINEN,Medicine,NHS LOGISTICS,1010102096,39.04,
Department of Health,Salisbury NHS Foundation Trust,30/08/2019,NON DISPOSABLE BED LINEN,Medicine,NHS LOGISTICS,1010102096,47.5,
Department of Health,Salisbury NHS Foundation Trust,30/08/2019,MEDSURGCONS-OTHER,Medicine,NHS LOGISTICS,1010102096,22.5,
Department of Health,Salisbury NHS Foundation Trust,30/08/2019,MEDSURGCONS-OTHER,Medicine,NHS LOGISTICS,1010102096,46,
Department of Health,Salisbury NHS Foundation Trust,30/08/2019,OTHER MEDICAL SUPPLIES,Medicine,NHS LOGISTICS,1010102096,4.02,
Department of Health,Salisbury NHS Foundation Trust,30/08/2019,SURGICAL INSTRUMENTS - DISPOSABLE,Medicine,NHS LOGISTICS,1010102096,4.5,
Department of Health,Salisbury NHS Foundation Trust,30/08/2019,PATIENTS INCONTINENCE,Medicine,NHS LOGISTICS,1010102096,5.08,
Department of Health,Salisbury NHS Foundation Trust,30/08/2019,TOILETRIES PERSONAL HYGIENE PRODUCT,Medicine,NHS LOGISTICS,1010102096,2.88,
Department of Health,Salisbury NHS Foundation Trust,30/08/2019,DRESSINGS - PRE STERILE,Medicine,NHS LOGISTICS,1010102096,6.12,
Department of Health,Salisbury NHS Foundation Trust,30/08/2019,MEDSURGCONS-OTHER,Medicine,NHS LOGISTICS,1010102096,55,
Department of Health,Salisbury NHS Foundation Trust,30/08/2019,MEDSURGCONS-OTHER,Medicine,NHS LOGISTICS,1010102096,3.53,
Department of Health,Salisbury NHS Foundation Trust,30/08/2019,MEDSURGCONS-OTHER,Medicine,NHS LOGISTICS,1010102096,19.2,
Department of Health,Salisbury NHS Foundation Trust,30/08/2019,TISSUES HAND TOWELS & TOILET PAPER,Medicine,NHS LOGISTICS,1010102096,1.2,
Department of Health,Salisbury NHS Foundation Trust,30/08/2019,MEDSURGCONS-OTHER,Medicine,NHS LOGISTICS,1010102096,2.35,
Department of Health,Salisbury NHS Foundation Trust,30/08/2019,DRESSINGS - PRE STERILE,Medicine,NHS LOGISTICS,1010102096,6.48,
Department of Health,Salisbury NHS Foundation Trust,30/08/2019,NON DISPOSABLE BED LINEN,Medicine,NHS LOGISTICS,1010102096,8.46,
Department of Health,Salisbury NHS Foundation Trust,30/08/2019,PATIENT APPLIANCES,Medicine,NHS LOGISTICS,1010102096,12.6,
Department of Health,Salisbury NHS Foundation Trust,30/08/2019,PATIENT APPLIANCES,Medicine,NHS LOGISTICS,1010102096,6.4,
Department of Health,Salisbury NHS Foundation Trust,30/08/2019,DISPOSABLE THEATRE DRAPES WIPES,Medicine,NHS LOGISTICS,1010102096,8.79,
Department of Health,Salisbury NHS Foundation Trust,30/08/2019,DRESSINGS  -  PROCEDURE PACKS,Clinical Support,NHS LOGISTICS,1010102096,32.4,
Department of Health,Salisbury NHS Foundation Trust,30/08/2019,PAPER GENERAL STATIONERY SUNDRIES,Musculo-Skeletal,NHS LOGISTICS,1010102096,44.58,
Department of Health,Salisbury NHS Foundation Trust,30/08/2019,DRESSINGS - PRE STERILE,Musculo-Skeletal,NHS LOGISTICS,1010102096,8.04,
Department of Health,Salisbury NHS Foundation Trust,30/08/2019,DRESSINGS - PRE STERILE,Musculo-Skeletal,NHS LOGISTICS,1010102096,4.69,
Department of Health,Salisbury NHS Foundation Trust,30/08/2019,DRESSINGS - PRE STERILE,Musculo-Skeletal,NHS LOGISTICS,1010102096,7.64,
Department of Health,Salisbury NHS Foundation Trust,30/08/2019,DRESSINGS - PRE STERILE,Musculo-Skeletal,NHS LOGISTICS,1010102096,16.8,
Department of Health,Salisbury NHS Foundation Trust,30/08/2019,CLEANING MATERIAL PRODUCTS SUNDRIES,Musculo-Skeletal,NHS LOGISTICS,1010102096,13.2,
Department of Health,Salisbury NHS Foundation Trust,30/08/2019,DRESSINGS  -  PROCEDURE PACKS,Musculo-Skeletal,NHS LOGISTICS,1010102096,1.4,
Department of Health,Salisbury NHS Foundation Trust,30/08/2019,OTHER MEDICAL SUPPLIES,Musculo-Skeletal,NHS LOGISTICS,1010102096,1.34,
Department of Health,Salisbury NHS Foundation Trust,30/08/2019,SURGICAL INSTRUMENTS - DISPOSABLE,Musculo-Skeletal,NHS LOGISTICS,1010102096,13.5,
Department of Health,Salisbury NHS Foundation Trust,30/08/2019,DRESSINGS - PRE STERILE,Musculo-Skeletal,NHS LOGISTICS,1010102096,5.68,
Department of Health,Salisbury NHS Foundation Trust,30/08/2019,DISPOSABLE THEATRE DRAPES WIPES,Musculo-Skeletal,NHS LOGISTICS,1010102096,5.44,
Department of Health,Salisbury NHS Foundation Trust,30/08/2019,M & S EQUIPELECTEQUIPINST - OTHER,Surgery,NHS LOGISTICS,1010102096,1.22,
Department of Health,Salisbury NHS Foundation Trust,30/08/2019,TISSUES HAND TOWELS & TOILET PAPER,Surgery,NHS LOGISTICS,1010102096,3.6,
Department of Health,Salisbury NHS Foundation Trust,30/08/2019,OTHER MEDICAL SUPPLIES,Medicine,NHS LOGISTICS,1010102096,101,
Department of Health,Salisbury NHS Foundation Trust,30/08/2019,OTHER MEDICAL SUPPLIES,Medicine,NHS LOGISTICS,1010102096,48.5,
Department of Health,Salisbury NHS Foundation Trust,30/08/2019,MEDSURGCONS-OTHER,Medicine,NHS LOGISTICS,1010102096,45.78,
Department of Health,Salisbury NHS Foundation Trust,30/08/2019,MEDSURGCONS-OTHER,Medicine,NHS LOGISTICS,1010102096,109.48,
Department of Health,Salisbury NHS Foundation Trust,30/08/2019,DRESSINGS - PRE STERILE,Medicine,NHS LOGISTICS,1010102096,127.5,
Department of Health,Salisbury NHS Foundation Trust,30/08/2019,MEDSURGCONS-OTHER,Medicine,NHS LOGISTICS,1010102096,6.76,
Department of Health,Salisbury NHS Foundation Trust,30/08/2019,DRESSINGS  -  PROCEDURE PACKS,Medicine,NHS LOGISTICS,1010102096,0.7,
Department of Health,Salisbury NHS Foundation Trust,30/08/2019,OTHER MEDICAL SUPPLIES,Medicine,NHS LOGISTICS,1010102096,1.34,
Department of Health,Salisbury NHS Foundation Trust,30/08/2019,OTHER MEDICAL SUPPLIES,Medicine,NHS LOGISTICS,1010102096,1.14,
Department of Health,Salisbury NHS Foundation Trust,30/08/2019,DISPOSABLE THEATRE DRAPES WIPES,Medicine,NHS LOGISTICS,1010102096,8.16,
Department of Health,Salisbury NHS Foundation Trust,30/08/2019,DISPOSABLE THEATRE DRAPES WIPES,Medicine,NHS LOGISTICS,1010102096,3.13,
Department of Health,Salisbury NHS Foundation Trust,30/08/2019,OTHER MEDICAL SUPPLIES,Medicine,NHS LOGISTICS,1010102096,101,
Department of Health,Salisbury NHS Foundation Trust,30/08/2019,OTHER MEDICAL SUPPLIES,Medicine,NHS LOGISTICS,1010102096,194.4,
Department of Health,Salisbury NHS Foundation Trust,30/08/2019,CLEANING MATERIAL PRODUCTS SUNDRIES,Medicine,NHS LOGISTICS,1010102096,6.6,
Department of Health,Salisbury NHS Foundation Trust,30/08/2019,DRESSINGS - PRE STERILE,Medicine,NHS LOGISTICS,1010102096,1.45,
Department of Health,Salisbury NHS Foundation Trust,30/08/2019,MEDSURGCONS-OTHER,Medicine,NHS LOGISTICS,1010102096,3.38,
Department of Health,Salisbury NHS Foundation Trust,30/08/2019,MEDSURGCONS-OTHER,Medicine,NHS LOGISTICS,1010102096,5.43,
Department of Health,Salisbury NHS Foundation Trust,30/08/2019,DRESSINGS  -  PROCEDURE PACKS,Medicine,NHS LOGISTICS,1010102096,1.75,
Department of Health,Salisbury NHS Foundation Trust,30/08/2019,MEDSURGCONS-OTHER,Medicine,NHS LOGISTICS,1010102096,7.5,
Department of Health,Salisbury NHS Foundation Trust,30/08/2019,OTHER MEDICAL SUPPLIES,Medicine,NHS LOGISTICS,1010102096,1.34,
Department of Health,Salisbury NHS Foundation Trust,30/08/2019,SURGICAL INSTRUMENTS - DISPOSABLE,Medicine,NHS LOGISTICS,1010102096,2.25,
Department of Health,Salisbury NHS Foundation Trust,30/08/2019,PATIENTS INCONTINENCE,Medicine,NHS LOGISTICS,1010102096,5.08,
Department of Health,Salisbury NHS Foundation Trust,30/08/2019,PATIENTS INCONTINENCE,Medicine,NHS LOGISTICS,1010102096,3.39,
Department of Health,Salisbury NHS Foundation Trust,30/08/2019,MEDSURGCONS-OTHER,Medicine,NHS LOGISTICS,1010102096,6.4,
Department of Health,Salisbury NHS Foundation Trust,30/08/2019,MEDSURGCONS-OTHER,Medicine,NHS LOGISTICS,1010102096,0.78,
Department of Health,Salisbury NHS Foundation Trust,30/08/2019,NON DISPOSABLE BED LINEN,Medicine,NHS LOGISTICS,1010102096,2.82,
Department of Health,Salisbury NHS Foundation Trust,30/08/2019,TOILETRIES PERSONAL HYGIENE PRODUCT,Medicine,NHS LOGISTICS,1010102096,2.16,
Department of Health,Salisbury NHS Foundation Trust,30/08/2019,DISPOSABLE THEATRE DRAPES WIPES,Medicine,NHS LOGISTICS,1010102096,2.93,
Department of Health,Salisbury NHS Foundation Trust,30/08/2019,DRESSINGS - PRE STERILE,Musculo-Skeletal,NHS LOGISTICS,1010102096,11.64,
Department of Health,Salisbury NHS Foundation Trust,30/08/2019,DRESSINGS - PRE STERILE,Musculo-Skeletal,NHS LOGISTICS,1010102096,2.8,
Department of Health,Salisbury NHS Foundation Trust,30/08/2019,DRESSINGS - PRE STERILE,Musculo-Skeletal,NHS LOGISTICS,1010102096,5,
Department of Health,Salisbury NHS Foundation Trust,30/08/2019,DRESSINGS - PRE STERILE,Musculo-Skeletal,NHS LOGISTICS,1010102096,21.48,
Department of Health,Salisbury NHS Foundation Trust,30/08/2019,TISSUES HAND TOWELS & TOILET PAPER,Musculo-Skeletal,NHS LOGISTICS,1010102096,1.22,
Department of Health,Salisbury NHS Foundation Trust,30/08/2019,DRESSINGS - PRE STERILE,Musculo-Skeletal,NHS LOGISTICS,1010102096,30.85,
Department of Health,Salisbury NHS Foundation Trust,30/08/2019,DRESSINGS - PRE STERILE,Musculo-Skeletal,NHS LOGISTICS,1010102096,18,
Department of Health,Salisbury NHS Foundation Trust,30/08/2019,DRESSINGS - PRE STERILE,Musculo-Skeletal,NHS LOGISTICS,1010102096,18,
Department of Health,Salisbury NHS Foundation Trust,30/08/2019,DRESSINGS - PRE STERILE,Musculo-Skeletal,NHS LOGISTICS,1010102096,18,
Department of Health,Salisbury NHS Foundation Trust,30/08/2019,DRESSINGS - PRE STERILE,Musculo-Skeletal,NHS LOGISTICS,1010102096,20.75,
Department of Health,Salisbury NHS Foundation Trust,30/08/2019,DRESSINGS - PRE STERILE,Musculo-Skeletal,NHS LOGISTICS,1010102096,20.75,
Department of Health,Salisbury NHS Foundation Trust,30/08/2019,DRESSINGS - PRE STERILE,Musculo-Skeletal,NHS LOGISTICS,1010102096,62.25,
Department of Health,Salisbury NHS Foundation Trust,30/08/2019,DRESSINGS - PRE STERILE,Musculo-Skeletal,NHS LOGISTICS,1010102096,20.75,
Department of Health,Salisbury NHS Foundation Trust,30/08/2019,DRESSINGS - PRE STERILE,Musculo-Skeletal,NHS LOGISTICS,1010102096,22.4,
Department of Health,Salisbury NHS Foundation Trust,30/08/2019,DRESSINGS - PRE STERILE,Musculo-Skeletal,NHS LOGISTICS,1010102096,6.1,
Department of Health,Salisbury NHS Foundation Trust,30/08/2019,DRESSINGS - PRE STERILE,Musculo-Skeletal,NHS LOGISTICS,1010102096,9,
Department of Health,Salisbury NHS Foundation Trust,30/08/2019,DRESSINGS - PRE STERILE,Musculo-Skeletal,NHS LOGISTICS,1010102096,7.56,
Department of Health,Salisbury NHS Foundation Trust,30/08/2019,TOILETRIES PERSONAL HYGIENE PRODUCT,Musculo-Skeletal,NHS LOGISTICS,1010102096,0.54,
Department of Health,Salisbury NHS Foundation Trust,30/08/2019,M & S EQUIPELECTEQUIPINST - OTHER,Surgery,NHS LOGISTICS,1010102096,208,
Department of Health,Salisbury NHS Foundation Trust,30/08/2019,M & S EQUIPELECTEQUIPINST - OTHER,Surgery,NHS LOGISTICS,1010102096,2.44,
Department of Health,Salisbury NHS Foundation Trust,30/08/2019,M & S EQUIPELECTEQUIPINST - OTHER,Surgery,NHS LOGISTICS,1010102096,1.89,
Department of Health,Salisbury NHS Foundation Trust,30/08/2019,DRESSINGS - PRE STERILE,Surgery,NHS LOGISTICS,1010102096,1.48,
Department of Health,Salisbury NHS Foundation Trust,30/08/2019,DRESSINGS - PRE STERILE,Surgery,NHS LOGISTICS,1010102096,0.72,
Department of Health,Salisbury NHS Foundation Trust,30/08/2019,OTHER MEDICAL SUPPLIES,Musculo-Skeletal,NHS LOGISTICS,1010102096,23,
Department of Health,Salisbury NHS Foundation Trust,30/08/2019,DRESSINGS - PRE STERILE,Musculo-Skeletal,NHS LOGISTICS,1010102096,11.9,
Department of Health,Salisbury NHS Foundation Trust,30/08/2019,DRESSINGS  -  PROCEDURE PACKS,Musculo-Skeletal,NHS LOGISTICS,1010102096,0.4,
Department of Health,Salisbury NHS Foundation Trust,30/08/2019,MEDSURGCONS-OTHER,Musculo-Skeletal,NHS LOGISTICS,1010102096,6.76,
Department of Health,Salisbury NHS Foundation Trust,30/08/2019,DRESSINGS  -  PROCEDURE PACKS,Musculo-Skeletal,NHS LOGISTICS,1010102096,2.8,
Department of Health,Salisbury NHS Foundation Trust,30/08/2019,OTHER MEDICAL SUPPLIES,Musculo-Skeletal,NHS LOGISTICS,1010102096,1.34,
Department of Health,Salisbury NHS Foundation Trust,30/08/2019,SURGICAL INSTRUMENTS - DISPOSABLE,Musculo-Skeletal,NHS LOGISTICS,1010102096,4.5,
Department of Health,Salisbury NHS Foundation Trust,30/08/2019,SURGICAL INSTRUMENTS - GENERAL,Musculo-Skeletal,NHS LOGISTICS,1010102096,0.42,
Department of Health,Salisbury NHS Foundation Trust,30/08/2019,MEDSURGCONS-OTHER,Musculo-Skeletal,NHS LOGISTICS,1010102096,3.53,
Department of Health,Salisbury NHS Foundation Trust,30/08/2019,MEDSURGCONS-OTHER,Musculo-Skeletal,NHS LOGISTICS,1010102096,6.16,
Department of Health,Salisbury NHS Foundation Trust,30/08/2019,PATIENTS INCONTINENCE,Musculo-Skeletal,NHS LOGISTICS,1010102096,13.12,
Department of Health,Salisbury NHS Foundation Trust,30/08/2019,M & S EQUIPELECTEQUIPINST - OTHER,Musculo-Skeletal,NHS LOGISTICS,1010102096,13.52,
Department of Health,Salisbury NHS Foundation Trust,30/08/2019,ELECTRICAL EQUIPMENT,Musculo-Skeletal,NHS LOGISTICS,1010102096,2.96,
Department of Health,Salisbury NHS Foundation Trust,30/08/2019,TISSUES HAND TOWELS & TOILET PAPER,Musculo-Skeletal,NHS LOGISTICS,1010102096,19.62,
Department of Health,Salisbury NHS Foundation Trust,30/08/2019,M & S EQUIPELECTEQUIPINST - OTHER,Musculo-Skeletal,NHS LOGISTICS,1010102096,23.52,
Department of Health,Salisbury NHS Foundation Trust,30/08/2019,NON DISPOSABLE BED LINEN,Musculo-Skeletal,NHS LOGISTICS,1010102096,29.2,
Department of Health,Salisbury NHS Foundation Trust,30/08/2019,CLEANING MATERIAL PRODUCTS SUNDRIES,Musculo-Skeletal,NHS LOGISTICS,1010102096,18.2,
Department of Health,Salisbury NHS Foundation Trust,30/08/2019,OTHER MEDICAL SUPPLIES,Musculo-Skeletal,NHS LOGISTICS,1010102096,7.12,
Department of Health,Salisbury NHS Foundation Trust,30/08/2019,PATIENTS INCONTINENCE,Musculo-Skeletal,NHS LOGISTICS,1010102096,16.86,
Department of Health,Salisbury NHS Foundation Trust,30/08/2019,PATIENT APPLIANCES,Musculo-Skeletal,NHS LOGISTICS,1010102096,7.2,
Department of Health,Salisbury NHS Foundation Trust,30/08/2019,DRESSINGS - PRE STERILE,Musculo-Skeletal,NHS LOGISTICS,1010102096,2.04,
Department of Health,Salisbury NHS Foundation Trust,30/08/2019,DRESSINGS - PRE STERILE,Musculo-Skeletal,NHS LOGISTICS,1010102096,3.36,
Department of Health,Salisbury NHS Foundation Trust,30/08/2019,MEDSURGCONS-OTHER,Musculo-Skeletal,NHS LOGISTICS,1010102096,6.4,
Department of Health,Salisbury NHS Foundation Trust,30/08/2019,NON DISPOSABLE BED LINEN,Musculo-Skeletal,NHS LOGISTICS,1010102096,22.56,
Department of Health,Salisbury NHS Foundation Trust,30/08/2019,PATIENT APPLIANCES,Musculo-Skeletal,NHS LOGISTICS,1010102096,35.4,
Department of Health,Salisbury NHS Foundation Trust,30/08/2019,TOILETRIES PERSONAL HYGIENE PRODUCT,Musculo-Skeletal,NHS LOGISTICS,1010102096,2.7,
Department of Health,Salisbury NHS Foundation Trust,30/08/2019,DISPOSABLE THEATRE DRAPES WIPES,Musculo-Skeletal,NHS LOGISTICS,1010102096,11.72,
Department of Health,Salisbury NHS Foundation Trust,30/08/2019,DISPOSABLE THEATRE DRAPES WIPES,Musculo-Skeletal,NHS LOGISTICS,1010102096,21.2,
Department of Health,Salisbury NHS Foundation Trust,30/08/2019,PATIENT APPLIANCES,Clinical Support,NHS LOGISTICS,1010102096,72.34,
Department of Health,Salisbury NHS Foundation Trust,30/08/2019,PATIENT APPLIANCES,Clinical Support,NHS LOGISTICS,1010102096,13.46,
Department of Health,Salisbury NHS Foundation Trust,30/08/2019,PATIENT APPLIANCES,Clinical Support,NHS LOGISTICS,1010102096,9.98,
Department of Health,Salisbury NHS Foundation Trust,30/08/2019,DRESSINGS - PRE STERILE,Clinical Support,NHS LOGISTICS,1010102096,1.44,
Department of Health,Salisbury NHS Foundation Trust,30/08/2019,DISPOSABLE THEATRE DRAPES WIPES,Clinical Support,NHS LOGISTICS,1010102096,2.93,
Department of Health,Salisbury NHS Foundation Trust,30/08/2019,OTHER MEDICAL SUPPLIES,Surgery,NHS LOGISTICS,1010102096,4.6,
Department of Health,Salisbury NHS Foundation Trust,30/08/2019,MEDSURGCONS-OTHER,Surgery,NHS LOGISTICS,1010102096,49.5,
Department of Health,Salisbury NHS Foundation Trust,30/08/2019,M & S EQUIPELECTEQUIPINST - OTHER,Surgery,NHS LOGISTICS,1010102096,2.44,
Department of Health,Salisbury NHS Foundation Trust,30/08/2019,DRESSINGS  -  PROCEDURE PACKS,Surgery,NHS LOGISTICS,1010102096,6.2,
Department of Health,Salisbury NHS Foundation Trust,30/08/2019,OTHER MEDICAL SUPPLIES,Corporate - OD and People,NHS LOGISTICS,1010102096,7.04,
Department of Health,Salisbury NHS Foundation Trust,30/08/2019,PATIENT APPLIANCES,Clinical Support,NHS LOGISTICS,1010102096,4.99,
Department of Health,Salisbury NHS Foundation Trust,30/08/2019,DISPOSABLE THEATRE DRAPES WIPES,Clinical Support,NHS LOGISTICS,1010102096,5.44,
Department of Health,Salisbury NHS Foundation Trust,30/08/2019,DRESSINGS - PRE STERILE,Clinical Support,NHS LOGISTICS,1010102096,11.9,
Department of Health,Salisbury NHS Foundation Trust,30/08/2019,OTHER MEDICAL SUPPLIES,Clinical Support,NHS LOGISTICS,1010102096,36.16,
Department of Health,Salisbury NHS Foundation Trust,30/08/2019,OTHER MEDICAL SUPPLIES,Clinical Support,NHS LOGISTICS,1010102096,6.63,
Department of Health,Salisbury NHS Foundation Trust,30/08/2019,NON DISPOSABLE BED LINEN,Clinical Support,NHS LOGISTICS,1010102096,5.64,
Department of Health,Salisbury NHS Foundation Trust,30/08/2019,TISSUES HAND TOWELS & TOILET PAPER,Surgery,NHS LOGISTICS,1010102096,2.44,
Department of Health,Salisbury NHS Foundation Trust,30/08/2019,SURGICAL INSTRUMENTS - GENERAL,Surgery,NHS LOGISTICS,1010102096,37,
Department of Health,Salisbury NHS Foundation Trust,30/08/2019,TOILETRIES PERSONAL HYGIENE PRODUCT,Surgery,NHS LOGISTICS,1010102096,27,
Department of Health,Salisbury NHS Foundation Trust,30/08/2019,SURGICAL INSTRUMENTS - GENERAL,Surgery,NHS LOGISTICS,1010102096,12,
Department of Health,Salisbury NHS Foundation Trust,30/08/2019,OTHER MEDICAL SUPPLIES,Surgery,NHS LOGISTICS,1010102096,7.04,
Department of Health,Salisbury NHS Foundation Trust,30/08/2019,MEDSURGCONS-SUTURES,Surgery,NHS LOGISTICS,1010102096,121.56,
Department of Health,Salisbury NHS Foundation Trust,30/08/2019,MEDSURGCONS-OTHER,Surgery,NHS LOGISTICS,1010102096,3.53,
Department of Health,Salisbury NHS Foundation Trust,30/08/2019,NON DISPOSABLE BED LINEN,Surgery,NHS LOGISTICS,1010102096,16.92,
Department of Health,Salisbury NHS Foundation Trust,30/08/2019,OTHER MEDICAL SUPPLIES,Surgery,NHS LOGISTICS,1010102096,3.2,
Department of Health,Salisbury NHS Foundation Trust,30/08/2019,MEDSURGCONS-OTHER,Surgery,NHS LOGISTICS,1010102096,10.14,
Department of Health,Salisbury NHS Foundation Trust,30/08/2019,OTHER MEDICAL SUPPLIES,Surgery,NHS LOGISTICS,1010102096,36.4,
Department of Health,Salisbury NHS Foundation Trust,30/08/2019,OTHER MEDICAL SUPPLIES,Surgery,NHS LOGISTICS,1010102096,33.9,
Department of Health,Salisbury NHS Foundation Trust,30/08/2019,TUBES,Surgery,NHS LOGISTICS,1010102096,5.48,
Department of Health,Salisbury NHS Foundation Trust,30/08/2019,DRESSINGS - PRE STERILE,Musculo-Skeletal,NHS LOGISTICS,1010102096,125.64,
Department of Health,Salisbury NHS Foundation Trust,30/08/2019,PATIENT APPLIANCES,Musculo-Skeletal,NHS LOGISTICS,1010102096,640,
Department of Health,Salisbury NHS Foundation Trust,30/08/2019,OTHER MEDICAL SUPPLIES,Clinical Support,NHS LOGISTICS,1010102096,1.38,
Department of Health,Salisbury NHS Foundation Trust,30/08/2019,DRESSINGS - PRE STERILE,Clinical Support,NHS LOGISTICS,1010102096,0.68,
Department of Health,Salisbury NHS Foundation Trust,30/08/2019,DRESSINGS - PRE STERILE,Clinical Support,NHS LOGISTICS,1010102096,1.75,
Department of Health,Salisbury NHS Foundation Trust,30/08/2019,M & S EQUIPELECTEQUIPINST - OTHER,Clinical Support,NHS LOGISTICS,1010102096,2.44,
Department of Health,Salisbury NHS Foundation Trust,30/08/2019,CLEANING MATERIAL PRODUCTS SUNDRIES,Clinical Support,NHS LOGISTICS,1010102096,7.84,
Department of Health,Salisbury NHS Foundation Trust,30/08/2019,TISSUES HAND TOWELS & TOILET PAPER,Clinical Support,NHS LOGISTICS,1010102096,0.6,
Department of Health,Salisbury NHS Foundation Trust,30/08/2019,DRESSINGS  -  PROCEDURE PACKS,Clinical Support,NHS LOGISTICS,1010102096,0.2,
Department of Health,Salisbury NHS Foundation Trust,30/08/2019,DRESSINGS  -  PROCEDURE PACKS,Clinical Support,NHS LOGISTICS,1010102096,1.5,
Department of Health,Salisbury NHS Foundation Trust,30/08/2019,M & S EQUIPELECTEQUIPINST - OTHER,Clinical Support,NHS LOGISTICS,1010102096,4.05,
Department of Health,Salisbury NHS Foundation Trust,30/08/2019,MEDSURGCONS-OTHER,Clinical Support,NHS LOGISTICS,1010102096,3.38,
Department of Health,Salisbury NHS Foundation Trust,30/08/2019,M & S EQUIPELECTEQUIPINST - OTHER,Clinical Support,NHS LOGISTICS,1010102096,4.75,
Department of Health,Salisbury NHS Foundation Trust,30/08/2019,MEDSURGCONS-OTHER,Clinical Support,NHS LOGISTICS,1010102096,5.78,
Department of Health,Salisbury NHS Foundation Trust,30/08/2019,MEDSURGCONS-OTHER,Clinical Support,NHS LOGISTICS,1010102096,3.42,
Department of Health,Salisbury NHS Foundation Trust,30/08/2019,SERVICES FROM NHS BODIES,Clinical Support,NHS LOGISTICS,1010102096,16.67,
Department of Health,Salisbury NHS Foundation Trust,30/08/2019,SERVICES FROM NHS BODIES,Clinical Support,NHS LOGISTICS,1010102096,13.91,
Department of Health,Salisbury NHS Foundation Trust,30/08/2019,SERVICES FROM NHS BODIES,Clinical Support,NHS LOGISTICS,1010102096,27.82,
Department of Health,Salisbury NHS Foundation Trust,30/08/2019,MEDSURGCONS-OTHER,Clinical Support,NHS LOGISTICS,1010102096,12.8,
Department of Health,Salisbury NHS Foundation Trust,30/08/2019,NON DISPOSABLE BED LINEN,Clinical Support,NHS LOGISTICS,1010102096,5.64,
Department of Health,Salisbury NHS Foundation Trust,30/08/2019,DISPOSABLE THEATRE DRAPES WIPES,Clinical Support,NHS LOGISTICS,1010102096,5.44,
Department of Health,Salisbury NHS Foundation Trust,30/08/2019,DRESSINGS - PRE STERILE,Clinical Support,NHS LOGISTICS,1010102096,1.36,
Department of Health,Salisbury NHS Foundation Trust,30/08/2019,TISSUES HAND TOWELS & TOILET PAPER,Clinical Support,NHS LOGISTICS,1010102096,21.06,
Department of Health,Salisbury NHS Foundation Trust,30/08/2019,TISSUES HAND TOWELS & TOILET PAPER,Clinical Support,NHS LOGISTICS,1010102096,0.3,
Department of Health,Salisbury NHS Foundation Trust,30/08/2019,DRESSINGS  -  PROCEDURE PACKS,Clinical Support,NHS LOGISTICS,1010102096,0.72,
Department of Health,Salisbury NHS Foundation Trust,30/08/2019,MEDSURGCONS-OTHER,Clinical Support,NHS LOGISTICS,1010102096,5.4,
Department of Health,Salisbury NHS Foundation Trust,30/08/2019,DISPOSABLE THEATRE DRAPES WIPES,Clinical Support,NHS LOGISTICS,1010102096,5.44,
Department of Health,Salisbury NHS Foundation Trust,30/08/2019,OTHER MEDICAL SUPPLIES,Surgery,NHS LOGISTICS,1010102096,41,
Department of Health,Salisbury NHS Foundation Trust,30/08/2019,DRESSINGS - PRE STERILE,Surgery,NHS LOGISTICS,1010102096,0.68,
Department of Health,Salisbury NHS Foundation Trust,30/08/2019,MEDSURGCONS-OTHER,Surgery,NHS LOGISTICS,1010102096,3.38,
Department of Health,Salisbury NHS Foundation Trust,30/08/2019,M & S EQUIPELECTEQUIPINST - OTHER,Surgery,NHS LOGISTICS,1010102096,9.5,
Department of Health,Salisbury NHS Foundation Trust,30/08/2019,DRESSINGS - PRE STERILE,Surgery,NHS LOGISTICS,1010102096,1.48,
Department of Health,Salisbury NHS Foundation Trust,30/08/2019,DRESSINGS  -  PROCEDURE PACKS,Surgery,NHS LOGISTICS,1010102096,1.75,
Department of Health,Salisbury NHS Foundation Trust,30/08/2019,MEDSURGCONS-OTHER,Surgery,NHS LOGISTICS,1010102096,7.5,
Department of Health,Salisbury NHS Foundation Trust,30/08/2019,MEDSURGCONS-OTHER,Surgery,NHS LOGISTICS,1010102096,7.65,
Department of Health,Salisbury NHS Foundation Trust,30/08/2019,SURGICAL INSTRUMENTS - DISPOSABLE,Surgery,NHS LOGISTICS,1010102096,2.25,
Department of Health,Salisbury NHS Foundation Trust,30/08/2019,PATIENTS INCONTINENCE,Surgery,NHS LOGISTICS,1010102096,12.7,
Department of Health,Salisbury NHS Foundation Trust,30/08/2019,TISSUES HAND TOWELS & TOILET PAPER,Surgery,NHS LOGISTICS,1010102096,0.6,
Department of Health,Salisbury NHS Foundation Trust,30/08/2019,DRESSINGS - PRE STERILE,Surgery,NHS LOGISTICS,1010102096,3.83,
Department of Health,Salisbury NHS Foundation Trust,30/08/2019,NON DISPOSABLE BED LINEN,Surgery,NHS LOGISTICS,1010102096,8.46,
Department of Health,Salisbury NHS Foundation Trust,30/08/2019,PATIENT APPLIANCES,Surgery,NHS LOGISTICS,1010102096,3.2,
Department of Health,Salisbury NHS Foundation Trust,30/08/2019,DISPOSABLE THEATRE DRAPES WIPES,Surgery,NHS LOGISTICS,1010102096,8.16,
Department of Health,Salisbury NHS Foundation Trust,30/08/2019,MEDSURGCONS-OTHER,Clinical Support,NHS LOGISTICS,1010102096,26.2,
Department of Health,Salisbury NHS Foundation Trust,30/08/2019,LAB EQUIP-LABORATORY APPARATUS,Clinical Support,NHS LOGISTICS,1010102096,13.94,
Department of Health,Salisbury NHS Foundation Trust,30/08/2019,LAB EQUIP-LABORATORY APPARATUS,Clinical Support,NHS LOGISTICS,1010102096,21.04,
Department of Health,Salisbury NHS Foundation Trust,30/08/2019,OTHER MEDICAL SUPPLIES,Surgery,NHS LOGISTICS,1010102096,23,
Department of Health,Salisbury NHS Foundation Trust,30/08/2019,MEDSURGCONS-OTHER,Surgery,NHS LOGISTICS,1010102096,76.65,
Department of Health,Salisbury NHS Foundation Trust,30/08/2019,TUBES,Surgery,NHS LOGISTICS,1010102096,4.99,
Department of Health,Salisbury NHS Foundation Trust,30/08/2019,MEDSURGCONS-OTHER,Surgery,NHS LOGISTICS,1010102096,62.1,
Department of Health,Salisbury NHS Foundation Trust,30/08/2019,MEDSURGCONS-OTHER,Surgery,NHS LOGISTICS,1010102096,57.4,
Department of Health,Salisbury NHS Foundation Trust,30/08/2019,HABERDASHERY,Surgery,NHS LOGISTICS,1010102096,3.1,
Department of Health,Salisbury NHS Foundation Trust,30/08/2019,MEDSURGCONS-OTHER,Surgery,NHS LOGISTICS,1010102096,3.38,
Department of Health,Salisbury NHS Foundation Trust,30/08/2019,DRESSINGS - PRE STERILE,Surgery,NHS LOGISTICS,1010102096,107.89,
Department of Health,Salisbury NHS Foundation Trust,30/08/2019,DRESSINGS - PRE STERILE,Surgery,NHS LOGISTICS,1010102096,1.45,
Department of Health,Salisbury NHS Foundation Trust,30/08/2019,MEDSURGCONS-OTHER,Surgery,NHS LOGISTICS,1010102096,3.38,
Department of Health,Salisbury NHS Foundation Trust,30/08/2019,DRESSINGS - PRE STERILE,Surgery,NHS LOGISTICS,1010102096,1.48,
Department of Health,Salisbury NHS Foundation Trust,30/08/2019,MED SURG EQUIP REP MAINT CLEANING,Surgery,NHS LOGISTICS,1010102096,25.23,
Department of Health,Salisbury NHS Foundation Trust,30/08/2019,DRESSINGS  -  PROCEDURE PACKS,Surgery,NHS LOGISTICS,1010102096,0.7,
Department of Health,Salisbury NHS Foundation Trust,30/08/2019,DRESSINGS  -  PROCEDURE PACKS,Surgery,NHS LOGISTICS,1010102096,0.7,
Department of Health,Salisbury NHS Foundation Trust,30/08/2019,MEDSURGCONS-OTHER,Surgery,NHS LOGISTICS,1010102096,9.69,
Department of Health,Salisbury NHS Foundation Trust,30/08/2019,MEDSURGCONS-OTHER,Surgery,NHS LOGISTICS,1010102096,2.5,
Department of Health,Salisbury NHS Foundation Trust,30/08/2019,MEDSURGCONS-OTHER,Surgery,NHS LOGISTICS,1010102096,2.55,
Department of Health,Salisbury NHS Foundation Trust,30/08/2019,OTHER MEDICAL SUPPLIES,Surgery,NHS LOGISTICS,1010102096,5.36,
Department of Health,Salisbury NHS Foundation Trust,30/08/2019,SURGICAL INSTRUMENTS - DISPOSABLE,Surgery,NHS LOGISTICS,1010102096,2.25,
Department of Health,Salisbury NHS Foundation Trust,30/08/2019,OTHER MEDICAL SUPPLIES,Surgery,NHS LOGISTICS,1010102096,15.72,
Department of Health,Salisbury NHS Foundation Trust,30/08/2019,OTHER MEDICAL SUPPLIES,Surgery,NHS LOGISTICS,1010102096,13.5,
Department of Health,Salisbury NHS Foundation Trust,30/08/2019,NON DISPOSABLE BED LINEN,Surgery,NHS LOGISTICS,1010102096,8.46,
Department of Health,Salisbury NHS Foundation Trust,30/08/2019,PATIENT APPLIANCES,Surgery,NHS LOGISTICS,1010102096,9.6,
Department of Health,Salisbury NHS Foundation Trust,30/08/2019,MEDSURGCONS-OTHER,Surgery,NHS LOGISTICS,1010102096,5.26,
Department of Health,Salisbury NHS Foundation Trust,30/08/2019,DISPOSABLE THEATRE DRAPES WIPES,Surgery,NHS LOGISTICS,1010102096,1.85,
Department of Health,Salisbury NHS Foundation Trust,30/08/2019,DISPOSABLE THEATRE DRAPES WIPES,Surgery,NHS LOGISTICS,1010102096,2.93,
Department of Health,Salisbury NHS Foundation Trust,30/08/2019,DRESSINGS  -  PROCEDURE PACKS,Surgery,NHS LOGISTICS,1010102096,32.4,
Department of Health,Salisbury NHS Foundation Trust,30/08/2019,OTHER MEDICAL SUPPLIES,Medicine,NHS LOGISTICS,1010102096,13.8,
Department of Health,Salisbury NHS Foundation Trust,30/08/2019,PATIENTS INCONTINENCE,Medicine,NHS LOGISTICS,1010102096,6.56,
Department of Health,Salisbury NHS Foundation Trust,30/08/2019,CLEANING MATERIAL PRODUCTS SUNDRIES,Medicine,NHS LOGISTICS,1010102096,6.6,
Department of Health,Salisbury NHS Foundation Trust,30/08/2019,MEDSURGCONS-OTHER,Medicine,NHS LOGISTICS,1010102096,5,
Department of Health,Salisbury NHS Foundation Trust,30/08/2019,OTHER MEDICAL SUPPLIES,Medicine,NHS LOGISTICS,1010102096,1.34,
Department of Health,Salisbury NHS Foundation Trust,30/08/2019,MEDSURGCONS-OTHER,Medicine,NHS LOGISTICS,1010102096,6.4,
Department of Health,Salisbury NHS Foundation Trust,30/08/2019,TISSUES HAND TOWELS & TOILET PAPER,Medicine,NHS LOGISTICS,1010102096,0.6,
Department of Health,Salisbury NHS Foundation Trust,30/08/2019,DISPOSABLE THEATRE DRAPES WIPES,Medicine,NHS LOGISTICS,1010102096,2.93,
Department of Health,Salisbury NHS Foundation Trust,30/08/2019,DISPOSABLE THEATRE DRAPES WIPES,Medicine,NHS LOGISTICS,1010102096,5.44,
Department of Health,Salisbury NHS Foundation Trust,30/08/2019,OTHER MEDICAL SUPPLIES,Medicine,NHS LOGISTICS,1010102096,41,
Department of Health,Salisbury NHS Foundation Trust,30/08/2019,DRESSINGS - PRE STERILE,Medicine,NHS LOGISTICS,1010102096,1.36,
Department of Health,Salisbury NHS Foundation Trust,30/08/2019,DRESSINGS - PRE STERILE,Medicine,NHS LOGISTICS,1010102096,1.75,
Department of Health,Salisbury NHS Foundation Trust,30/08/2019,DRESSINGS - PRE STERILE,Medicine,NHS LOGISTICS,1010102096,11.64,
Department of Health,Salisbury NHS Foundation Trust,30/08/2019,DRESSINGS - PRE STERILE,Medicine,NHS LOGISTICS,1010102096,5,
Department of Health,Salisbury NHS Foundation Trust,30/08/2019,M & S EQUIPELECTEQUIPINST - OTHER,Medicine,NHS LOGISTICS,1010102096,2.44,
Department of Health,Salisbury NHS Foundation Trust,30/08/2019,PATIENT APPLIANCES,Medicine,NHS LOGISTICS,1010102096,4.65,
Department of Health,Salisbury NHS Foundation Trust,30/08/2019,PATIENT APPLIANCES,Medicine,NHS LOGISTICS,1010102096,4.65,
Department of Health,Salisbury NHS Foundation Trust,30/08/2019,CLEANING MATERIAL PRODUCTS SUNDRIES,Medicine,NHS LOGISTICS,1010102096,7.84,
Department of Health,Salisbury NHS Foundation Trust,30/08/2019,DRESSINGS - PRE STERILE,Medicine,NHS LOGISTICS,1010102096,2.75,
Department of Health,Salisbury NHS Foundation Trust,30/08/2019,DRESSINGS - PRE STERILE,Medicine,NHS LOGISTICS,1010102096,11.9,
Department of Health,Salisbury NHS Foundation Trust,30/08/2019,DRESSINGS - PRE STERILE,Medicine,NHS LOGISTICS,1010102096,1.45,
Department of Health,Salisbury NHS Foundation Trust,30/08/2019,MEDSURGCONS-OTHER,Medicine,NHS LOGISTICS,1010102096,5.6,
Department of Health,Salisbury NHS Foundation Trust,30/08/2019,TISSUES HAND TOWELS & TOILET PAPER,Medicine,NHS LOGISTICS,1010102096,1.5,
Department of Health,Salisbury NHS Foundation Trust,30/08/2019,PATIENTS INCONTINENCE,Medicine,NHS LOGISTICS,1010102096,2.36,
Department of Health,Salisbury NHS Foundation Trust,30/08/2019,MEDSURGCONS-OTHER,Medicine,NHS LOGISTICS,1010102096,44.9,
Department of Health,Salisbury NHS Foundation Trust,30/08/2019,MEDSURGCONS-OTHER,Medicine,NHS LOGISTICS,1010102096,6.76,
Department of Health,Salisbury NHS Foundation Trust,30/08/2019,MEDSURGCONS-OTHER,Medicine,NHS LOGISTICS,1010102096,5.43,
Department of Health,Salisbury NHS Foundation Trust,30/08/2019,MEDSURGCONS-OTHER,Medicine,NHS LOGISTICS,1010102096,2.39,
Department of Health,Salisbury NHS Foundation Trust,30/08/2019,TUBES,Medicine,NHS LOGISTICS,1010102096,5.82,
Department of Health,Salisbury NHS Foundation Trust,30/08/2019,M & S EQUIPELECTEQUIPINST - OTHER,Medicine,NHS LOGISTICS,1010102096,4.75,
Department of Health,Salisbury NHS Foundation Trust,30/08/2019,DRESSINGS - PRE STERILE,Medicine,NHS LOGISTICS,1010102096,4.44,
Department of Health,Salisbury NHS Foundation Trust,30/08/2019,OTHER MEDICAL SUPPLIES,Medicine,NHS LOGISTICS,1010102096,2.8,
Department of Health,Salisbury NHS Foundation Trust,30/08/2019,PATIENT APPLIANCES,Medicine,NHS LOGISTICS,1010102096,10.5,
Department of Health,Salisbury NHS Foundation Trust,30/08/2019,PATIENT APPLIANCES,Medicine,NHS LOGISTICS,1010102096,7,
Department of Health,Salisbury NHS Foundation Trust,30/08/2019,PATIENT APPLIANCES,Medicine,NHS LOGISTICS,1010102096,7,
Department of Health,Salisbury NHS Foundation Trust,30/08/2019,PATIENT APPLIANCES,Medicine,NHS LOGISTICS,1010102096,10.5,
Department of Health,Salisbury NHS Foundation Trust,30/08/2019,ANAESTHETIC EQUIPMENT ACCESSORIES,Medicine,NHS LOGISTICS,1010102096,4.8,
Department of Health,Salisbury NHS Foundation Trust,30/08/2019,DRESSINGS  -  PROCEDURE PACKS,Medicine,NHS LOGISTICS,1010102096,1.4,
Department of Health,Salisbury NHS Foundation Trust,30/08/2019,DRESSINGS  -  PROCEDURE PACKS,Medicine,NHS LOGISTICS,1010102096,10.5,
Department of Health,Salisbury NHS Foundation Trust,30/08/2019,OTHER MEDICAL SUPPLIES,Medicine,NHS LOGISTICS,1010102096,4.25,
Department of Health,Salisbury NHS Foundation Trust,30/08/2019,MEDSURGCONS-OTHER,Medicine,NHS LOGISTICS,1010102096,22.5,
Department of Health,Salisbury NHS Foundation Trust,30/08/2019,MEDSURGCONS-OTHER,Medicine,NHS LOGISTICS,1010102096,46,
Department of Health,Salisbury NHS Foundation Trust,30/08/2019,OTHER MEDICAL SUPPLIES,Medicine,NHS LOGISTICS,1010102096,1.34,
Department of Health,Salisbury NHS Foundation Trust,30/08/2019,SURGICAL INSTRUMENTS - DISPOSABLE,Medicine,NHS LOGISTICS,1010102096,4.5,
Department of Health,Salisbury NHS Foundation Trust,30/08/2019,OTHER MEDICAL SUPPLIES,Medicine,NHS LOGISTICS,1010102096,1.7,
Department of Health,Salisbury NHS Foundation Trust,30/08/2019,DRESSINGS - PRE STERILE,Medicine,NHS LOGISTICS,1010102096,2.04,
Department of Health,Salisbury NHS Foundation Trust,30/08/2019,DRESSINGS - PRE STERILE,Medicine,NHS LOGISTICS,1010102096,2.76,
Department of Health,Salisbury NHS Foundation Trust,30/08/2019,DRESSINGS - PRE STERILE,Medicine,NHS LOGISTICS,1010102096,1.12,
Department of Health,Salisbury NHS Foundation Trust,30/08/2019,MEDSURGCONS-OTHER,Medicine,NHS LOGISTICS,1010102096,12.8,
Department of Health,Salisbury NHS Foundation Trust,30/08/2019,MEDSURGCONS-OTHER,Medicine,NHS LOGISTICS,1010102096,4.7,
Department of Health,Salisbury NHS Foundation Trust,30/08/2019,NON DISPOSABLE BED LINEN,Medicine,NHS LOGISTICS,1010102096,5.64,
Department of Health,Salisbury NHS Foundation Trust,30/08/2019,DISPOSABLE THEATRE DRAPES WIPES,Medicine,NHS LOGISTICS,1010102096,2.93,
Department of Health,Salisbury NHS Foundation Trust,30/08/2019,DISPOSABLE THEATRE DRAPES WIPES,Medicine,NHS LOGISTICS,1010102096,31.8,
Department of Health,Salisbury NHS Foundation Trust,30/08/2019,DISPOSABLE THEATRE DRAPES WIPES,Medicine,NHS LOGISTICS,1010102096,6.26,
Department of Health,Salisbury NHS Foundation Trust,30/08/2019,MEDSURGCONS-SUTURES,Musculo-Skeletal,NHS LOGISTICS,1010102096,46.85,
Department of Health,Salisbury NHS Foundation Trust,30/08/2019,DRESSINGS - PRE STERILE,Surgery,NHS LOGISTICS,1010102096,11.64,
Department of Health,Salisbury NHS Foundation Trust,30/08/2019,DRESSINGS - PRE STERILE,Surgery,NHS LOGISTICS,1010102096,21.82,
Department of Health,Salisbury NHS Foundation Trust,30/08/2019,DISPOSABLE THEATRE DRAPES WIPES,Surgery,NHS LOGISTICS,1010102096,78.8,
Department of Health,Salisbury NHS Foundation Trust,30/08/2019,SURGICAL INSTRUMENTS - GENERAL,Surgery,NHS LOGISTICS,1010102096,18.5,
Department of Health,Salisbury NHS Foundation Trust,30/08/2019,BAGS SACKS - OTHER,Surgery,NHS LOGISTICS,1010102096,6.87,
Department of Health,Salisbury NHS Foundation Trust,30/08/2019,DRESSINGS - PRE STERILE,Surgery,NHS LOGISTICS,1010102096,4.8,
Department of Health,Salisbury NHS Foundation Trust,30/08/2019,DRESSINGS - PRE STERILE,Surgery,NHS LOGISTICS,1010102096,1.45,
Department of Health,Salisbury NHS Foundation Trust,30/08/2019,TOILETRIES PERSONAL HYGIENE PRODUCT,Surgery,NHS LOGISTICS,1010102096,18.32,
Department of Health,Salisbury NHS Foundation Trust,30/08/2019,MEDSURGCONS-OTHER,Surgery,NHS LOGISTICS,1010102096,26.65,
Department of Health,Salisbury NHS Foundation Trust,30/08/2019,MEDSURGCONS-OTHER,Surgery,NHS LOGISTICS,1010102096,44.9,
Department of Health,Salisbury NHS Foundation Trust,30/08/2019,DRUGS,Surgery,NHS LOGISTICS,1010102096,21.05,
Department of Health,Salisbury NHS Foundation Trust,30/08/2019,DISPOSABLE THEATRE DRAPES WIPES,Surgery,NHS LOGISTICS,1010102096,34.65,
Department of Health,Salisbury NHS Foundation Trust,30/08/2019,SURGICAL INSTRUMENTS - GENERAL,Surgery,NHS LOGISTICS,1010102096,5,
Department of Health,Salisbury NHS Foundation Trust,30/08/2019,DRUGS,Surgery,NHS LOGISTICS,1010102096,12.03,
Department of Health,Salisbury NHS Foundation Trust,30/08/2019,SURGICAL INSTRUMENTS - DISPOSABLE,Surgery,NHS LOGISTICS,1010102096,4.5,
Department of Health,Salisbury NHS Foundation Trust,30/08/2019,MEDSURGCONS-OTHER,Surgery,NHS LOGISTICS,1010102096,8.4,
Department of Health,Salisbury NHS Foundation Trust,30/08/2019,SERVICES FROM NHS BODIES,Surgery,NHS LOGISTICS,1010102096,4.32,
Department of Health,Salisbury NHS Foundation Trust,30/08/2019,BEVERAGES & AMBIENT FOOD,Surgery,NHS LOGISTICS,1010102096,1.41,
Department of Health,Salisbury NHS Foundation Trust,30/08/2019,SURGICAL INSTRUMENTS - DISPOSABLE,Surgery,NHS LOGISTICS,1010102096,48.12,
Department of Health,Salisbury NHS Foundation Trust,30/08/2019,MEDSURGCONS-SUTURES,Surgery,NHS LOGISTICS,1010102096,57.77,
Department of Health,Salisbury NHS Foundation Trust,30/08/2019,DRESSINGS - PRE STERILE,Surgery,NHS LOGISTICS,1010102096,5.16,
Department of Health,Salisbury NHS Foundation Trust,30/08/2019,DRESSINGS - PRE STERILE,Surgery,NHS LOGISTICS,1010102096,5.68,
Department of Health,Salisbury NHS Foundation Trust,30/08/2019,BEVERAGES & AMBIENT FOOD,Surgery,NHS LOGISTICS,1010102096,3,
Department of Health,Salisbury NHS Foundation Trust,30/08/2019,SURGICAL INSTRUMENTS - GENERAL,Surgery,NHS LOGISTICS,1010102096,137.52,
Department of Health,Salisbury NHS Foundation Trust,30/08/2019,NON DISPOSABLE BED LINEN,Surgery,NHS LOGISTICS,1010102096,22.56,
Department of Health,Salisbury NHS Foundation Trust,30/08/2019,DISPOSABLE THEATRE DRAPES WIPES,Surgery,NHS LOGISTICS,1010102096,21.2,
Department of Health,Salisbury NHS Foundation Trust,30/08/2019,DISPOSABLE THEATRE DRAPES WIPES,Surgery,NHS LOGISTICS,1010102096,9.39,
Department of Health,Salisbury NHS Foundation Trust,30/08/2019,M & S EQUIPELECTEQUIPINST - OTHER,Surgery,NHS LOGISTICS,1010102096,208,
Department of Health,Salisbury NHS Foundation Trust,30/08/2019,OTHER MEDICAL SUPPLIES,Surgery,NHS LOGISTICS,1010102096,18.4,
Department of Health,Salisbury NHS Foundation Trust,30/08/2019,DISPOSABLE THEATRE DRAPES WIPES,Surgery,NHS LOGISTICS,1010102096,1.73,
Department of Health,Salisbury NHS Foundation Trust,30/08/2019,M & S EQUIPELECTEQUIPINST - OTHER,Surgery,NHS LOGISTICS,1010102096,2.44,
Department of Health,Salisbury NHS Foundation Trust,30/08/2019,TISSUES HAND TOWELS & TOILET PAPER,Surgery,NHS LOGISTICS,1010102096,2.44,
Department of Health,Salisbury NHS Foundation Trust,30/08/2019,MEDSURGCONS-OTHER,Surgery,NHS LOGISTICS,1010102096,3.38,
Department of Health,Salisbury NHS Foundation Trust,30/08/2019,CLEANING MATERIAL PRODUCTS SUNDRIES,Surgery,NHS LOGISTICS,1010102096,6.6,
Department of Health,Salisbury NHS Foundation Trust,30/08/2019,DRESSINGS - PRE STERILE,Surgery,NHS LOGISTICS,1010102096,1,
Department of Health,Salisbury NHS Foundation Trust,30/08/2019,MEDSURGCONS-OTHER,Surgery,NHS LOGISTICS,1010102096,26.6,
Department of Health,Salisbury NHS Foundation Trust,30/08/2019,MEDSURGCONS-OTHER,Surgery,NHS LOGISTICS,1010102096,44.9,
Department of Health,Salisbury NHS Foundation Trust,30/08/2019,M & S EQUIPELECTEQUIPINST - OTHER,Surgery,NHS LOGISTICS,1010102096,4.05,
Department of Health,Salisbury NHS Foundation Trust,30/08/2019,MEDSURGCONS-OTHER,Surgery,NHS LOGISTICS,1010102096,3.38,
Department of Health,Salisbury NHS Foundation Trust,30/08/2019,MEDSURGCONS-OTHER,Surgery,NHS LOGISTICS,1010102096,5.43,
Department of Health,Salisbury NHS Foundation Trust,30/08/2019,MEDSURGCONS-OTHER,Surgery,NHS LOGISTICS,1010102096,22.5,
Department of Health,Salisbury NHS Foundation Trust,30/08/2019,OTHER MEDICAL SUPPLIES,Surgery,NHS LOGISTICS,1010102096,1.34,
Department of Health,Salisbury NHS Foundation Trust,30/08/2019,SURGICAL INSTRUMENTS - DISPOSABLE,Surgery,NHS LOGISTICS,1010102096,2.25,
Department of Health,Salisbury NHS Foundation Trust,30/08/2019,PATIENTS INCONTINENCE,Surgery,NHS LOGISTICS,1010102096,5.62,
Department of Health,Salisbury NHS Foundation Trust,30/08/2019,MEDSURGCONS-OTHER,Surgery,NHS LOGISTICS,1010102096,0.78,
Department of Health,Salisbury NHS Foundation Trust,30/08/2019,DRESSINGS - PRE STERILE,Surgery,NHS LOGISTICS,1010102096,3.83,
Department of Health,Salisbury NHS Foundation Trust,30/08/2019,DISPOSABLE THEATRE DRAPES WIPES,Surgery,NHS LOGISTICS,1010102096,10,
Department of Health,Salisbury NHS Foundation Trust,30/08/2019,OTHER MEDICAL SUPPLIES,Surgery,NHS LOGISTICS,1010102096,61.96,
Department of Health,Salisbury NHS Foundation Trust,30/08/2019,OTHER MEDICAL SUPPLIES,Surgery,NHS LOGISTICS,1010102096,92.94,
Department of Health,Salisbury NHS Foundation Trust,30/08/2019,OTHER MEDICAL SUPPLIES,Surgery,NHS LOGISTICS,1010102096,92.94,
Department of Health,Salisbury NHS Foundation Trust,30/08/2019,OTHER MEDICAL SUPPLIES,Clinical Support,NHS LOGISTICS,1010102096,9.2,
Department of Health,Salisbury NHS Foundation Trust,30/08/2019,DRESSINGS - PRE STERILE,Clinical Support,NHS LOGISTICS,1010102096,0.68,
Department of Health,Salisbury NHS Foundation Trust,30/08/2019,MEDSURGCONS-OTHER,Clinical Support,NHS LOGISTICS,1010102096,33,
Department of Health,Salisbury NHS Foundation Trust,30/08/2019,M & S EQUIPELECTEQUIPINST - OTHER,Clinical Support,NHS LOGISTICS,1010102096,13.52,
Department of Health,Salisbury NHS Foundation Trust,30/08/2019,PATIENTS BEDWEAR UNISEX,Clinical Support,NHS LOGISTICS,1010102096,3.75,
Department of Health,Salisbury NHS Foundation Trust,30/08/2019,OTHER MEDICAL SUPPLIES,Clinical Support,NHS LOGISTICS,1010102096,29.5,
Department of Health,Salisbury NHS Foundation Trust,30/08/2019,M & S EQUIPELECTEQUIPINST - OTHER,Clinical Support,NHS LOGISTICS,1010102096,3.66,
Department of Health,Salisbury NHS Foundation Trust,30/08/2019,M & S EQUIPELECTEQUIPINST - OTHER,Clinical Support,NHS LOGISTICS,1010102096,3.15,
Department of Health,Salisbury NHS Foundation Trust,30/08/2019,SURGICAL INSTRUMENTS - GENERAL,Clinical Support,NHS LOGISTICS,1010102096,2.29,
Department of Health,Salisbury NHS Foundation Trust,30/08/2019,CLEANING MATERIAL PRODUCTS SUNDRIES,Clinical Support,NHS LOGISTICS,1010102096,6.6,
Department of Health,Salisbury NHS Foundation Trust,30/08/2019,DRESSINGS - PRE STERILE,Clinical Support,NHS LOGISTICS,1010102096,11.9,
Department of Health,Salisbury NHS Foundation Trust,30/08/2019,MEDSURGCONS-OTHER,Clinical Support,NHS LOGISTICS,1010102096,1.4,
Department of Health,Salisbury NHS Foundation Trust,30/08/2019,TOILETRIES PERSONAL HYGIENE PRODUCT,Clinical Support,NHS LOGISTICS,1010102096,4.58,
Department of Health,Salisbury NHS Foundation Trust,30/08/2019,SURGICAL INSTRUMENTS - GENERAL,Clinical Support,NHS LOGISTICS,1010102096,34.3,
Department of Health,Salisbury NHS Foundation Trust,30/08/2019,SURGICAL INSTRUMENTS - GENERAL,Clinical Support,NHS LOGISTICS,1010102096,64.6,
Department of Health,Salisbury NHS Foundation Trust,30/08/2019,MEDSURGCONS-OTHER,Clinical Support,NHS LOGISTICS,1010102096,12.76,
Department of Health,Salisbury NHS Foundation Trust,30/08/2019,MEDSURGCONS-OTHER,Clinical Support,NHS LOGISTICS,1010102096,6.38,
Department of Health,Salisbury NHS Foundation Trust,30/08/2019,OTHER MEDICAL SUPPLIES,Clinical Support,NHS LOGISTICS,1010102096,33.9,
Department of Health,Salisbury NHS Foundation Trust,30/08/2019,DRESSINGS  -  PROCEDURE PACKS,Clinical Support,NHS LOGISTICS,1010102096,0.24,
Department of Health,Salisbury NHS Foundation Trust,30/08/2019,M & S EQUIPELECTEQUIPINST - OTHER,Clinical Support,NHS LOGISTICS,1010102096,4.05,
Department of Health,Salisbury NHS Foundation Trust,30/08/2019,M & S EQUIPELECTEQUIPINST - OTHER,Clinical Support,NHS LOGISTICS,1010102096,11.76,
Department of Health,Salisbury NHS Foundation Trust,30/08/2019,MEDSURGCONS-OTHER,Clinical Support,NHS LOGISTICS,1010102096,3.38,
Department of Health,Salisbury NHS Foundation Trust,30/08/2019,MEDSURGCONS-OTHER,Clinical Support,NHS LOGISTICS,1010102096,1.53,
Department of Health,Salisbury NHS Foundation Trust,30/08/2019,MEDSURGCONS-OTHER,Clinical Support,NHS LOGISTICS,1010102096,2.39,
Department of Health,Salisbury NHS Foundation Trust,30/08/2019,OTHER MEDICAL SUPPLIES,Clinical Support,NHS LOGISTICS,1010102096,4.96,
Department of Health,Salisbury NHS Foundation Trust,30/08/2019,MEDSURGCONS-OTHER,Clinical Support,NHS LOGISTICS,1010102096,5,
Department of Health,Salisbury NHS Foundation Trust,30/08/2019,MEDSURGCONS-OTHER,Clinical Support,NHS LOGISTICS,1010102096,1.02,
Department of Health,Salisbury NHS Foundation Trust,30/08/2019,OTHER MEDICAL SUPPLIES,Clinical Support,NHS LOGISTICS,1010102096,13.26,
Department of Health,Salisbury NHS Foundation Trust,30/08/2019,OTHER MEDICAL SUPPLIES,Clinical Support,NHS LOGISTICS,1010102096,6.63,
Department of Health,Salisbury NHS Foundation Trust,30/08/2019,OTHER MEDICAL SUPPLIES,Clinical Support,NHS LOGISTICS,1010102096,3.58,
Department of Health,Salisbury NHS Foundation Trust,30/08/2019,MEDSURGCONS-OTHER,Clinical Support,NHS LOGISTICS,1010102096,20.8,
Department of Health,Salisbury NHS Foundation Trust,30/08/2019,DRESSINGS - PRE STERILE,Clinical Support,NHS LOGISTICS,1010102096,2.04,
Department of Health,Salisbury NHS Foundation Trust,30/08/2019,DRESSINGS - PRE STERILE,Clinical Support,NHS LOGISTICS,1010102096,1.12,
Department of Health,Salisbury NHS Foundation Trust,30/08/2019,MEDSURGCONS-OTHER,Clinical Support,NHS LOGISTICS,1010102096,6.4,
Department of Health,Salisbury NHS Foundation Trust,30/08/2019,MEDSURGCONS-OTHER,Clinical Support,NHS LOGISTICS,1010102096,3.24,
Department of Health,Salisbury NHS Foundation Trust,30/08/2019,SERVICES FROM NHS BODIES,Clinical Support,NHS LOGISTICS,1010102096,5.25,
Department of Health,Salisbury NHS Foundation Trust,30/08/2019,NON DISPOSABLE BED LINEN,Clinical Support,NHS LOGISTICS,1010102096,33.84,
Department of Health,Salisbury NHS Foundation Trust,30/08/2019,PATIENT APPLIANCES,Clinical Support,NHS LOGISTICS,1010102096,3.54,
Department of Health,Salisbury NHS Foundation Trust,30/08/2019,PATIENT APPLIANCES,Clinical Support,NHS LOGISTICS,1010102096,9.6,
Department of Health,Salisbury NHS Foundation Trust,30/08/2019,SERVICES FROM NHS BODIES,Clinical Support,NHS LOGISTICS,1010102096,136.5,
Department of Health,Salisbury NHS Foundation Trust,30/08/2019,DISPOSABLE THEATRE DRAPES WIPES,Clinical Support,NHS LOGISTICS,1010102096,8.16,
Department of Health,Salisbury NHS Foundation Trust,30/08/2019,DISPOSABLE THEATRE DRAPES WIPES,Clinical Support,NHS LOGISTICS,1010102096,6.26,
Department of Health,Salisbury NHS Foundation Trust,30/08/2019,MEDSURGCONS-SUTURES,Musculo-Skeletal,NHS LOGISTICS,1010102096,125,
Department of Health,Salisbury NHS Foundation Trust,30/08/2019,M & S EQUIPELECTEQUIPINST - OTHER,Surgery,NHS LOGISTICS,1010102096,15.6,
Department of Health,Salisbury NHS Foundation Trust,30/08/2019,MED SURG EQUIP REP MAINT CLEANING,Musculo-Skeletal,NHS LOGISTICS,1010102096,20.96,
Department of Health,Salisbury NHS Foundation Trust,30/08/2019,MED SURG EQUIP REP MAINT CLEANING,Musculo-Skeletal,NHS LOGISTICS,1010102096,97.65,
Department of Health,Salisbury NHS Foundation Trust,30/08/2019,PAPER GENERAL STATIONERY SUNDRIES,Surgery,NHS LOGISTICS,1010102096,52.01,
Department of Health,Salisbury NHS Foundation Trust,30/08/2019,OTHER MEDICAL SUPPLIES,Surgery,NHS LOGISTICS,1010102096,41,
Department of Health,Salisbury NHS Foundation Trust,30/08/2019,M & S EQUIPELECTEQUIPINST - OTHER,Surgery,NHS LOGISTICS,1010102096,3.66,
Department of Health,Salisbury NHS Foundation Trust,30/08/2019,TOILETRIES PERSONAL HYGIENE PRODUCT,Surgery,NHS LOGISTICS,1010102096,3.35,
Department of Health,Salisbury NHS Foundation Trust,30/08/2019,PATIENTS INCONTINENCE,Surgery,NHS LOGISTICS,1010102096,1.98,
Department of Health,Salisbury NHS Foundation Trust,30/08/2019,M & S EQUIPELECTEQUIPINST - OTHER,Surgery,NHS LOGISTICS,1010102096,11.76,
Department of Health,Salisbury NHS Foundation Trust,30/08/2019,MEDSURGCONS-OTHER,Surgery,NHS LOGISTICS,1010102096,3.38,
Department of Health,Salisbury NHS Foundation Trust,30/08/2019,M & S EQUIPELECTEQUIPINST - OTHER,Surgery,NHS LOGISTICS,1010102096,9.5,
Department of Health,Salisbury NHS Foundation Trust,30/08/2019,DRESSINGS - PRE STERILE,Surgery,NHS LOGISTICS,1010102096,2.96,
Department of Health,Salisbury NHS Foundation Trust,30/08/2019,MEDSURGCONS-OTHER,Surgery,NHS LOGISTICS,1010102096,5,
Department of Health,Salisbury NHS Foundation Trust,30/08/2019,MEDSURGCONS-OTHER,Surgery,NHS LOGISTICS,1010102096,7.65,
Department of Health,Salisbury NHS Foundation Trust,30/08/2019,DRESSINGS - PRE STERILE,Surgery,NHS LOGISTICS,1010102096,2.76,
Department of Health,Salisbury NHS Foundation Trust,30/08/2019,NON DISPOSABLE BED LINEN,Surgery,NHS LOGISTICS,1010102096,5.64,
Department of Health,Salisbury NHS Foundation Trust,30/08/2019,DISPOSABLE THEATRE DRAPES WIPES,Surgery,NHS LOGISTICS,1010102096,5.44,
Department of Health,Salisbury NHS Foundation Trust,30/08/2019,LAB REAGENTS-ANALYTICAL KITS,Clinical Support,NHS LOGISTICS,1010102096,160,
Department of Health,Salisbury NHS Foundation Trust,30/08/2019,MEDSURGCONS-OTHER,Medicine,NHS LOGISTICS,1010102096,250,
Department of Health,Salisbury NHS Foundation Trust,30/08/2019,LAB EQUIP-LABORATORY APPARATUS,Clinical Support,NHS LOGISTICS,1010102096,46.4,
Department of Health,Salisbury NHS Foundation Trust,30/08/2019,DENTAL SURGERY SUNDRIES,Musculo-Skeletal,NHS LOGISTICS,1010102096,8.09,
Department of Health,Salisbury NHS Foundation Trust,30/08/2019,MEDSURGCONS-OTHER,Medicine,NHS LOGISTICS,1010102096,175,
Department of Health,Salisbury NHS Foundation Trust,30/08/2019,MEDSURGCONS-OTHER,Medicine,NHS LOGISTICS,1010102096,87.5,
Department of Health,Salisbury NHS Foundation Trust,30/08/2019,DRESSINGS - PRE STERILE,Clinical Support,NHS LOGISTICS,1010102096,11.69,
Department of Health,Salisbury NHS Foundation Trust,30/08/2019,DRESSINGS - PRE STERILE,Clinical Support,NHS LOGISTICS,1010102096,19.79,
Department of Health,Salisbury NHS Foundation Trust,30/08/2019,DRESSINGS - PRE STERILE,Clinical Support,NHS LOGISTICS,1010102096,51.05,
Department of Health,Salisbury NHS Foundation Trust,30/08/2019,DRESSINGS - PRE STERILE,Clinical Support,NHS LOGISTICS,1010102096,16.5,
Department of Health,Salisbury NHS Foundation Trust,30/08/2019,DRESSINGS - PRE STERILE,Clinical Support,NHS LOGISTICS,1010102096,16.84,
Department of Health,Salisbury NHS Foundation Trust,30/08/2019,DRESSINGS - PRE STERILE,Clinical Support,NHS LOGISTICS,1010102096,21.93,
Department of Health,Salisbury NHS Foundation Trust,30/08/2019,DRESSINGS - PRE STERILE,Clinical Support,NHS LOGISTICS,1010102096,30.78,
Department of Health,Salisbury NHS Foundation Trust,30/08/2019,DRESSINGS - PRE STERILE,Clinical Support,NHS LOGISTICS,1010102096,34.95,
Department of Health,Salisbury NHS Foundation Trust,30/08/2019,DRESSINGS - PRE STERILE,Clinical Support,NHS LOGISTICS,1010102096,180,
Department of Health,Salisbury NHS Foundation Trust,30/08/2019,DRESSINGS - PRE STERILE,Clinical Support,NHS LOGISTICS,1010102096,22.95,
Department of Health,Salisbury NHS Foundation Trust,30/08/2019,DRESSINGS - PRE STERILE,Clinical Support,NHS LOGISTICS,1010102096,32.24,
Department of Health,Salisbury NHS Foundation Trust,30/08/2019,DRESSINGS - PRE STERILE,Clinical Support,NHS LOGISTICS,1010102096,49.29,
Department of Health,Salisbury NHS Foundation Trust,30/08/2019,DRESSINGS - PRE STERILE,Clinical Support,NHS LOGISTICS,1010102096,24.36,
Department of Health,Salisbury NHS Foundation Trust,30/08/2019,DRESSINGS - PRE STERILE,Clinical Support,NHS LOGISTICS,1010102096,46.4,
Department of Health,Salisbury NHS Foundation Trust,30/08/2019,DRESSINGS - PRE STERILE,Clinical Support,NHS LOGISTICS,1010102096,20.76,
Department of Health,Salisbury NHS Foundation Trust,30/08/2019,DRESSINGS - PRE STERILE,Clinical Support,NHS LOGISTICS,1010102096,121.84,
Department of Health,Salisbury NHS Foundation Trust,30/08/2019,DRESSINGS - PRE STERILE,Clinical Support,NHS LOGISTICS,1010102096,16.43,
Department of Health,Salisbury NHS Foundation Trust,30/08/2019,DRESSINGS - PRE STERILE,Clinical Support,NHS LOGISTICS,1010102096,92.55,
Department of Health,Salisbury NHS Foundation Trust,30/08/2019,DRESSINGS - PRE STERILE,Clinical Support,NHS LOGISTICS,1010102096,91.38,
Department of Health,Salisbury NHS Foundation Trust,30/08/2019,HEATING VENTILATION BOILERS,Clinical Support,NHS LOGISTICS,1010102096,239.7,
Department of Health,Salisbury NHS Foundation Trust,30/08/2019,DRESSINGS - PRE STERILE,Clinical Support,NHS LOGISTICS,1010102096,43.1,
Department of Health,Salisbury NHS Foundation Trust,30/08/2019,DRESSINGS - PRE STERILE,Clinical Support,NHS LOGISTICS,1010102096,32.76,
Department of Health,Salisbury NHS Foundation Trust,30/08/2019,DRESSINGS - PRE STERILE,Clinical Support,NHS LOGISTICS,1010102096,61.56,
Department of Health,Salisbury NHS Foundation Trust,30/08/2019,DRESSINGS - PRE STERILE,Clinical Support,NHS LOGISTICS,1010102096,30.85,
Department of Health,Salisbury NHS Foundation Trust,30/08/2019,DRESSINGS - PRE STERILE,Clinical Support,NHS LOGISTICS,1010102096,3.6,
Department of Health,Salisbury NHS Foundation Trust,30/08/2019,DRESSINGS - PRE STERILE,Clinical Support,NHS LOGISTICS,1010102096,21.93,
Department of Health,Salisbury NHS Foundation Trust,30/08/2019,DRESSINGS - PRE STERILE,Clinical Support,NHS LOGISTICS,1010102096,19.79,
Department of Health,Salisbury NHS Foundation Trust,30/08/2019,DRESSINGS - PRE STERILE,Clinical Support,NHS LOGISTICS,1010102096,2.78,
Department of Health,Salisbury NHS Foundation Trust,30/08/2019,DRESSINGS - PRE STERILE,Clinical Support,NHS LOGISTICS,1010102096,46.22,
Department of Health,Salisbury NHS Foundation Trust,30/08/2019,DRESSINGS - PRE STERILE,Clinical Support,NHS LOGISTICS,1010102096,39.96,
Department of Health,Salisbury NHS Foundation Trust,30/08/2019,DRESSINGS - PRE STERILE,Clinical Support,NHS LOGISTICS,1010102096,25.2,
Department of Health,Salisbury NHS Foundation Trust,30/08/2019,DRESSINGS - PRE STERILE,Clinical Support,NHS LOGISTICS,1010102096,56.2,
Department of Health,Salisbury NHS Foundation Trust,30/08/2019,DRESSINGS - PRE STERILE,Clinical Support,NHS LOGISTICS,1010102096,51.05,
Department of Health,Salisbury NHS Foundation Trust,30/08/2019,DRESSINGS - PRE STERILE,Clinical Support,NHS LOGISTICS,1010102096,103.08,
Department of Health,Salisbury NHS Foundation Trust,30/08/2019,BEVERAGES & AMBIENT FOOD,Facilities,NHS LOGISTICS,1010102096,11.16,
Department of Health,Salisbury NHS Foundation Trust,30/08/2019,BEVERAGES & AMBIENT FOOD,Facilities,NHS LOGISTICS,1010102096,10.36,
Department of Health,Salisbury NHS Foundation Trust,30/08/2019,BEVERAGES & AMBIENT FOOD,Facilities,NHS LOGISTICS,1010102096,2.14,
Department of Health,Salisbury NHS Foundation Trust,30/08/2019,BEVERAGES & AMBIENT FOOD,Facilities,NHS LOGISTICS,1010102096,6.54,
Department of Health,Salisbury NHS Foundation Trust,30/08/2019,BEVERAGES & AMBIENT FOOD,Facilities,NHS LOGISTICS,1010102096,5.42,
Department of Health,Salisbury NHS Foundation Trust,30/08/2019,BEVERAGES & AMBIENT FOOD,Facilities,NHS LOGISTICS,1010102096,3.7,
Department of Health,Salisbury NHS Foundation Trust,30/08/2019,BEVERAGES & AMBIENT FOOD,Facilities,NHS LOGISTICS,1010102096,17.45,
Department of Health,Salisbury NHS Foundation Trust,30/08/2019,LIQUID REFRESHMENTS,Facilities,NHS LOGISTICS,1010102096,3.09,
Department of Health,Salisbury NHS Foundation Trust,30/08/2019,BEVERAGES & AMBIENT FOOD,Facilities,NHS LOGISTICS,1010102096,4.46,
Department of Health,Salisbury NHS Foundation Trust,30/08/2019,EGGS MILK OTHER DAIRY PRODUCTS,Facilities,NHS LOGISTICS,1010102096,18.36,
